Workbook

Sheet KONCEPT ZAHRADA 14X1M
A1: ZAHRADA 14 X 1M
C3: Specifikace | H3: rabat | I3: 0 | K3: Prvky regálu a umístění produktu
A4: Poz. | B4: Kat. číslo | C4: Popis | D4: MJ | E4: Množství | F4: Kat. cena ks/bez DPH | G4: Vaše nákupní cena | H4: Celkem | I4: Celkem po odečtení rabatu | J4: Obrázek | K4: Místo na regálu | L4: Kat. číslo | M4: Cílová pozici
A5: 1 | B5: S102081215 | C5: Hadice zahradní 1/2" 15m STR STALCO GARDEN | D5: =VLOOKUP(B5,'[1]CENÍK 2023_01'!$C:$L,10,0) -> ks | E5: 3 | F5: =VLOOKUP(B5,'[1]CENÍK 2023_01'!$C:$P,14,0) -> 226.3702464 | G5: =F5-(F5*$I$3) -> 226.3702464 | H5: =F5*E5 -> 679.1107392 | I5: =H5-(H5*$I$3) -> 679.1107392 | K5: R1.1 | L5: R-92625 | M5: POLICE
A6: 2 | B6: S102081220 | C6: Hadice zahradní 1/2" 20m STR STALCO GARDEN | D6: =VLOOKUP(B6,'[1]CENÍK 2023_01'!$C:$L,10,0) -> ks | E6: 3 | F6: =VLOOKUP(B6,'[1]CENÍK 2023_01'!$C:$P,14,0) -> 301.8269952 | G6: 301.8269952 | H6: =F6*E6 -> 905.4809856 | I6: =H6-(H6*$I$3) -> 905.4809856 | K6: R1.1 | L6: R-92625 | M6: POLICE
A7: 3 | B7: S102081230 | C7: Hadice zahradní 1/2" 30m STR STALCO GARDEN | D7: =VLOOKUP(B7,'[1]CENÍK 2023_01'!$C:$L,10,0) -> ks | E7: 3 | F7: =VLOOKUP(B7,'[1]CENÍK 2023_01'!$C:$P,14,0) -> 452.7404928 | G7: =F7-(F7*$I$3) -> 452.7404928 | H7: =F7*E7 -> 1358.221478 | I7: =H7-(H7*$I$3) -> 1358.221478 | K7: R1.1 | L7: R-92625 | M7: POLICE
A8: 4 | B8: S102081250 | C8: Hadice zahradní 1/2" 50m STR STALCO GARDEN | D8: =VLOOKUP(B8,'[1]CENÍK 2023_01'!$C:$L,10,0) -> ks | E8: 2 | F8: =VLOOKUP(B8,'[1]CENÍK 2023_01'!$C:$P,14,0) -> 754.567488 | G8: 754.567488 | H8: =F8*E8 -> 1509.134976 | I8: =H8-(H8*$I$3) -> 1509.134976 | K8: R1.2 | L8: R-92625 | M8: POLICE
A9: 5 | B9: S102083420 | C9: Hadice zahradní 3/4" 20m STR STALCO GARDEN | D9: =VLOOKUP(B9,'[1]CENÍK 2023_01'!$C:$L,10,0) -> ks | E9: 3 | F9: =VLOOKUP(B9,'[1]CENÍK 2023_01'!$C:$P,14,0) -> 558.93888 | G9: 558.93888 | H9: 1676.81664 | I9: 1676.81664 | K9: R1.3 | L9: R-92625 | M9: POLICE
A10: 6 | B10: S102083430 | C10: Hadice zahradní 3/4" 30m STR STALCO GARDEN | D10: =VLOOKUP(B10,'[1]CENÍK 2023_01'!$C:$L,10,0) -> ks | E10: 3 | F10: =VLOOKUP(B10,'[1]CENÍK 2023_01'!$C:$P,14,0) -> 838.40832 | G10: 838.40832 | H10: 2515.22496 | I10: 2515.22496 | K10: R1.3 | L10: R-92625 | M10: POLICE
A11: 7 | B11: S102083450 | C11: Hadice zahradní 3/4" 50m STR STALCO GARDEN | D11: =VLOOKUP(B11,'[1]CENÍK 2023_01'!$C:$L,10,0) -> ks | E11: 2 | F11: =VLOOKUP(B11,'[1]CENÍK 2023_01'!$C:$P,14,0) -> 1397.3472 | G11: =F11-(F11*$I$3) -> 1397.3472 | H11: 2794.6944 | I11: 2794.6944 | K11: R1 | M11: PODESTA
A12: 8 | B12: S102081010 | C12: Hadice zahradní 1" 10m STR STALCO GARDEN | D12: =VLOOKUP(B12,'[1]CENÍK 2023_01'!$C:$L,10,0) -> ks | E12: 1 | F12: =VLOOKUP(B12,'[1]CENÍK 2023_01'!$C:$P,14,0) -> 449.0142336 | G12: 449.0142336 | H12: =F12*E12 -> 449.0142336 | I12: =H12-(H12*$I$3) -> 449.0142336 | K12: R1 | M12: PODESTA
A13: 9 | B13: S102081020 | C13: Hadice zahradní 1" 20m STR STALCO GARDEN | D13: =VLOOKUP(B13,'[1]CENÍK 2023_01'!$C:$L,10,0) -> ks | E13: 1 | F13: =VLOOKUP(B13,'[1]CENÍK 2023_01'!$C:$P,14,0) -> 898.0284672 | G13: 898.0284672 | H13: 898.0284672 | I13: 898.0284672 | K13: R1 | M13: PODESTA
A14: 10 | B14: S102061220 | C14: Hadice zahradní 1/2" 20m EXP STALCO GARDEN | D14: =VLOOKUP(B14,'[1]CENÍK 2023_01'!$C:$L,10,0) -> ks | E14: 3 | F14: =VLOOKUP(B14,'[1]CENÍK 2023_01'!$C:$P,14,0) -> 454.6036224 | G14: 454.6036224 | H14: 1363.810867 | I14: 1363.810867 | K14: R1.2 | L14: R-92625 | M14: POLICE
A15: 11 | B15: S102061230 | C15: Hadice zahradní 1/2" 30m EXP STALCO GARDEN | D15: =VLOOKUP(B15,'[1]CENÍK 2023_01'!$C:$L,10,0) -> ks | E15: 3 | F15: =VLOOKUP(B15,'[1]CENÍK 2023_01'!$C:$P,14,0) -> 681.9054336 | G15: 681.9054336 | H15: 2045.716301 | I15: 2045.716301 | K15: R1.2 | L15: R-92625 | M15: POLICE
A16: 12 | B16: S102061250 | C16: Hadice zahradní 1/2" 50m EXP STALCO GARDEN | D16: =VLOOKUP(B16,'[1]CENÍK 2023_01'!$C:$L,10,0) -> ks | E16: 3 | F16: =VLOOKUP(B16,'[1]CENÍK 2023_01'!$C:$P,14,0) -> 1136.509056 | G16: 1136.509056 | H16: 3409.527168 | I16: 3409.527168 | K16: R1.3 | L16: R-92625 | M16: POLICE
A17: 13 | B17: S102063420 | C17: Hadice zahradní 3/4" 20m EXP STALCO GARDEN | D17: =VLOOKUP(B17,'[1]CENÍK 2023_01'!$C:$L,10,0) -> ks | E17: 3 | F17: =VLOOKUP(B17,'[1]CENÍK 2023_01'!$C:$P,14,0) -> 674.4529152 | G17: 674.4529152 | H17: 2023.358746 | I17: 2023.358746 | K17: R1.3 | L17: R-92625 | M17: POLICE
A18: 14 | B18: S102063430 | C18: Hadice zahradní 3/4" 30m EXP STALCO GARDEN | D18: =VLOOKUP(B18,'[1]CENÍK 2023_01'!$C:$L,10,0) -> ks | E18: 3 | F18: =VLOOKUP(B18,'[1]CENÍK 2023_01'!$C:$P,14,0) -> 1011.679373 | G18: 1011.679373 | H18: 3035.038118 | I18: 3035.038118 | K18: R1 | M18: PODESTA
A19: 15 | B19: S102063450 | C19: Hadice zahradní 3/4" 50m EXP STALCO GARDEN | D19: =VLOOKUP(B19,'[1]CENÍK 2023_01'!$C:$L,10,0) -> ks | E19: 2 | F19: =VLOOKUP(B19,'[1]CENÍK 2023_01'!$C:$P,14,0) -> 1686.132288 | G19: 1686.132288 | H19: 3372.264576 | I19: 3372.264576 | K19: R1 | M19: PODESTA
A20: 16 | B20: S102041220 | C20: Hadice zahradní ATS 1/2" 20m EXP STALCO GARDEN | D20: =VLOOKUP(B20,'[1]CENÍK 2023_01'!$C:$L,10,0) -> ks | E20: 3 | F20: =VLOOKUP(B20,'[1]CENÍK 2023_01'!$C:$P,14,0) -> 566.3913984 | G20: 566.3913984 | H20: 1699.174195 | I20: 1699.174195 | K20: R2.1 | L20: R-92625 | M20: POLICE
A21: 17 | B21: S102041230 | C21: Hadice zahradní ATS 1/2" 30m EXP STALCO GARDEN | D21: =VLOOKUP(B21,'[1]CENÍK 2023_01'!$C:$L,10,0) -> ks | E21: 3 | F21: =VLOOKUP(B21,'[1]CENÍK 2023_01'!$C:$P,14,0) -> 849.5870976 | G21: 849.5870976 | H21: 2548.761293 | I21: 2548.761293 | K21: R2.1 | L21: R-92625 | M21: POLICE
A22: 18 | B22: S102041250 | C22: Hadice zahradní ATS 1/2" 50m EXP STALCO GARDEN | D22: =VLOOKUP(B22,'[1]CENÍK 2023_01'!$C:$L,10,0) -> ks | E22: 3 | F22: =VLOOKUP(B22,'[1]CENÍK 2023_01'!$C:$P,14,0) -> 1415.978496 | G22: 1415.978496 | H22: 4247.935488 | I22: 4247.935488 | K22: R1.3 | L22: R-92625 | M22: POLICE
A23: 19 | B23: S102043420 | C23: Hadice zahradní ATS 3/4" 20m EXP STALCO GARDEN | D23: =VLOOKUP(B23,'[1]CENÍK 2023_01'!$C:$L,10,0) -> ks | E23: 3 | F23: =VLOOKUP(B23,'[1]CENÍK 2023_01'!$C:$P,14,0) -> 894.302208 | G23: 894.302208 | H23: 2682.906624 | I23: 2682.906624 | K23: R2.1 | L23: R-92625 | M23: POLICE
A24: 20 | B24: S102043430 | C24: Hadice zahradní ATS 3/4" 30m EXP STALCO GARDEN | D24: =VLOOKUP(B24,'[1]CENÍK 2023_01'!$C:$L,10,0) -> ks | E24: 2 | F24: =VLOOKUP(B24,'[1]CENÍK 2023_01'!$C:$P,14,0) -> 1341.453312 | G24: 1341.453312 | H24: 2682.906624 | I24: 2682.906624 | K24: R2 | M24: PODESTA
A25: 21 | B25: S102043450 | C25: Hadice zahradní ATS 3/4" 50m EXP STALCO GARDEN | D25: =VLOOKUP(B25,'[1]CENÍK 2023_01'!$C:$L,10,0) -> ks | E25: 2 | F25: =VLOOKUP(B25,'[1]CENÍK 2023_01'!$C:$P,14,0) -> 2235.75552 | G25: 2235.75552 | H25: 4471.51104 | I25: 4471.51104 | K25: R2 | M25: PODESTA
A26: 22 | B26: S102021220 | C26: Hadice zahradní ATS 1/2" 20m XTR STALCO GARDEN | D26: =VLOOKUP(B26,'[1]CENÍK 2023_01'!$C:$L,10,0) -> ks | E26: 3 | F26: =VLOOKUP(B26,'[1]CENÍK 2023_01'!$C:$P,14,0) -> 715.4417664 | G26: 715.4417664 | H26: 2146.325299 | I26: 2146.325299 | K26: R2.2 | L26: R-92625 | M26: POLICE
A27: 23 | B27: S102021230 | C27: Hadice zahradní ATS 1/2" 30m XTR STALCO GARDEN | D27: =VLOOKUP(B27,'[1]CENÍK 2023_01'!$C:$L,10,0) -> ks | E27: 3 | F27: =VLOOKUP(B27,'[1]CENÍK 2023_01'!$C:$P,14,0) -> 1073.16265 | G27: 1073.16265 | H27: 3219.487949 | I27: 3219.487949 | K27: R2.2 | L27: R-92625 | M27: POLICE
A28: 24 | B28: S102021250 | C28: Hadice zahradní ATS 1/2" 50m XTR STALCO GARDEN | D28: =VLOOKUP(B28,'[1]CENÍK 2023_01'!$C:$L,10,0) -> ks | E28: 3 | F28: =VLOOKUP(B28,'[1]CENÍK 2023_01'!$C:$P,14,0) -> 1788.604416 | G28: 1788.604416 | H28: 5365.813248 | I28: 5365.813248 | K28: R2.3 | L28: R-92625 | M28: POLICE
A29: 25 | B29: S102023420 | C29: Hadice zahradní ATS 3/4" 20m XTR STALCO GARDEN | D29: =VLOOKUP(B29,'[1]CENÍK 2023_01'!$C:$L,10,0) -> ks | E29: 3 | F29: =VLOOKUP(B29,'[1]CENÍK 2023_01'!$C:$P,14,0) -> 1136.509056 | G29: 1136.509056 | H29: 3409.527168 | I29: 3409.527168 | K29: R2.2 | L29: R-92625 | M29: POLICE
A30: 26 | B30: S102023430 | C30: Hadice zahradní ATS 3/4" 30m XTR STALCO GARDEN | D30: =VLOOKUP(B30,'[1]CENÍK 2023_01'!$C:$L,10,0) -> ks | E30: 3 | F30: =VLOOKUP(B30,'[1]CENÍK 2023_01'!$C:$P,14,0) -> 1704.763584 | G30: 1704.763584 | H30: 5114.290752 | I30: 5114.290752 | K30: R2 | M30: PODESTA
A31: 27 | B31: S102023450 | C31: Hadice zahradní ATS 3/4" 50m XTR STALCO GARDEN | D31: =VLOOKUP(B31,'[1]CENÍK 2023_01'!$C:$L,10,0) -> ks | E31: 2 | F31: =VLOOKUP(B31,'[1]CENÍK 2023_01'!$C:$P,14,0) -> 2841.27264 | G31: 2841.27264 | H31: 5682.54528 | I31: 5682.54528 | K31: R2 | M31: PODESTA
A32: 28 | B32: S101010400 | C32: Rychlospojka průchozí 1/2" STR STALCO GARDEN | D32: =VLOOKUP(B32,'[1]CENÍK 2023_01'!$C:$L,10,0) -> ks | E32: 30 | F32: =VLOOKUP(B32,'[1]CENÍK 2023_01'!$C:$P,14,0) -> 18.3589937 | G32: 18.3589937 | H32: 550.769811 | I32: 550.769811 | K32: R3.1 | L32: R-92625 | M32: POLICE
A33: 29 | B33: S101010403 | C33: Rychlospojka s funkcí stop 1/2" STR STALCO GARDEN | D33: =VLOOKUP(B33,'[1]CENÍK 2023_01'!$C:$L,10,0) -> ks | E33: 30 | F33: =VLOOKUP(B33,'[1]CENÍK 2023_01'!$C:$P,14,0) -> 20.71008977 | G33: 20.71008977 | H33: 621.3026932 | I33: 621.3026932 | K33: R3.1 | L33: R-92625 | M33: POLICE
A34: 30 | B34: S101010406 | C34: Rychlospojka průchozí 3/4" STR STALCO GARDEN | D34: =VLOOKUP(B34,'[1]CENÍK 2023_01'!$C:$L,10,0) -> ks | E34: 30 | F34: =VLOOKUP(B34,'[1]CENÍK 2023_01'!$C:$P,14,0) -> 22.75452114 | G34: 22.75452114 | H34: 682.6356343 | I34: 682.6356343 | K34: R3.1 | L34: R-92625 | M34: POLICE
A35: 31 | B35: S101010409 | C35: Rychlospojka s funkcí stop 3/4" STR STALCO GARDEN | D35: =VLOOKUP(B35,'[1]CENÍK 2023_01'!$C:$L,10,0) -> ks | E35: 30 | F35: =VLOOKUP(B35,'[1]CENÍK 2023_01'!$C:$P,14,0) -> 24.79895251 | G35: 24.79895251 | H35: 743.9685754 | I35: 743.9685754 | K35: R3.1 | L35: R-92625 | M35: POLICE
A36: 32 | B36: S101010430 | C36: Spojka hadicová opravná 1/2" STR STALCO GARDEN | D36: =VLOOKUP(B36,'[1]CENÍK 2023_01'!$C:$L,10,0) -> ks | E36: 30 | F36: =VLOOKUP(B36,'[1]CENÍK 2023_01'!$C:$P,14,0) -> 14.57679567 | G36: 14.57679567 | H36: 437.30387 | I36: 437.30387 | K36: R3.1 | L36: R-92625 | M36: POLICE
A37: 33 | B37: S101010433 | C37: Spojka hadicová opravná 3/4" STR STALCO GARDEN | D37: =VLOOKUP(B37,'[1]CENÍK 2023_01'!$C:$L,10,0) -> ks | E37: 30 | F37: =VLOOKUP(B37,'[1]CENÍK 2023_01'!$C:$P,14,0) -> 18.6656584 | G37: 18.6656584 | H37: 559.9697521 | I37: 559.9697521 | K37: R3.1 | L37: R-92625 | M37: POLICE
A38: 34 | B38: S101010436 | C38: Spojka hadicová opravná 1/2" - 3/4" STR STALCO GARDEN | D38: =VLOOKUP(B38,'[1]CENÍK 2023_01'!$C:$L,10,0) -> ks | E38: 30 | F38: =VLOOKUP(B38,'[1]CENÍK 2023_01'!$C:$P,14,0) -> 18.6656584 | G38: 18.6656584 | H38: 559.9697521 | I38: 559.9697521 | K38: R3.1 | L38: R-92625 | M38: POLICE
A39: 35 | B39: S101010442 | C39: Konektor dvojitý STR STALCO GARDEN | D39: =VLOOKUP(B39,'[1]CENÍK 2023_01'!$C:$L,10,0) -> ks | E39: 30 | F39: =VLOOKUP(B39,'[1]CENÍK 2023_01'!$C:$P,14,0) -> 11.00707246 | G39: 11.00707246 | H39: 330.2121739 | I39: 330.2121739 | K39: R3.2 | L39: R-92625 | M39: POLICE
A40: 36 | B40: S101010445 | C40: Konektor trojitý STR STALCO GARDEN | D40: =VLOOKUP(B40,'[1]CENÍK 2023_01'!$C:$L,10,0) -> ks | E40: 30 | F40: =VLOOKUP(B40,'[1]CENÍK 2023_01'!$C:$P,14,0) -> 14.37235253 | G40: 14.37235253 | H40: 431.1705758 | I40: 431.1705758 | K40: R3.2 | L40: R-92625 | M40: POLICE
A41: 37 | B41: S101010448 | C41: Adaptér s vnitřním závitem 1/2" STR STALCO GARDEN | D41: =VLOOKUP(B41,'[1]CENÍK 2023_01'!$C:$L,10,0) -> ks | E41: 30 | F41: =VLOOKUP(B41,'[1]CENÍK 2023_01'!$C:$P,14,0) -> 14.24676603 | G41: 14.24676603 | H41: 427.4029809 | I41: 427.4029809 | K41: R3.2 | L41: R-92625 | M41: POLICE
A42: 38 | B42: S101010451 | C42: Adaptér s vnitřním závitem 3/4" STR STALCO GARDEN | D42: =VLOOKUP(B42,'[1]CENÍK 2023_01'!$C:$L,10,0) -> ks | E42: 30 | F42: =VLOOKUP(B42,'[1]CENÍK 2023_01'!$C:$P,14,0) -> 15.99913578 | G42: 15.99913578 | H42: 479.9740733 | I42: 479.9740733 | K42: R3.2 | L42: R-92625 | M42: POLICE
A43: 39 | B43: S101010454 | C43: Adaptér s vnitřním závitem 1" STR STALCO GARDEN | D43: =VLOOKUP(B43,'[1]CENÍK 2023_01'!$C:$L,10,0) -> ks | E43: 30 | F43: =VLOOKUP(B43,'[1]CENÍK 2023_01'!$C:$P,14,0) -> 19.06578283 | G43: 19.06578283 | H43: 571.9734849 | I43: 571.9734849 | K43: R3.2 | L43: R-92625 | M43: POLICE
A44: 40 | B44: S101010457 | C44: Adaptér s vnitřním závitem 1/2" - 3/4" STR STALCO GARDEN | D44: =VLOOKUP(B44,'[1]CENÍK 2023_01'!$C:$L,10,0) -> ks | E44: 30 | F44: =VLOOKUP(B44,'[1]CENÍK 2023_01'!$C:$P,14,0) -> 19.50387527 | G44: 19.50387527 | H44: 585.116258 | I44: 585.116258 | K44: R3.2 | L44: R-92625 | M44: POLICE
A45: 41 | B45: S101010460 | C45: Adaptér s vnitřním závitem 3/4" - 1" STR STALCO GARDEN | D45: =VLOOKUP(B45,'[1]CENÍK 2023_01'!$C:$L,10,0) -> ks | E45: 30 | F45: =VLOOKUP(B45,'[1]CENÍK 2023_01'!$C:$P,14,0) -> 23.00861476 | G45: 23.00861476 | H45: 690.2584427 | I45: 690.2584427 | K45: R3.2 | L45: R-92625 | M45: POLICE
A46: 42 | B46: S101010463 | C46: Adaptér s vnějším závitem 1/2" STR STALCO GARDEN | D46: =VLOOKUP(B46,'[1]CENÍK 2023_01'!$C:$L,10,0) -> ks | E46: 30 | F46: =VLOOKUP(B46,'[1]CENÍK 2023_01'!$C:$P,14,0) -> 9.159052536 | G46: 9.159052536 | H46: 274.7715761 | I46: 274.7715761 | K46: R3.2 | L46: R-92625 | M46: POLICE
A47: 43 | B47: S101010466 | C47: Adaptér s vnějším závitem 3/4" STR STALCO GARDEN | D47: =VLOOKUP(B47,'[1]CENÍK 2023_01'!$C:$L,10,0) -> ks | E47: 30 | F47: =VLOOKUP(B47,'[1]CENÍK 2023_01'!$C:$P,14,0) -> 9.159052536 | G47: 9.159052536 | H47: 274.7715761 | I47: 274.7715761 | K47: R3.3 | L47: R-92625 | M47: POLICE
A48: 44 | B48: S101010472 | C48: Rozdělovač dvojitý s ventily STR STALCO GARDEN | D48: =VLOOKUP(B48,'[1]CENÍK 2023_01'!$C:$L,10,0) -> ks | E48: 6 | F48: =VLOOKUP(B48,'[1]CENÍK 2023_01'!$C:$P,14,0) -> 147.6018805 | G48: 147.6018805 | H48: 885.6112829 | I48: 885.6112829 | K48: R3 | L48: R-90265 | M48: HÁČEK
A49: 45 | B49: S101210412 | C49: Zavlažovací tryska, sada 4 ks 1/2" STR STALCO GARDEN | D49: =VLOOKUP(B49,'[1]CENÍK 2023_01'!$C:$L,10,0) -> ks | E49: 6 | F49: =VLOOKUP(B49,'[1]CENÍK 2023_01'!$C:$P,14,0) -> 68.68149127 | G49: 68.68149127 | H49: 412.0889476 | I49: 412.0889476 | K49: R3 | L49: R-90265 | M49: HÁČEK
A50: 46 | B50: S101210415 | C50: Zavlažovací tryska, sada 4 ks 3/4" STR STALCO GARDEN | D50: =VLOOKUP(B50,'[1]CENÍK 2023_01'!$C:$L,10,0) -> ks | E50: 6 | F50: =VLOOKUP(B50,'[1]CENÍK 2023_01'!$C:$P,14,0) -> 78.44293119 | G50: 78.44293119 | H50: 470.6575872 | I50: 470.6575872 | K50: R3 | L50: R-90265 | M50: HÁČEK
A51: 47 | B51: S101210430 | C51: Pistole zavlažovací nastavitelná STR STALCO GARDEN | D51: =VLOOKUP(B51,'[1]CENÍK 2023_01'!$C:$L,10,0) -> ks | E51: 6 | F51: =VLOOKUP(B51,'[1]CENÍK 2023_01'!$C:$P,14,0) -> 106.8441237 | G51: 106.8441237 | H51: 641.0647422 | I51: 641.0647422 | K51: R3 | L51: R-90265 | M51: HÁČEK
A52: 48 | B52: S101210433 | C52: Pistole zavlažovací 8 funkcí STR STALCO GARDEN | D52: =VLOOKUP(B52,'[1]CENÍK 2023_01'!$C:$L,10,0) -> ks | E52: 4 | F52: =VLOOKUP(B52,'[1]CENÍK 2023_01'!$C:$P,14,0) -> 129.8177218 | G52: 129.8177218 | H52: 519.2708873 | I52: 519.2708873 | K52: R3 | L52: R-90265 | M52: HÁČEK
A53: 49 | B53: S101410400 | C53: Zavlažovač na trnu STR STALCO GARDEN | D53: =VLOOKUP(B53,'[1]CENÍK 2023_01'!$C:$L,10,0) -> ks | E53: 6 | F53: =VLOOKUP(B53,'[1]CENÍK 2023_01'!$C:$P,14,0) -> 50.2540228 | G53: 50.2540228 | H53: 301.5241368 | I53: 301.5241368 | K53: R3 | L53: R-90265 | M53: HÁČEK
A54: 50 | B54: S101410412 | C54: Zavlažovač 8 funkcí na trnu STR STALCO GARDEN | D54: =VLOOKUP(B54,'[1]CENÍK 2023_01'!$C:$L,10,0) -> ks | E54: 4 | F54: =VLOOKUP(B54,'[1]CENÍK 2023_01'!$C:$P,14,0) -> 92.01133268 | G54: 92.01133268 | H54: 368.0453307 | I54: 368.0453307 | K54: R3 | L54: R-90265 | M54: HÁČEK
A55: 51 | B55: S101410415 | C55: Zavlažovač 8 funkcí na podstavci STR STALCO GARDEN | D55: =VLOOKUP(B55,'[1]CENÍK 2023_01'!$C:$L,10,0) -> ks | E55: 4 | F55: =VLOOKUP(B55,'[1]CENÍK 2023_01'!$C:$P,14,0) -> 18.6888 | G55: 18.6888 | H55: 74.7552 | I55: 74.7552 | K55: R3 | L55: R-90265 | M55: HÁČEK
A56: 52 | B56: S101410430 | C56: Zavlažovač otočný, 3ramnný na trnu STR STALCO GARDEN | D56: =VLOOKUP(B56,'[1]CENÍK 2023_01'!$C:$L,10,0) -> ks | E56: 6 | F56: =VLOOKUP(B56,'[1]CENÍK 2023_01'!$C:$P,14,0) -> 58.82243696 | G56: 58.82243696 | H56: 352.9346217 | I56: 352.9346217 | K56: R3 | L56: R-90265 | M56: HÁČEK
A57: 53 | B57: S101410451 | C57: Zavlažovač pulzující na trnu STR STALCO GARDEN S101410451 | D57: =VLOOKUP(B57,'[1]CENÍK 2023_01'!$C:$L,10,0) -> ks | E57: 5 | F57: =VLOOKUP(B57,'[1]CENÍK 2023_01'!$C:$P,14,0) -> 80.29760478 | G57: 80.29760478 | H57: 401.4880239 | I57: 401.4880239 | K57: R3 | L57: R-90265 | M57: HÁČEK
A58: 54 | B58: S101410481 | C58: Zavlažovač vahadlový STR STALCO GARDEN | D58: =VLOOKUP(B58,'[1]CENÍK 2023_01'!$C:$L,10,0) -> ks | E58: 3 | F58: =VLOOKUP(B58,'[1]CENÍK 2023_01'!$C:$P,14,0) -> 323.1666358 | G58: 323.1666358 | H58: 969.4999074 | I58: 969.4999074 | K58: R3 | L58: R-90265 | M58: HÁČEK
A59: 55 | B59: S101010500 | C59: Rychlospojka průchozí 3/4" STR HF STALCO GARDEN | D59: =VLOOKUP(B59,'[1]CENÍK 2023_01'!$C:$L,10,0) -> ks | E59: 30 | F59: =VLOOKUP(B59,'[1]CENÍK 2023_01'!$C:$P,14,0) -> 24.92599932 | G59: 24.92599932 | H59: 747.7799796 | I59: 747.7799796 | K59: R3.3 | L59: R-92625 | M59: POLICE
A60: 56 | B60: S101010503 | C60: Rychlospojka s funkcí stop 3/4" STR HF STALCO GARDEN | D60: =VLOOKUP(B60,'[1]CENÍK 2023_01'!$C:$L,10,0) -> ks | E60: 30 | F60: =VLOOKUP(B60,'[1]CENÍK 2023_01'!$C:$P,14,0) -> 28.72280043 | G60: 28.72280043 | H60: 861.684013 | I60: 861.684013 | K60: R3.3 | L60: R-92625 | M60: POLICE
A61: 57 | B61: S101010506 | C61: Rychlospojka průchozí 1" STR HF STALCO GARDEN | D61: =VLOOKUP(B61,'[1]CENÍK 2023_01'!$C:$L,10,0) -> ks | E61: 20 | F61: =VLOOKUP(B61,'[1]CENÍK 2023_01'!$C:$P,14,0) -> 56.24960852 | G61: 56.24960852 | H61: 1124.99217 | I61: 1124.99217 | K61: R3.3 | L61: R-92625 | M61: POLICE
A62: 58 | B62: S101010509 | C62: Rychlospojka s funkcí stop 1" STR HF STALCO GARDEN | D62: =VLOOKUP(B62,'[1]CENÍK 2023_01'!$C:$L,10,0) -> ks | E62: 20 | F62: =VLOOKUP(B62,'[1]CENÍK 2023_01'!$C:$P,14,0) -> 58.14800908 | G62: 58.14800908 | H62: 1162.960182 | I62: 1162.960182 | K62: R3.3 | L62: R-92625 | M62: POLICE
A63: 59 | B63: S101010533 | C63: Spojka hadicová opravná 1" STR HF STALCO GARDEN | D63: =VLOOKUP(B63,'[1]CENÍK 2023_01'!$C:$L,10,0) -> ks | E63: 20 | F63: =VLOOKUP(B63,'[1]CENÍK 2023_01'!$C:$P,14,0) -> 49.60520657 | G63: 49.60520657 | H63: 992.1041313 | I63: 992.1041313 | K63: R3.3 | L63: R-92625 | M63: POLICE
A64: 60 | B64: S101010536 | C64: Spojka hadicová opravná 3/4" - 1" STR HF STALCO GARDEN | D64: =VLOOKUP(B64,'[1]CENÍK 2023_01'!$C:$L,10,0) -> ks | E64: 20 | F64: =VLOOKUP(B64,'[1]CENÍK 2023_01'!$C:$P,14,0) -> 42.96080462 | G64: 42.96080462 | H64: 859.2160923 | I64: 859.2160923 | K64: R3.4 | L64: R-92625 | M64: POLICE
A65: 61 | B65: S101010542 | C65: Konektor dvojitý STR HF STALCO GARDEN | D65: =VLOOKUP(B65,'[1]CENÍK 2023_01'!$C:$L,10,0) -> ks | E65: 30 | F65: =VLOOKUP(B65,'[1]CENÍK 2023_01'!$C:$P,14,0) -> 23.02759876 | G65: 23.02759876 | H65: 690.8279629 | I65: 690.8279629 | K65: R3.4 | L65: R-92625 | M65: POLICE
A66: 62 | B66: S101010545 | C66: Konektor dvojitý s redukcí STR HF STALCO GARDEN | D66: =VLOOKUP(B66,'[1]CENÍK 2023_01'!$C:$L,10,0) -> ks | E66: 30 | F66: =VLOOKUP(B66,'[1]CENÍK 2023_01'!$C:$P,14,0) -> 21.41395829 | G66: 21.41395829 | H66: 642.4187486 | I66: 642.4187486 | K66: R3.4 | L66: R-92625 | M66: POLICE
A67: 63 | B67: S101010548 | C67: Konektor trojitý STR HF STALCO GARDEN | D67: =VLOOKUP(B67,'[1]CENÍK 2023_01'!$C:$L,10,0) -> ks | E67: 20 | F67: =VLOOKUP(B67,'[1]CENÍK 2023_01'!$C:$P,14,0) -> 32.51960155 | G67: 32.51960155 | H67: 650.392031 | I67: 650.392031 | K67: R3.4 | L67: R-92625 | M67: POLICE
A68: 64 | B68: S101010551 | C68: Konektor 3ramenný s redukcí STR HF STALCO GARDEN | D68: =VLOOKUP(B68,'[1]CENÍK 2023_01'!$C:$L,10,0) -> ks | E68: 20 | F68: =VLOOKUP(B68,'[1]CENÍK 2023_01'!$C:$P,14,0) -> 26.15995968 | G68: 26.15995968 | H68: 523.1991936 | I68: 523.1991936 | K68: R3.4 | L68: R-92625 | M68: POLICE
A69: 65 | B69: S101010554 | C69: Adaptér s vnitřním závitem 1" STR HF STALCO GARDEN | D69: =VLOOKUP(B69,'[1]CENÍK 2023_01'!$C:$L,10,0) -> ks | E69: 20 | F69: =VLOOKUP(B69,'[1]CENÍK 2023_01'!$C:$P,14,0) -> 23.02759876 | G69: 23.02759876 | H69: 460.5519752 | I69: 460.5519752 | K69: R3.4 | L69: R-92625 | M69: POLICE
A70: 66 | B70: S101010560 | C70: Adaptér s vnitřním závitem 3/4" - 1" STR HF STALCO GARDEN | D70: =VLOOKUP(B70,'[1]CENÍK 2023_01'!$C:$L,10,0) -> ks | E70: 20 | F70: =VLOOKUP(B70,'[1]CENÍK 2023_01'!$C:$P,14,0) -> 30.62120099 | G70: 30.62120099 | H70: 612.4240198 | I70: 612.4240198 | K70: R3.4 | L70: R-92625 | M70: POLICE
A71: 67 | B71: S101010566 | C71: Adaptér s vnějším závitem 3/4" STR HF STALCO GARDEN | D71: =VLOOKUP(B71,'[1]CENÍK 2023_01'!$C:$L,10,0) -> ks | E71: 30 | F71: =VLOOKUP(B71,'[1]CENÍK 2023_01'!$C:$P,14,0) -> 14.48479625 | G71: 14.48479625 | H71: 434.5438876 | I71: 434.5438876 | K71: R3.4 | L71: R-92625 | M71: POLICE
A72: 68 | B72: S101610212 | C72: Naviják na hadici 45 m EXP STALCO GARDEN | D72: =VLOOKUP(B72,'[1]CENÍK 2023_01'!$C:$L,10,0) -> ks | E72: 4 | F72: =VLOOKUP(B72,'[1]CENÍK 2023_01'!$C:$P,14,0) -> 650.434047 | G72: 650.434047 | H72: 2601.736188 | I72: 2601.736188 | K72: R3 | M72: PODESTA
A73: 69 | B73: S101010200 | C73: Rychlospojka průchozí 1/2" EXP STALCO GARDEN | D73: =VLOOKUP(B73,'[1]CENÍK 2023_01'!$C:$L,10,0) -> ks | E73: 6 | F73: =VLOOKUP(B73,'[1]CENÍK 2023_01'!$C:$P,14,0) -> 46.72152548 | G73: 46.72152548 | H73: 280.3291529 | I73: 280.3291529 | K73: R4 | L73: R-90265 | M73: HÁČEK
A74: 70 | B74: S101010203 | C74: Rychlospojka s funkcí stop 1/2" EXP STALCO GARDEN | D74: =VLOOKUP(B74,'[1]CENÍK 2023_01'!$C:$L,10,0) -> ks | E74: 6 | F74: =VLOOKUP(B74,'[1]CENÍK 2023_01'!$C:$P,14,0) -> 50.53552755 | G74: 50.53552755 | H74: 303.2131653 | I74: 303.2131653 | K74: R4 | L74: R-90265 | M74: HÁČEK
A75: 71 | B75: S101010206 | C75: Rychlospojka průchozí 3/4" EXP STALCO GARDEN | D75: =VLOOKUP(B75,'[1]CENÍK 2023_01'!$C:$L,10,0) -> ks | E75: 6 | F75: =VLOOKUP(B75,'[1]CENÍK 2023_01'!$C:$P,14,0) -> 49.58202703 | G75: =F75-(F75*$I$3) -> 49.58202703 | H75: 297.4921622 | I75: 297.4921622 | K75: R4 | L75: R-90265 | M75: HÁČEK
A76: 72 | B76: S101010209 | C76: Rychlospojka s funkcí stop 3/4" EXP STALCO GARDEN | D76: =VLOOKUP(B76,'[1]CENÍK 2023_01'!$C:$L,10,0) -> ks | E76: 6 | F76: =VLOOKUP(B76,'[1]CENÍK 2023_01'!$C:$P,14,0) -> 53.39602911 | G76: 53.39602911 | H76: =F76*E76 -> 320.3761747 | I76: =H76-(H76*$I$3) -> 320.3761747 | K76: R4 | L76: R-90265 | M76: HÁČEK
A77: 73 | B77: S101010212 | C77: Rychlospojka s ventilem 1/2" EXP STALCO GARDEN | D77: =VLOOKUP(B77,'[1]CENÍK 2023_01'!$C:$L,10,0) -> ks | E77: 6 | F77: =VLOOKUP(B77,'[1]CENÍK 2023_01'!$C:$P,14,0) -> 67.69853691 | G77: 67.69853691 | H77: 406.1912215 | I77: 406.1912215 | K77: R4 | L77: R-90265 | M77: HÁČEK
A78: 74 | B78: S101010215 | C78: Rychlospojka s ventilem 3/4" EXP STALCO GARDEN | D78: =VLOOKUP(B78,'[1]CENÍK 2023_01'!$C:$L,10,0) -> ks | E78: 6 | F78: =VLOOKUP(B78,'[1]CENÍK 2023_01'!$C:$P,14,0) -> 69.60553795 | G78: 69.60553795 | H78: 417.6332277 | I78: 417.6332277 | K78: R4 | L78: R-90265 | M78: HÁČEK
A79: 75 | B79: S101010230 | C79: Spojka hadicová opravná 1/2" EXP STALCO GARDEN | D79: =VLOOKUP(B79,'[1]CENÍK 2023_01'!$C:$L,10,0) -> ks | E79: 6 | F79: =VLOOKUP(B79,'[1]CENÍK 2023_01'!$C:$P,14,0) -> 42.81217334 | G79: 42.81217334 | H79: 256.8730401 | I79: 256.8730401 | K79: R4 | L79: R-90265 | M79: HÁČEK
A80: 76 | B80: S101010233 | C80: Spojka hadicová opravná 3/4" EXP STALCO GARDEN | D80: =VLOOKUP(B80,'[1]CENÍK 2023_01'!$C:$L,10,0) -> ks | E80: 6 | F80: =VLOOKUP(B80,'[1]CENÍK 2023_01'!$C:$P,14,0) -> 53.68207927 | G80: 53.68207927 | H80: 322.0924756 | I80: 322.0924756 | K80: R4 | L80: R-90265 | M80: HÁČEK
A81: 77 | B81: S101010236 | C81: Spojka hadicová opravná 1/2" - 3/4" EXP STALCO GARDEN | D81: =VLOOKUP(B81,'[1]CENÍK 2023_01'!$C:$L,10,0) -> ks | E81: 6 | F81: =VLOOKUP(B81,'[1]CENÍK 2023_01'!$C:$P,14,0) -> 49.77272714 | G81: 49.77272714 | H81: 298.6363628 | I81: 298.6363628 | K81: R4 | L81: R-90265 | M81: HÁČEK
A82: 78 | B82: S101010242 | C82: Konektor dvojitý EXP STALCO GARDEN | D82: =VLOOKUP(B82,'[1]CENÍK 2023_01'!$C:$L,10,0) -> ks | E82: 6 | F82: =VLOOKUP(B82,'[1]CENÍK 2023_01'!$C:$P,14,0) -> 21.55122725 | G82: 21.55122725 | H82: 129.3073635 | I82: 129.3073635 | K82: R4 | L82: R-90265 | M82: HÁČEK
A83: 79 | B83: S101010245 | C83: Konektor trojitý EXP STALCO GARDEN | D83: =VLOOKUP(B83,'[1]CENÍK 2023_01'!$C:$L,10,0) -> ks | E83: 6 | F83: =VLOOKUP(B83,'[1]CENÍK 2023_01'!$C:$P,14,0) -> 24.98295134 | G83: 24.98295134 | H83: 149.897708 | I83: 149.897708 | K83: R4 | L83: R-90265 | M83: HÁČEK
A84: 80 | B84: S101010251 | C84: Adaptér s vnitřním závitem 3/4" EXP STALCO GARDEN | D84: =VLOOKUP(B84,'[1]CENÍK 2023_01'!$C:$L,10,0) -> ks | E84: 6 | F84: =VLOOKUP(B84,'[1]CENÍK 2023_01'!$C:$P,14,0) -> 28.89106575 | G84: 28.89106575 | H84: 173.3463945 | I84: 173.3463945 | K84: R4 | L84: R-90265 | M84: HÁČEK
A85: 81 | B85: S101010254 | C85: Adaptér s vnitřním závitem 1" EXP STALCO GARDEN | D85: =VLOOKUP(B85,'[1]CENÍK 2023_01'!$C:$L,10,0) -> ks | E85: 6 | F85: =VLOOKUP(B85,'[1]CENÍK 2023_01'!$C:$P,14,0) -> 29.93991632 | G85: 29.93991632 | H85: 179.6394979 | I85: 179.6394979 | K85: R4 | L85: R-90265 | M85: HÁČEK
A86: 82 | B86: S101010257 | C86: Adaptér s vnitřním závitem 1/2" - 3/4" EXP STALCO GARDEN | D86: =VLOOKUP(B86,'[1]CENÍK 2023_01'!$C:$L,10,0) -> ks | E86: 6 | F86: =VLOOKUP(B86,'[1]CENÍK 2023_01'!$C:$P,14,0) -> 32.89576794 | G86: 32.89576794 | H86: 197.3746076 | I86: 197.3746076 | K86: R4 | L86: R-90265 | M86: HÁČEK
A87: 83 | B87: S101010260 | C87: Adaptér s vnitřním závitem 3/4" - 1" EXP STALCO GARDEN | D87: =VLOOKUP(B87,'[1]CENÍK 2023_01'!$C:$L,10,0) -> ks | E87: 6 | F87: =VLOOKUP(B87,'[1]CENÍK 2023_01'!$C:$P,14,0) -> 38.80747116 | G87: 38.80747116 | H87: 232.844827 | I87: 232.844827 | K87: R4 | L87: R-90265 | M87: HÁČEK
A88: 84 | B88: S101010263 | C88: Adaptér s vnějším závitem 1/2" EXP STALCO GARDEN | D88: =VLOOKUP(B88,'[1]CENÍK 2023_01'!$C:$L,10,0) -> ks | E88: 6 | F88: =VLOOKUP(B88,'[1]CENÍK 2023_01'!$C:$P,14,0) -> 17.26814353 | G88: 17.26814353 | H88: 103.6088612 | I88: 103.6088612 | K88: R4 | L88: R-90265 | M88: HÁČEK
A89: 85 | B89: S101010266 | C89: Adaptér s vnějším závitem 3/4" EXP STALCO GARDEN | D89: =VLOOKUP(B89,'[1]CENÍK 2023_01'!$C:$L,10,0) -> ks | E89: 6 | F89: =VLOOKUP(B89,'[1]CENÍK 2023_01'!$C:$P,14,0) -> 18.99495789 | G89: 18.99495789 | H89: 113.9697473 | I89: 113.9697473 | K89: R4 | L89: R-90265 | M89: HÁČEK
A90: 86 | B90: S101010272 | C90: Rozdělovač dvojitý EXP STALCO GARDEN | D90: =VLOOKUP(B90,'[1]CENÍK 2023_01'!$C:$L,10,0) -> ks | E90: 4 | F90: =VLOOKUP(B90,'[1]CENÍK 2023_01'!$C:$P,14,0) -> 193.6145029 | G90: 193.6145029 | H90: 774.4580118 | I90: 774.4580118 | K90: R4 | L90: R-90265 | M90: HÁČEK
A91: 87 | B91: S101010275 | C91: Rozdělovač 4ramenný EXP STALCO GARDEN | D91: =VLOOKUP(B91,'[1]CENÍK 2023_01'!$C:$L,10,0) -> ks | E91: 4 | F91: =VLOOKUP(B91,'[1]CENÍK 2023_01'!$C:$P,14,0) -> 324.1853421 | G91: 324.1853421 | H91: 1296.741368 | I91: 1296.741368 | K91: R4 | L91: R-90265 | M91: HÁČEK
A92: 88 | B92: S101010281 | C92: Hodiny s průtokem vody EXP STALCO GARDEN | D92: =VLOOKUP(B92,'[1]CENÍK 2023_01'!$C:$L,10,0) -> ks | E92: 3 | F92: =VLOOKUP(B92,'[1]CENÍK 2023_01'!$C:$P,14,0) -> 354.6549213 | G92: 354.6549213 | H92: 1063.964764 | I92: 1063.964764 | K92: R4 | L92: R-90265 | M92: HÁČEK
A93: 89 | B93: S101210200 | C93: Tryska nastavitelná EXP STALCO GARDEN | D93: =VLOOKUP(B93,'[1]CENÍK 2023_01'!$C:$L,10,0) -> ks | E93: 6 | F93: =VLOOKUP(B93,'[1]CENÍK 2023_01'!$C:$P,14,0) -> 47.76312407 | G93: 47.76312407 | H93: 286.5787444 | I93: 286.5787444 | K93: R4 | L93: R-90265 | M93: HÁČEK
A94: 90 | B94: S101210212 | C94: Zavlažovací tryska 1/2", sada 4 ks EXP STALCO GARDEN | D94: =VLOOKUP(B94,'[1]CENÍK 2023_01'!$C:$L,10,0) -> ks | E94: 6 | F94: =VLOOKUP(B94,'[1]CENÍK 2023_01'!$C:$P,14,0) -> 179.2489656 | G94: 179.2489656 | H94: 1075.493794 | I94: 1075.493794 | K94: R4 | L94: R-90265 | M94: HÁČEK
A95: 91 | B95: S101210215 | C95: Zavlažovací tryska 3/4", sada 4 ks EXP STALCO GARDEN | D95: =VLOOKUP(B95,'[1]CENÍK 2023_01'!$C:$L,10,0) -> ks | E95: 6 | F95: =VLOOKUP(B95,'[1]CENÍK 2023_01'!$C:$P,14,0) -> 192.6080003 | G95: 192.6080003 | H95: 1155.648002 | I95: 1155.648002 | K95: R4 | L95: R-90265 | M95: HÁČEK
A96: 92 | B96: S101210230 | C96: Pistole zavlažovací nastavitelná EXP STALCO GARDEN | D96: =VLOOKUP(B96,'[1]CENÍK 2023_01'!$C:$L,10,0) -> ks | E96: 6 | F96: =VLOOKUP(B96,'[1]CENÍK 2023_01'!$C:$P,14,0) -> 201.2090227 | G96: 201.2090227 | H96: 1207.254136 | I96: 1207.254136 | K96: R4 | L96: R-90265 | M96: HÁČEK
A97: 93 | B97: S101210233 | C97: Pistole zavlažovací 7-funkcí EXP STALCO GARDEN | D97: =VLOOKUP(B97,'[1]CENÍK 2023_01'!$C:$L,10,0) -> ks | E97: 4 | F97: =VLOOKUP(B97,'[1]CENÍK 2023_01'!$C:$P,14,0) -> 205.967035 | G97: 205.967035 | H97: 823.8681401 | I97: 823.8681401 | K97: R4 | L97: R-90265 | M97: HÁČEK
A98: 94 | B98: S101210251 | C98: Pistole zavlažovací nastavitelná, kovová EXP STALCO GARDEN | D98: =VLOOKUP(B98,'[1]CENÍK 2023_01'!$C:$L,10,0) -> ks | E98: 6 | F98: =VLOOKUP(B98,'[1]CENÍK 2023_01'!$C:$P,14,0) -> 173.9184948 | G98: 173.9184948 | H98: 1043.510969 | I98: 1043.510969 | K98: R4 | L98: R-90265 | M98: HÁČEK
A99: 95 | B99: S101210254 | C99: Pistole zavlažovací 7 funkcí, kovová EXP STALCO GARDEN | D99: =VLOOKUP(B99,'[1]CENÍK 2023_01'!$C:$L,10,0) -> ks | E99: 4 | F99: =VLOOKUP(B99,'[1]CENÍK 2023_01'!$C:$P,14,0) -> 170.7394435 | G99: 170.7394435 | H99: 682.9577741 | I99: 682.9577741 | K99: R4 | L99: R-90265 | M99: HÁČEK
A100: 96 | B100: S101410215 | C100: Zavlačovač s 8 funkcemi na podstavci EXP STALCO GARDEN | D100: =VLOOKUP(B100,'[1]CENÍK 2023_01'!$C:$L,10,0) -> ks | E100: 5 | F100: =VLOOKUP(B100,'[1]CENÍK 2023_01'!$C:$P,14,0) -> 170.8146492 | G100: 170.8146492 | H100: 854.073246 | I100: 854.073246 | K100: R4 | L100: R-90265 | M100: HÁČEK
A101: 97 | B101: S101410230 | C101: Zavlažovač otočný 3ramenný na podstavci EXP STALCO GARDEN | D101: =VLOOKUP(B101,'[1]CENÍK 2023_01'!$C:$L,10,0) -> ks | E101: 3 | F101: =VLOOKUP(B101,'[1]CENÍK 2023_01'!$C:$P,14,0) -> 185.0188524 | G101: 185.0188524 | H101: 555.0565573 | I101: 555.0565573 | K101: R4.1 | L101: R-92625 | M101: POLICE
A102: 98 | B102: S101410251 | C102: Zavlažovač pulzující, kovový EXP STALCO GARDEN | D102: =VLOOKUP(B102,'[1]CENÍK 2023_01'!$C:$L,10,0) -> ks | E102: 5 | F102: =VLOOKUP(B102,'[1]CENÍK 2023_01'!$C:$P,14,0) -> 382.673002 | G102: 382.673002 | H102: 1913.36501 | I102: 1913.36501 | K102: R4 | L102: R-90265 | M102: HÁČEK
A103: 99 | B103: S101410281 | C103: Zavlažovač vahadlový EXP STALCO GARDEN | D103: =VLOOKUP(B103,'[1]CENÍK 2023_01'!$C:$L,10,0) -> ks | E103: 4 | F103: =VLOOKUP(B103,'[1]CENÍK 2023_01'!$C:$P,14,0) -> 498.2397443 | G103: 498.2397443 | H103: 1992.958977 | I103: 1992.958977 | K103: R4 | L103: R-90265 | M103: HÁČEK
A104: 100 | B104: S101410284 | C104: Zavlažovač vahadlový nastavitelný EXP STALCO GARDEN | D104: =VLOOKUP(B104,'[1]CENÍK 2023_01'!$C:$L,10,0) -> ks | E104: 4 | F104: =VLOOKUP(B104,'[1]CENÍK 2023_01'!$C:$P,14,0) -> 509.6703458 | G104: 509.6703458 | H104: 2038.681383 | I104: 2038.681383 | K104: R4 | L104: R-90265 | M104: HÁČEK
A105: 101 | B105: S101610203 | C105: Závěs na hadici EXP STALCO GARDEN | D105: =VLOOKUP(B105,'[1]CENÍK 2023_01'!$C:$L,10,0) -> ks | E105: 5 | F105: =VLOOKUP(B105,'[1]CENÍK 2023_01'!$C:$P,14,0) -> 78.909864 | G105: 78.909864 | H105: 394.54932 | I105: 394.54932 | K105: R4.1 | L105: R-92625 | M105: POLICE
A106: 102 | B106: S101610215 | C106: Vozík na hadice 60m EXP STALCO GARDEN | D106: =VLOOKUP(B106,'[1]CENÍK 2023_01'!$C:$L,10,0) -> ks | E106: 1 | F106: =VLOOKUP(B106,'[1]CENÍK 2023_01'!$C:$P,14,0) -> 1375.681212 | G106: 1375.681212 | H106: 1375.681212 | I106: 1375.681212 | K106: R4 | M106: PODESTA
A107: 103 | B107: S101610218 | C107: Vozík na hadice kovový 60 m EXP STALCO GARDEN | D107: =VLOOKUP(B107,'[1]CENÍK 2023_01'!$C:$L,10,0) -> ks | E107: 1 | F107: =VLOOKUP(B107,'[1]CENÍK 2023_01'!$C:$P,14,0) -> 1727.742942 | G107: 1727.742942 | H107: 1727.742942 | I107: 1727.742942 | K107: R4 | M107: PODESTA
A108: 104 | B108: S101210400 | C108: Tryska nastavitelná STR STALCO GARDEN | D108: =VLOOKUP(B108,'[1]CENÍK 2023_01'!$C:$L,10,0) -> ks | E108: 6 | F108: =VLOOKUP(B108,'[1]CENÍK 2023_01'!$C:$P,14,0) -> 35.39498115 | G108: 35.39498115 | H108: 212.3698869 | I108: 212.3698869 | K108: R4.1 | L108: R-92625 | M108: POLICE
A109: 105 | B109: S101210500 | C109: Tryska nastavitelná STR HF STALCO GARDEN | D109: =VLOOKUP(B109,'[1]CENÍK 2023_01'!$C:$L,10,0) -> ks | E109: 20 | F109: =VLOOKUP(B109,'[1]CENÍK 2023_01'!$C:$P,14,0) -> 45.5566401 | G109: 45.5566401 | H109: 911.1328021 | I109: 911.1328021 | K109: R4.1 | L109: R-92625 | M109: POLICE
A110: 106 | B110: S101010000 | C110: Rychlospojka průchozí 1/2" XTR STALCO GARDEN | D110: =VLOOKUP(B110,'[1]CENÍK 2023_01'!$C:$L,10,0) -> ks | E110: 6 | F110: =VLOOKUP(B110,'[1]CENÍK 2023_01'!$C:$P,14,0) -> 84.40679987 | G110: 84.40679987 | H110: 506.4407992 | I110: 506.4407992 | K110: R5 | L110: R-90265 | M110: HÁČEK
A111: 107 | B111: S101010003 | C111: Rychlospojka s funkcí stop 1/2" XTR STALCO GARDEN | D111: =VLOOKUP(B111,'[1]CENÍK 2023_01'!$C:$L,10,0) -> ks | E111: 6 | F111: =VLOOKUP(B111,'[1]CENÍK 2023_01'!$C:$P,14,0) -> 88.10344804 | G111: 88.10344804 | H111: 528.6206882 | I111: 528.6206882 | K111: R5 | L111: R-90265 | M111: HÁČEK
A112: 108 | B112: S101010006 | C112: Rychlospojka průchozí 3/4" XTR STALCO GARDEN | D112: =VLOOKUP(B112,'[1]CENÍK 2023_01'!$C:$L,10,0) -> ks | E112: 6 | F112: =VLOOKUP(B112,'[1]CENÍK 2023_01'!$C:$P,14,0) -> 102.8020253 | G112: 102.8020253 | H112: 616.8121517 | I112: 616.8121517 | K112: R5 | L112: R-90265 | M112: HÁČEK
A113: 109 | B113: S101010009 | C113: Rychlospojka s funkcí stop 3/4" XTR STALCO GARDEN | D113: =VLOOKUP(B113,'[1]CENÍK 2023_01'!$C:$L,10,0) -> ks | E113: 6 | F113: =VLOOKUP(B113,'[1]CENÍK 2023_01'!$C:$P,14,0) -> 106.410658 | G113: 106.410658 | H113: 638.4639481 | I113: 638.4639481 | K113: R5 | L113: R-90265 | M113: HÁČEK
A114: 110 | B114: S101010012 | C114: Rychlospojka s ventilem 1/2" XTR STALCO GARDEN | D114: =VLOOKUP(B114,'[1]CENÍK 2023_01'!$C:$L,10,0) -> ks | E114: 6 | F114: =VLOOKUP(B114,'[1]CENÍK 2023_01'!$C:$P,14,0) -> 101.8338555 | G114: 101.8338555 | H114: 611.0031332 | I114: 611.0031332 | K114: R5 | L114: R-90265 | M114: HÁČEK
A115: 111 | B115: S101010015 | C115: Rychlospojka s ventilem 3/4" XTR STALCO GARDEN | D115: =VLOOKUP(B115,'[1]CENÍK 2023_01'!$C:$L,10,0) -> ks | E115: 6 | F115: =VLOOKUP(B115,'[1]CENÍK 2023_01'!$C:$P,14,0) -> 116.5324328 | G115: 116.5324328 | H115: 699.1945966 | I115: 699.1945966 | K115: R5 | L115: R-90265 | M115: HÁČEK
A116: 112 | B116: S101010030 | C116: Spojka hadicová opravná 1/2" XTR STALCO GARDEN | D116: =VLOOKUP(B116,'[1]CENÍK 2023_01'!$C:$L,10,0) -> ks | E116: 6 | F116: =VLOOKUP(B116,'[1]CENÍK 2023_01'!$C:$P,14,0) -> 123.8377137 | G116: 123.8377137 | H116: 743.0262821 | I116: 743.0262821 | K116: R5 | L116: R-90265 | M116: HÁČEK
A117: 113 | B117: S101010033 | C117: Spojka hadicová opravná 3/4" XTR STALCO GARDEN | D117: =VLOOKUP(B117,'[1]CENÍK 2023_01'!$C:$L,10,0) -> ks | E117: 6 | F117: =VLOOKUP(B117,'[1]CENÍK 2023_01'!$C:$P,14,0) -> 161.4203034 | G117: 161.4203034 | H117: 968.5218204 | I117: 968.5218204 | K117: R5 | L117: R-90265 | M117: HÁČEK
A118: 114 | B118: S101010036 | C118: Spojka hadicová opravná 1/2" - 3/4" XTR STALCO GARDEN | D118: =VLOOKUP(B118,'[1]CENÍK 2023_01'!$C:$L,10,0) -> ks | E118: 6 | F118: =VLOOKUP(B118,'[1]CENÍK 2023_01'!$C:$P,14,0) -> 143.1130934 | G118: 143.1130934 | H118: 858.6785605 | I118: 858.6785605 | K118: R5 | L118: R-90265 | M118: HÁČEK
A119: 115 | B119: S101010042 | C119: Adaptér dvojitý XTR STALCO GARDEN | D119: =VLOOKUP(B119,'[1]CENÍK 2023_01'!$C:$L,10,0) -> ks | E119: 6 | F119: =VLOOKUP(B119,'[1]CENÍK 2023_01'!$C:$P,14,0) -> 42.00939409 | G119: 42.00939409 | H119: 252.0563645 | I119: 252.0563645 | K119: R5 | L119: R-90265 | M119: HÁČEK
A120: 116 | B120: S101010045 | C120: Adaptér trojitý XTR STALCO GARDEN | D120: =VLOOKUP(B120,'[1]CENÍK 2023_01'!$C:$L,10,0) -> ks | E120: 6 | F120: =VLOOKUP(B120,'[1]CENÍK 2023_01'!$C:$P,14,0) -> 83.9312686 | G120: 83.9312686 | H120: 503.5876116 | I120: 503.5876116 | K120: R5 | L120: R-90265 | M120: HÁČEK
A121: 117 | B121: S101010051 | C121: Adaptér s vnitřním závitem 3/4" XTR STALCO GARDEN | D121: =VLOOKUP(B121,'[1]CENÍK 2023_01'!$C:$L,10,0) -> ks | E121: 6 | F121: =VLOOKUP(B121,'[1]CENÍK 2023_01'!$C:$P,14,0) -> 38.42109168 | G121: 38.42109168 | H121: 230.5265501 | I121: 230.5265501 | K121: R5 | L121: R-90265 | M121: HÁČEK
A122: 118 | B122: S101010054 | C122: Adaptér s vnitřním závitem 1" XTR STALCO GARDEN | D122: =VLOOKUP(B122,'[1]CENÍK 2023_01'!$C:$L,10,0) -> ks | E122: 6 | F122: =VLOOKUP(B122,'[1]CENÍK 2023_01'!$C:$P,14,0) -> 42.00939409 | G122: 42.00939409 | H122: 252.0563645 | I122: 252.0563645 | K122: R5 | L122: R-90265 | M122: HÁČEK
A123: 119 | B123: S101010057 | C123: Adaptér s vnitřním závitem 1/2" - 3/4" XTR STALCO GARDEN | D123: =VLOOKUP(B123,'[1]CENÍK 2023_01'!$C:$L,10,0) -> ks | E123: 6 | F123: =VLOOKUP(B123,'[1]CENÍK 2023_01'!$C:$P,14,0) -> 61.17618014 | G123: 61.17618014 | H123: 367.0570808 | I123: 367.0570808 | K123: R5 | L123: R-90265 | M123: HÁČEK
A124: 120 | B124: S101010060 | C124: Adaptér s vnitřním závitem 3/4" - 1" XTR STALCO GARDEN | D124: =VLOOKUP(B124,'[1]CENÍK 2023_01'!$C:$L,10,0) -> ks | E124: 6 | F124: =VLOOKUP(B124,'[1]CENÍK 2023_01'!$C:$P,14,0) -> 73.95403751 | G124: 73.95403751 | H124: 443.724225 | I124: 443.724225 | K124: R5 | L124: R-90265 | M124: HÁČEK
A125: 121 | B125: S101010066 | C125: Adaptér s vnějším závitem 3/4" XTR STALCO GARDEN | D125: =VLOOKUP(B125,'[1]CENÍK 2023_01'!$C:$L,10,0) -> ks | E125: 6 | F125: =VLOOKUP(B125,'[1]CENÍK 2023_01'!$C:$P,14,0) -> 42.97210937 | G125: 42.97210937 | H125: 257.8326562 | I125: 257.8326562 | K125: R5 | L125: R-90265 | M125: HÁČEK
A126: 122 | B126: S101010072 | C126: Rozdělovač dvojitý XTR STALCO GARDEN | D126: =VLOOKUP(B126,'[1]CENÍK 2023_01'!$C:$L,10,0) -> ks | E126: 4 | F126: =VLOOKUP(B126,'[1]CENÍK 2023_01'!$C:$P,14,0) -> 319.4343682 | G126: 319.4343682 | H126: 1277.737473 | I126: 1277.737473 | K126: R5 | L126: R-90265 | M126: HÁČEK
A127: 123 | B127: S101010075 | C127: Rozdělovač 4ramenný XTR STALCO GARDEN | D127: =VLOOKUP(B127,'[1]CENÍK 2023_01'!$C:$L,10,0) -> ks | E127: 4 | F127: =VLOOKUP(B127,'[1]CENÍK 2023_01'!$C:$P,14,0) -> 728.0603528 | G127: 728.0603528 | H127: 2912.241411 | I127: 2912.241411 | K127: R5 | L127: R-90265 | M127: HÁČEK
A128: 124 | B128: S101210000 | C128: Tryska rozprašovací nastavitelná XTR STALCO GARDEN | D128: =VLOOKUP(B128,'[1]CENÍK 2023_01'!$C:$L,10,0) -> ks | E128: 6 | F128: =VLOOKUP(B128,'[1]CENÍK 2023_01'!$C:$P,14,0) -> 160.0550311 | G128: 160.0550311 | H128: 960.3301869 | I128: 960.3301869 | K128: R5 | L128: R-90265 | M128: HÁČEK
A129: 125 | B129: S101210030 | C129: Pistole zavlažovací nastavitelná XTR STALCO GARDEN | D129: =VLOOKUP(B129,'[1]CENÍK 2023_01'!$C:$L,10,0) -> ks | E129: 6 | F129: =VLOOKUP(B129,'[1]CENÍK 2023_01'!$C:$P,14,0) -> 305.0617924 | G129: 305.0617924 | H129: 1830.370755 | I129: 1830.370755 | K129: R5 | L129: R-90265 | M129: HÁČEK
A130: 126 | B130: S101210033 | C130: Pistole zavlažovací 8 funkcí XTR STALCO GARDEN | D130: =VLOOKUP(B130,'[1]CENÍK 2023_01'!$C:$L,10,0) -> ks | E130: 4 | F130: =VLOOKUP(B130,'[1]CENÍK 2023_01'!$C:$P,14,0) -> 388.052508 | G130: 388.052508 | H130: 1552.210032 | I130: 1552.210032 | K130: R5 | L130: R-90265 | M130: HÁČEK
A131: 127 | B131: S101210039 | C131: Pistole zavlažovací 6 funkcí XTR STALCO GARDEN | D131: =VLOOKUP(B131,'[1]CENÍK 2023_01'!$C:$L,10,0) -> ks | E131: 3 | F131: =VLOOKUP(B131,'[1]CENÍK 2023_01'!$C:$P,14,0) -> 429.9596169 | G131: 429.9596169 | H131: 1289.878851 | I131: 1289.878851 | K131: R5 | L131: R-90265 | M131: HÁČEK
A132: 128 | B132: S101210039 | C132: Pistole zavlažovací 6 funkcí XTR STALCO GARDEN | D132: =VLOOKUP(B132,'[1]CENÍK 2023_01'!$C:$L,10,0) -> ks | E132: 1 | F132: =VLOOKUP(B132,'[1]CENÍK 2023_01'!$C:$P,14,0) -> 429.9596169 | G132: 429.9596169 | H132: 429.9596169 | I132: 429.9596169 | K132: R5 | L132: R-90440 | M132: HÁČEK
A133: 129 | B133: S101410042 | C133: Zavlažovač turbínový 6 funkcí XTR STALCO GARDEN | D133: =VLOOKUP(B133,'[1]CENÍK 2023_01'!$C:$L,10,0) -> ks | E133: 3 | F133: =VLOOKUP(B133,'[1]CENÍK 2023_01'!$C:$P,14,0) -> 726.7089018 | G133: 726.7089018 | H133: 2180.126705 | I133: 2180.126705 | K133: R5 | L133: R-90265 | M133: HÁČEK
A134: 130 | B134: S101410081 | C134: Zavlažovač vahadlový nastavitelný XTR STALCO GARDEN | D134: =VLOOKUP(B134,'[1]CENÍK 2023_01'!$C:$L,10,0) -> ks | E134: 3 | F134: =VLOOKUP(B134,'[1]CENÍK 2023_01'!$C:$P,14,0) -> 832.2780486 | G134: 832.2780486 | H134: 2496.834146 | I134: 2496.834146 | K134: R5.1 | L134: R-92625 | M134: POLICE
A135: 131 | B135: S101410084 | C135: Zavlažovač vahadlový nastavitelný s kovovou základnou XTR STALCO GARDEN | D135: =VLOOKUP(B135,'[1]CENÍK 2023_01'!$C:$L,10,0) -> ks | E135: 3 | F135: =VLOOKUP(B135,'[1]CENÍK 2023_01'!$C:$P,14,0) -> 1117.069427 | G135: 1117.069427 | H135: 3351.20828 | I135: 3351.20828 | K135: R5.1 | L135: R-92625 | M135: POLICE
A136: 132 | B136: S101610230 | C136: Naviják na hadici automatický 25 m EXP STALCO GARDEN | D136: =VLOOKUP(B136,'[1]CENÍK 2023_01'!$C:$L,10,0) -> ks | E136: 1 | F136: =VLOOKUP(B136,'[1]CENÍK 2023_01'!$C:$P,14,0) -> 2623.315451 | G136: 2623.315451 | H136: 2623.315451 | I136: 2623.315451 | K136: R5 | L136: R-92677 | M136: SYSTÉMOVÁ HRAZDA
A137: 133 | B137: S101610233 | C137: Naviják na hadici automatický 35 m EXP STALCO GARDEN | D137: =VLOOKUP(B137,'[1]CENÍK 2023_01'!$C:$L,10,0) -> ks | E137: 1 | F137: =VLOOKUP(B137,'[1]CENÍK 2023_01'!$C:$P,14,0) -> 3546.043362 | G137: 3546.043362 | H137: 3546.043362 | I137: 3546.043362 | K137: R5 | L137: R-92677 | M137: SYSTÉMOVÁ HRAZDA
A138: 134 | B138: S101010600 | C138: Rychlospojka průchozí 1/2" BRS STALCO GARDEN | D138: =VLOOKUP(B138,'[1]CENÍK 2023_01'!$C:$L,10,0) -> ks | E138: 6 | F138: =VLOOKUP(B138,'[1]CENÍK 2023_01'!$C:$P,14,0) -> 105.6391211 | G138: 105.6391211 | H138: 633.8347269 | I138: 633.8347269 | K138: R6 | L138: R-90265 | M138: HÁČEK
A139: 135 | B139: S101010603 | C139: Rychlospojka s funkcí stop 1/2" BRS STALCO GARDEN | D139: =VLOOKUP(B139,'[1]CENÍK 2023_01'!$C:$L,10,0) -> ks | E139: 6 | F139: =VLOOKUP(B139,'[1]CENÍK 2023_01'!$C:$P,14,0) -> 105.0910453 | G139: =F139-(F139*$I$3) -> 105.0910453 | H139: 630.5462718 | I139: 630.5462718 | K139: R6 | L139: R-90265 | M139: HÁČEK
A140: 136 | B140: S101010606 | C140: Rychlospojka průchozí 3/4" BRS STALCO GARDEN | D140: =VLOOKUP(B140,'[1]CENÍK 2023_01'!$C:$L,10,0) -> ks | E140: 6 | F140: =VLOOKUP(B140,'[1]CENÍK 2023_01'!$C:$P,14,0) -> 136.5299571 | G140: 136.5299571 | H140: =F140*E140 -> 819.1797427 | I140: =H140-(H140*$I$3) -> 819.1797427 | K140: R6 | L140: R-90265 | M140: HÁČEK
A141: 137 | B141: S101010609 | C141: Rychlospojka s funkcí stop 3/4" BRS STALCO GARDEN | D141: =VLOOKUP(B141,'[1]CENÍK 2023_01'!$C:$L,10,0) -> ks | E141: 6 | F141: =VLOOKUP(B141,'[1]CENÍK 2023_01'!$C:$P,14,0) -> 127.6935415 | G141: 127.6935415 | H141: 766.1612489 | I141: 766.1612489 | K141: R6 | L141: R-90265 | M141: HÁČEK
A142: 138 | B142: S101010630 | C142: Spojka hadicová opravná 1/2" BRS STALCO GARDEN | D142: =VLOOKUP(B142,'[1]CENÍK 2023_01'!$C:$L,10,0) -> ks | E142: 6 | F142: =VLOOKUP(B142,'[1]CENÍK 2023_01'!$C:$P,14,0) -> 103.3632595 | G142: 103.3632595 | H142: 620.1795568 | I142: 620.1795568 | K142: R6 | L142: R-90265 | M142: HÁČEK
A143: 139 | B143: S101010633 | C143: Spojka hadicová opravná 3/4" BRS STALCO GARDEN | D143: =VLOOKUP(B143,'[1]CENÍK 2023_01'!$C:$L,10,0) -> ks | E143: 6 | F143: =VLOOKUP(B143,'[1]CENÍK 2023_01'!$C:$P,14,0) -> 176.2923049 | G143: 176.2923049 | H143: 1057.753829 | I143: 1057.753829 | K143: R6 | L143: R-90265 | M143: HÁČEK
A144: 140 | B144: S101010642 | C144: Konektor dvojitý BRS STALCO GARDEN | D144: =VLOOKUP(B144,'[1]CENÍK 2023_01'!$C:$L,10,0) -> ks | E144: 6 | F144: =VLOOKUP(B144,'[1]CENÍK 2023_01'!$C:$P,14,0) -> 55.78035515 | G144: 55.78035515 | H144: 334.6821309 | I144: 334.6821309 | K144: R6 | L144: R-90265 | M144: HÁČEK
A145: 141 | B145: S101010645 | C145: Konektor trojitý BRS STALCO GARDEN | D145: =VLOOKUP(B145,'[1]CENÍK 2023_01'!$C:$L,10,0) -> ks | E145: 6 | F145: =VLOOKUP(B145,'[1]CENÍK 2023_01'!$C:$P,14,0) -> 124.1866691 | G145: 124.1866691 | H145: 745.1200144 | I145: 745.1200144 | K145: R6 | L145: R-90265 | M145: HÁČEK
A146: 142 | B146: S101010651 | C146: Adaptér s vnitřním závitem 3/4" BRS STALCO GARDEN | D146: =VLOOKUP(B146,'[1]CENÍK 2023_01'!$C:$L,10,0) -> ks | E146: 6 | F146: =VLOOKUP(B146,'[1]CENÍK 2023_01'!$C:$P,14,0) -> 48.05402217 | G146: 48.05402217 | H146: 288.324133 | I146: 288.324133 | K146: R6 | L146: R-90265 | M146: HÁČEK
A147: 143 | B147: S101010654 | C147: Adaptér s vnitřním závitem 1" BRS STALCO GARDEN | D147: =VLOOKUP(B147,'[1]CENÍK 2023_01'!$C:$L,10,0) -> ks | E147: 6 | F147: =VLOOKUP(B147,'[1]CENÍK 2023_01'!$C:$P,14,0) -> 55.57741207 | G147: 55.57741207 | H147: 333.4644724 | I147: 333.4644724 | K147: R6 | L147: R-90265 | M147: HÁČEK
A148: 144 | B148: S101010657 | C148: Adaptér s vnitřním závitem 1/2" - 3/4" BRS STALCO GARDEN | D148: =VLOOKUP(B148,'[1]CENÍK 2023_01'!$C:$L,10,0) -> ks | E148: 6 | F148: =VLOOKUP(B148,'[1]CENÍK 2023_01'!$C:$P,14,0) -> 80.10453289 | G148: 80.10453289 | H148: 480.6271973 | I148: 480.6271973 | K148: R6 | L148: R-90265 | M148: HÁČEK
A149: 145 | B149: S101010660 | C149: Adaptér s vnitřním závitem 3/4" - 1" BRS STALCO GARDEN | D149: =VLOOKUP(B149,'[1]CENÍK 2023_01'!$C:$L,10,0) -> ks | E149: 6 | F149: =VLOOKUP(B149,'[1]CENÍK 2023_01'!$C:$P,14,0) -> 110.7199461 | G149: 110.7199461 | H149: 664.3196767 | I149: 664.3196767 | K149: R6 | L149: R-90265 | M149: HÁČEK
A150: 146 | B150: S101010666 | C150: Adaptér s vnějším závitem 3/4" BRS STALCO GARDEN | D150: =VLOOKUP(B150,'[1]CENÍK 2023_01'!$C:$L,10,0) -> ks | E150: 6 | F150: =VLOOKUP(B150,'[1]CENÍK 2023_01'!$C:$P,14,0) -> 48.05402217 | G150: 48.05402217 | H150: 288.324133 | I150: 288.324133 | K150: R6 | L150: R-90265 | M150: HÁČEK
A151: 147 | B151: S101010672 | C151: Rozdělovač dvojitý BRS STALCO GARDEN | D151: =VLOOKUP(B151,'[1]CENÍK 2023_01'!$C:$L,10,0) -> ks | E151: 4 | F151: =VLOOKUP(B151,'[1]CENÍK 2023_01'!$C:$P,14,0) -> 264.3576687 | G151: 264.3576687 | H151: 1057.430675 | I151: 1057.430675 | K151: R6 | L151: R-90265 | M151: HÁČEK X 2
A152: 148 | B152: S101210600 | C152: Tryska nastavitelná BRS STALCO GARDEN | D152: =VLOOKUP(B152,'[1]CENÍK 2023_01'!$C:$L,10,0) -> ks | E152: 6 | F152: =VLOOKUP(B152,'[1]CENÍK 2023_01'!$C:$P,14,0) -> 125.7865682 | G152: 125.7865682 | H152: 754.7194095 | I152: 754.7194095 | K152: R6 | L152: R-90265 | M152: HÁČEK
A153: 149 | B153: S101210603 | C153: Pistole zavlažovací nastavitelná BRS STALCO GARDEN | D153: =VLOOKUP(B153,'[1]CENÍK 2023_01'!$C:$L,10,0) -> ks | E153: 6 | F153: =VLOOKUP(B153,'[1]CENÍK 2023_01'!$C:$P,14,0) -> 415.6855798 | G153: 415.6855798 | H153: 2494.113479 | I153: 2494.113479 | K153: R6 | L153: R-90265 | M153: HÁČEK
A154: 150 | B154: S101210606 | C154: Pistole zavlažovací 8 funkcí BRS STALCO GARDEN | D154: =VLOOKUP(B154,'[1]CENÍK 2023_01'!$C:$L,10,0) -> ks | E154: 4 | F154: =VLOOKUP(B154,'[1]CENÍK 2023_01'!$C:$P,14,0) -> 413.7640748 | G154: 413.7640748 | H154: 1655.056299 | I154: 1655.056299 | K154: R6 | L154: R-90265 | M154: HÁČEK
A155: 151 | B155: S101010700 | C155: Konektor s vnitřním závitem 1/2" BRS GK STALCO GARDEN | D155: =VLOOKUP(B155,'[1]CENÍK 2023_01'!$C:$L,10,0) -> ks | E155: 6 | F155: =VLOOKUP(B155,'[1]CENÍK 2023_01'!$C:$P,14,0) -> 74.62506973 | G155: 74.62506973 | H155: 447.7504184 | I155: 447.7504184 | K155: R6 | L155: R-90265 | M155: HÁČEK
A156: 152 | B156: S101010703 | C156: Konektor s vnitřním závitem 3/4" BRS GK STALCO GARDEN | D156: =VLOOKUP(B156,'[1]CENÍK 2023_01'!$C:$L,10,0) -> ks | E156: 6 | F156: =VLOOKUP(B156,'[1]CENÍK 2023_01'!$C:$P,14,0) -> 74.62506973 | G156: 74.62506973 | H156: 447.7504184 | I156: 447.7504184 | K156: R6 | L156: R-90265 | M156: HÁČEK
A157: 153 | B157: S101010706 | C157: Konektor s vnitřním závitem 1" BRS GK STALCO GARDEN | D157: =VLOOKUP(B157,'[1]CENÍK 2023_01'!$C:$L,10,0) -> ks | E157: 6 | F157: =VLOOKUP(B157,'[1]CENÍK 2023_01'!$C:$P,14,0) -> 76.60376476 | G157: 76.60376476 | H157: 459.6225886 | I157: 459.6225886 | K157: R6 | L157: R-90265 | M157: HÁČEK
A158: 154 | B158: S101010709 | C158: Konektor s vnějším závitem 1/2" BRS GK STALCO GARDEN | D158: =VLOOKUP(B158,'[1]CENÍK 2023_01'!$C:$L,10,0) -> ks | E158: 6 | F158: =VLOOKUP(B158,'[1]CENÍK 2023_01'!$C:$P,14,0) -> 71.70413897 | G158: 71.70413897 | H158: 430.2248338 | I158: 430.2248338 | K158: R6 | L158: R-90265 | M158: HÁČEK
A159: 155 | B159: S101010712 | C159: Konektor s vnějším závitem 3/4" BRS GK STALCO GARDEN | D159: =VLOOKUP(B159,'[1]CENÍK 2023_01'!$C:$L,10,0) -> ks | E159: 6 | F159: =VLOOKUP(B159,'[1]CENÍK 2023_01'!$C:$P,14,0) -> 73.682834 | G159: 73.682834 | H159: 442.097004 | I159: 442.097004 | K159: R6 | L159: R-90265 | M159: HÁČEK
A160: 156 | B160: S101010715 | C160: Konektor s vnějším závitem 1" BRS GK STALCO GARDEN | D160: =VLOOKUP(B160,'[1]CENÍK 2023_01'!$C:$L,10,0) -> ks | E160: 6 | F160: =VLOOKUP(B160,'[1]CENÍK 2023_01'!$C:$P,14,0) -> 75.66152903 | G160: 75.66152903 | H160: 453.9691742 | I160: 453.9691742 | K160: R6 | L160: R-90265 | M160: HÁČEK
A161: 157 | B161: S101010718 | C161: Spojka s konektorem na hadici 1/2" BRS GK STALCO GARDEN | D161: =VLOOKUP(B161,'[1]CENÍK 2023_01'!$C:$L,10,0) -> ks | E161: 6 | F161: =VLOOKUP(B161,'[1]CENÍK 2023_01'!$C:$P,14,0) -> 77.64022406 | G161: 77.64022406 | H161: 465.8413444 | I161: 465.8413444 | K161: R6 | L161: R-90265 | M161: HÁČEK
A162: 158 | B162: S101010721 | C162: Spojka s konektorem na hadici 3/4" BRS GK STALCO GARDEN | D162: =VLOOKUP(B162,'[1]CENÍK 2023_01'!$C:$L,10,0) -> ks | E162: 6 | F162: =VLOOKUP(B162,'[1]CENÍK 2023_01'!$C:$P,14,0) -> 79.61891909 | G162: 79.61891909 | H162: 477.7135145 | I162: 477.7135145 | K162: R6 | L162: R-90265 | M162: HÁČEK
A163: 159 | B163: S101010724 | C163: Spojka s konektorem na hadici 1" BRS GK STALCO GARDEN | D163: =VLOOKUP(B163,'[1]CENÍK 2023_01'!$C:$L,10,0) -> ks | E163: 6 | F163: =VLOOKUP(B163,'[1]CENÍK 2023_01'!$C:$P,14,0) -> 99.68854012 | G163: 99.68854012 | H163: 598.1312407 | I163: 598.1312407 | K163: R6 | L163: R-90265 | M163: HÁČEK
A164: 160 | B164: S101010727 | C164: Spojka s otočným konektorem na hadici 1/2" BRS GK STALCO GARDEN | D164: =VLOOKUP(B164,'[1]CENÍK 2023_01'!$C:$L,10,0) -> ks | E164: 6 | F164: =VLOOKUP(B164,'[1]CENÍK 2023_01'!$C:$P,14,0) -> 128.5209534 | G164: 128.5209534 | H164: 771.1257205 | I164: 771.1257205 | K164: R6 | L164: R-90265 | M164: HÁČEK
A165: 161 | B165: S101010730 | C165: Spojka s otočným konektorem na hadici 3/4" BRS GK STALCO GARDEN | D165: =VLOOKUP(B165,'[1]CENÍK 2023_01'!$C:$L,10,0) -> ks | E165: 6 | F165: =VLOOKUP(B165,'[1]CENÍK 2023_01'!$C:$P,14,0) -> 133.7032499 | G165: 133.7032499 | H165: 802.2194996 | I165: 802.2194996 | K165: R6 | L165: R-90265 | M165: HÁČEK
A166: 162 | B166: S101010733 | C166: Spojka s otočným konektorem na hadici 1" BRS GK STALCO GARDEN | D166: =VLOOKUP(B166,'[1]CENÍK 2023_01'!$C:$L,10,0) -> ks | E166: 6 | F166: =VLOOKUP(B166,'[1]CENÍK 2023_01'!$C:$P,14,0) -> 139.9220057 | G166: 139.9220057 | H166: 839.5320344 | I166: 839.5320344 | K166: R6 | L166: R-90265 | M166: HÁČEK
A167: 163 | B167: S101010736 | C167: Spojka 3ramenná BRS GK STALCO GARDEN S101010736 | D167: =VLOOKUP(B167,'[1]CENÍK 2023_01'!$C:$L,10,0) -> ks | E167: 3 | F167: =VLOOKUP(B167,'[1]CENÍK 2023_01'!$C:$P,14,0) -> 385.5628603 | G167: 385.5628603 | H167: 1156.688581 | I167: 1156.688581 | K167: R6 | L167: R-90265 | M167: HÁČEK
A168: 164 | B168: S101010739 | C168: Spojka s konektorem pro rychlospojku BRS GK STALCO GARDEN | D168: =VLOOKUP(B168,'[1]CENÍK 2023_01'!$C:$L,10,0) -> ks | E168: 6 | F168: =VLOOKUP(B168,'[1]CENÍK 2023_01'!$C:$P,14,0) -> 79.14780123 | G168: 79.14780123 | H168: 474.8868074 | I168: 474.8868074 | K168: R6 | L168: R-90265 | M168: HÁČEK
A169: 165 | B169: S101010742 | C169: Konektor uzavírací BRS GK STALCO GARDEN | D169: =VLOOKUP(B169,'[1]CENÍK 2023_01'!$C:$L,10,0) -> ks | E169: 6 | F169: =VLOOKUP(B169,'[1]CENÍK 2023_01'!$C:$P,14,0) -> 88.75860566 | G169: 88.75860566 | H169: 532.551634 | I169: 532.551634 | K169: R6 | L169: R-90265 | M169: HÁČEK
A170: 166 | B170: S101610006 | C170: Závěs kovový na hadici XTR STALCO GARDEN | D170: =VLOOKUP(B170,'[1]CENÍK 2023_01'!$C:$L,10,0) -> ks | E170: 5 | F170: =VLOOKUP(B170,'[1]CENÍK 2023_01'!$C:$P,14,0) -> 166.2700777 | G170: 166.2700777 | H170: 831.3503885 | I170: 831.3503885 | K170: R6 | L170: R-90261 | M170: HÁČEK X 2
A171: 167 | B171: S101610012 | C171: Naviják kovový na hadici 60 m XTR STALCO GARDEN | D171: =VLOOKUP(B171,'[1]CENÍK 2023_01'!$C:$L,10,0) -> ks | E171: 1 | F171: =VLOOKUP(B171,'[1]CENÍK 2023_01'!$C:$P,14,0) -> 2657.548801 | G171: 2657.548801 | H171: 2657.548801 | I171: 2657.548801 | K171: R6 | M171: PODESTA
A172: 168 | B172: S101610015 | C172: Vozík na hadice kovový 60 m XTR STALCO GARDEN | D172: =VLOOKUP(B172,'[1]CENÍK 2023_01'!$C:$L,10,0) -> ks | E172: 1 | F172: =VLOOKUP(B172,'[1]CENÍK 2023_01'!$C:$P,14,0) -> 3127.810366 | G172: 3127.810366 | H172: 3127.810366 | I172: 3127.810366 | K172: R6 | M172: PODESTA
A173: 169 | B173: S103210406 | C173: Postřikovač tlakový ruční 1,5l STR STALCO GARDEN | D173: =VLOOKUP(B173,'[1]CENÍK 2023_01'!$C:$L,10,0) -> ks | E173: 4 | F173: =VLOOKUP(B173,'[1]CENÍK 2023_01'!$C:$P,14,0) -> 106.0278028 | G173: 106.0278028 | H173: 424.1112113 | I173: 424.1112113 | K173: R7.1 | L173: R-92625 | M173: POLICE
A174: 170 | B174: S103210409 | C174: Postřikovač tlakový ruční 2l STR STALCO GARDEN | D174: =VLOOKUP(B174,'[1]CENÍK 2023_01'!$C:$L,10,0) -> ks | E174: 4 | F174: =VLOOKUP(B174,'[1]CENÍK 2023_01'!$C:$P,14,0) -> 114.5784321 | G174: 114.5784321 | H174: 458.3137284 | I174: 458.3137284 | K174: R7.1 | L174: R-92625 | M174: POLICE
A175: 171 | B175: S103210415 | C175: Postřikovač tlakový 5l STR STALCO GARDEN | D175: =VLOOKUP(B175,'[1]CENÍK 2023_01'!$C:$L,10,0) -> ks | E175: 4 | F175: =VLOOKUP(B175,'[1]CENÍK 2023_01'!$C:$P,14,0) -> 392.4738831 | G175: 392.4738831 | H175: 1569.895532 | I175: 1569.895532 | K175: R7.3 | L175: R-92625 | M175: POLICE
A176: 172 | B176: S103210418 | C176: Postřikovač tlakový 8l STR STALCO GARDEN | D176: =VLOOKUP(B176,'[1]CENÍK 2023_01'!$C:$L,10,0) -> ks | E176: 4 | F176: =VLOOKUP(B176,'[1]CENÍK 2023_01'!$C:$P,14,0) -> 435.2270294 | G176: 435.2270294 | H176: 1740.908117 | I176: 1740.908117 | K176: R7 | L176: R-92625 | M176: PODESTA
A177: 173 | B177: S103210206 | C177: Postřikovač tlakový ruční 1,5l EXP STALCO GARDEN | D177: =VLOOKUP(B177,'[1]CENÍK 2023_01'!$C:$L,10,0) -> ks | E177: 4 | F177: =VLOOKUP(B177,'[1]CENÍK 2023_01'!$C:$P,14,0) -> 235.9973676 | G177: 235.9973676 | H177: 943.9894704 | I177: 943.9894704 | K177: R7.1 | L177: R-92625 | M177: POLICE
A178: 174 | B178: S103210209 | C178: Postřikovač tlakový ruční 2l EXP STALCO GARDEN | D178: =VLOOKUP(B178,'[1]CENÍK 2023_01'!$C:$L,10,0) -> ks | E178: 4 | F178: =VLOOKUP(B178,'[1]CENÍK 2023_01'!$C:$P,14,0) -> 253.0986261 | G178: 253.0986261 | H178: 1012.394504 | I178: 1012.394504 | K178: R7.1 | L178: R-92625 | M178: POLICE
A179: 175 | B179: S103210215 | C179: Postřikovač tlakový 5l EXP STALCO GARDEN | D179: =VLOOKUP(B179,'[1]CENÍK 2023_01'!$C:$L,10,0) -> ks | E179: 4 | F179: =VLOOKUP(B179,'[1]CENÍK 2023_01'!$C:$P,14,0) -> 714.8326062 | G179: 714.8326062 | H179: 2859.330425 | I179: 2859.330425 | K179: R7.3 | L179: R-92625 | M179: POLICE
A180: 176 | B180: S103210218 | C180: Postřikovač tlakový 8l EXP STALCO GARDEN | D180: =VLOOKUP(B180,'[1]CENÍK 2023_01'!$C:$L,10,0) -> ks | E180: 4 | F180: =VLOOKUP(B180,'[1]CENÍK 2023_01'!$C:$P,14,0) -> 774.687011 | G180: 774.687011 | H180: 3098.748044 | I180: 3098.748044 | K180: R7 | L180: R-92625 | M180: PODESTA
A181: 177 | B181: S103410203 | C181: Sada těsnění NBR pro postřikovače EXP STALCO GARDEN | D181: =VLOOKUP(B181,'[1]CENÍK 2023_01'!$C:$L,10,0) -> ks | E181: 3 | F181: =VLOOKUP(B181,'[1]CENÍK 2023_01'!$C:$P,14,0) -> 63.34900983 | G181: 63.34900983 | H181: 190.0470295 | I181: 190.0470295 | K181: R7 | L181: R-90261 | M181: HÁČEK
A182: 178 | B182: S103410212 | C182: Trubice teleskopická s tryskou pro postřikovače EXP STALCO GARDEN | D182: =VLOOKUP(B182,'[1]CENÍK 2023_01'!$C:$L,10,0) -> ks | E182: 3 | F182: =VLOOKUP(B182,'[1]CENÍK 2023_01'!$C:$P,14,0) -> 122.6829416 | G182: 122.6829416 | H182: 368.0488247 | I182: 368.0488247 | K182: R7.2 | L182: R-92625 | M182: POLICE
A183: 179 | B183: S103410221 | C183: Ventil s rukojetí a hadicí 150 cm pro postřikovače EXP STALCO GARDEN | D183: =VLOOKUP(B183,'[1]CENÍK 2023_01'!$C:$L,10,0) -> ks | E183: 2 | F183: =VLOOKUP(B183,'[1]CENÍK 2023_01'!$C:$P,14,0) -> 158.9301743 | G183: 158.9301743 | H183: 317.8603486 | I183: 317.8603486 | K183: R7.2 | L183: R-92625 | M183: POLICE
A184: 180 | B184: S103410230 | C184: Pumpa pro postřikovače EXP STALCO GARDEN | D184: =VLOOKUP(B184,'[1]CENÍK 2023_01'!$C:$L,10,0) -> ks | E184: 1 | F184: =VLOOKUP(B184,'[1]CENÍK 2023_01'!$C:$P,14,0) -> 173.9867171 | G184: 173.9867171 | H184: 173.9867171 | I184: 173.9867171 | K184: R7.2 | L184: R-92625 | M184: POLICE
A185: 181 | B185: S103410403 | C185: Sada těsnění NBR pro postřikovače STR STALCO GARDEN | D185: =VLOOKUP(B185,'[1]CENÍK 2023_01'!$C:$L,10,0) -> ks | E185: 3 | F185: =VLOOKUP(B185,'[1]CENÍK 2023_01'!$C:$P,14,0) -> 63.34900983 | G185: 63.34900983 | H185: 190.0470295 | I185: 190.0470295 | K185: R7 | L185: R-90261 | M185: HÁČEK
A186: 182 | B186: S103410412 | C186: Trubice teleskopická s tryskou pro postřikovače STR STALCO GARDEN | D186: =VLOOKUP(B186,'[1]CENÍK 2023_01'!$C:$L,10,0) -> ks | E186: 3 | F186: =VLOOKUP(B186,'[1]CENÍK 2023_01'!$C:$P,14,0) -> 122.6829416 | G186: 122.6829416 | H186: 368.0488247 | I186: 368.0488247 | K186: R7.2 | L186: R-92625 | M186: POLICE
A187: 183 | B187: S103410421 | C187: Ventril s rukojetí a hadicí 150 cm pro postřikovače STR STALCO GARDEN | D187: =VLOOKUP(B187,'[1]CENÍK 2023_01'!$C:$L,10,0) -> ks | E187: 2 | F187: =VLOOKUP(B187,'[1]CENÍK 2023_01'!$C:$P,14,0) -> 144.9889309 | G187: 144.9889309 | H187: 289.9778619 | I187: 289.9778619 | K187: R7.2 | L187: R-92625 | M187: POLICE
A188: 184 | B188: S103410503 | C188: Kryt proti herbicidům - univerzální STALCO GARDEN | D188: =VLOOKUP(B188,'[1]CENÍK 2023_01'!$C:$L,10,0) -> ks | E188: 5 | F188: =VLOOKUP(B188,'[1]CENÍK 2023_01'!$C:$P,14,0) -> 83.64746016 | G188: 83.64746016 | H188: 418.2373008 | I188: 418.2373008 | K188: R7.2 | L188: R-92625 | M188: POLICE
A189: 185 | B189: S104010406 | C189: Nůžky zahradnické STR STALCO GARDEN | D189: =VLOOKUP(B189,'[1]CENÍK 2023_01'!$C:$L,10,0) -> ks | E189: 10 | F189: =VLOOKUP(B189,'[1]CENÍK 2023_01'!$C:$P,14,0) -> 235.5966194 | G189: 235.5966194 | H189: 2355.966194 | I189: 2355.966194 | K189: R8 | L189: R-90265 | M189: HÁČEK
A190: 186 | B190: S104010412 | C190: Nůžky zahradnické STR STALCO GARDEN | D190: =VLOOKUP(B190,'[1]CENÍK 2023_01'!$C:$L,10,0) -> ks | E190: 12 | F190: =VLOOKUP(B190,'[1]CENÍK 2023_01'!$C:$P,14,0) -> 235.5966194 | G190: 235.5966194 | H190: 2827.159433 | I190: 2827.159433 | K190: R8 | L190: R-90265 | M190: HÁČEK
A191: 187 | B191: S104010415 | C191: Nůžky zahradnické kovadlinové STR STALCO GARDEN | D191: =VLOOKUP(B191,'[1]CENÍK 2023_01'!$C:$L,10,0) -> ks | E191: 12 | F191: =VLOOKUP(B191,'[1]CENÍK 2023_01'!$C:$P,14,0) -> 240.1273237 | G191: 240.1273237 | H191: 2881.527884 | I191: 2881.527884 | K191: R8 | L191: R-90265 | M191: HÁČEK
A192: 188 | B192: S104010421 | C192: Nůžky zahradnické STR STALCO GARDEN | D192: =VLOOKUP(B192,'[1]CENÍK 2023_01'!$C:$L,10,0) -> ks | E192: 10 | F192: =VLOOKUP(B192,'[1]CENÍK 2023_01'!$C:$P,14,0) -> 253.7194363 | G192: 253.7194363 | H192: 2537.194363 | I192: 2537.194363 | K192: R8 | L192: R-90265 | M192: HÁČEK
A193: 189 | B193: S104010424 | C193: Nůžky zahradnické kovadlinové STR STALCO GARDEN | D193: =VLOOKUP(B193,'[1]CENÍK 2023_01'!$C:$L,10,0) -> ks | E193: 10 | F193: =VLOOKUP(B193,'[1]CENÍK 2023_01'!$C:$P,14,0) -> 258.2501405 | G193: 258.2501405 | H193: 2582.501405 | I193: 2582.501405 | K193: R8 | L193: R-90265 | M193: HÁČEK
A194: 190 | B194: S104020406 | C194: Nůžky na větve 790mm STR STALCO GARDEN | D194: =VLOOKUP(B194,'[1]CENÍK 2023_01'!$C:$L,10,0) -> ks | E194: 4 | F194: =VLOOKUP(B194,'[1]CENÍK 2023_01'!$C:$P,14,0) -> 362.4563376 | G194: 362.4563376 | H194: 1449.82535 | I194: 1449.82535 | K194: R8 | L194: R-90265 | M194: HÁČEK
A195: 191 | B195: S104020409 | C195: Nůžky na větve teleskopické 650-990mm STR STALCO GARDEN | D195: =VLOOKUP(B195,'[1]CENÍK 2023_01'!$C:$L,10,0) -> ks | E195: 4 | F195: =VLOOKUP(B195,'[1]CENÍK 2023_01'!$C:$P,14,0) -> 489.3160558 | G195: 489.3160558 | H195: 1957.264223 | I195: 1957.264223 | K195: R8 | L195: R-90265 | M195: HÁČEK
A196: 192 | B196: S104020412 | C196: Nůžky na větve STR 730mm STALCO GARDEN | D196: =VLOOKUP(B196,'[1]CENÍK 2023_01'!$C:$L,10,0) -> ks | E196: 4 | F196: =VLOOKUP(B196,'[1]CENÍK 2023_01'!$C:$P,14,0) -> 416.8247882 | G196: 416.8247882 | H196: 1667.299153 | I196: 1667.299153 | K196: R8 | L196: R-90265 | M196: HÁČEK
A197: 193 | B197: S104020415 | C197: Nůžky na větve teleskopické 630-950mm STR STALCO GARDEN | D197: =VLOOKUP(B197,'[1]CENÍK 2023_01'!$C:$L,10,0) -> ks | E197: 4 | F197: =VLOOKUP(B197,'[1]CENÍK 2023_01'!$C:$P,14,0) -> 543.6845064 | G197: 543.6845064 | H197: 2174.738026 | I197: 2174.738026 | K197: R8 | L197: R-90265 | M197: HÁČEK
A198: 194 | B198: S104020421 | C198: Nůžky na větve kovadlinové 790mm STR STALCO GARDEN | D198: =VLOOKUP(B198,'[1]CENÍK 2023_01'!$C:$L,10,0) -> ks | E198: 4 | F198: =VLOOKUP(B198,'[1]CENÍK 2023_01'!$C:$P,14,0) -> 425.8861967 | G198: 425.8861967 | H198: 1703.544787 | I198: 1703.544787 | K198: R8 | L198: R-90265 | M198: HÁČEK
A199: 195 | B199: S104020424 | C199: Nůžky na větve kovadlinové STR teleskopické 650-990mm STALCO GARDEN | D199: =VLOOKUP(B199,'[1]CENÍK 2023_01'!$C:$L,10,0) -> ks | E199: 4 | F199: =VLOOKUP(B199,'[1]CENÍK 2023_01'!$C:$P,14,0) -> 552.7459148 | G199: 552.7459148 | H199: 2210.983659 | I199: 2210.983659 | K199: R8 | L199: R-90265 | M199: HÁČEK
A200: 196 | B200: S104040406 | C200: Nůžky na živý plot 630mm STR STALCO GARDEN | D200: =VLOOKUP(B200,'[1]CENÍK 2023_01'!$C:$L,10,0) -> ks | E200: 5 | F200: =VLOOKUP(B200,'[1]CENÍK 2023_01'!$C:$P,14,0) -> 380.5791545 | G200: 380.5791545 | H200: 1902.895772 | I200: 1902.895772 | K200: R8 | L200: R-90265 | M200: HÁČEK
A201: 197 | B201: S104040409 | C201: Nůžky na živý plot teleskopické 690-860mm STR STALCO GARDEN | D201: =VLOOKUP(B201,'[1]CENÍK 2023_01'!$C:$L,10,0) -> ks | E201: 5 | F201: =VLOOKUP(B201,'[1]CENÍK 2023_01'!$C:$P,14,0) -> 498.3774642 | G201: 498.3774642 | H201: 2491.887321 | I201: 2491.887321 | K201: R8 | L201: R-90265 | M201: HÁČEK
... 98 more rows

Sheet Regál 1
A1: Regál 1
C3: Specifikace | H3: rabat | I3: 0 | K3: Prvky regálu a umístění produktu
A4: Poz. | B4: Kat. číslo | C4: Popis | D4: jm | E4: Množství | F4: Kat. cena bez DPH | G4: Cena po odečtení rabatu | H4: Celkem | I4: Celkem po odečtení rabatu | J4: Obrázek | K4: Místo na regálu | L4: Kat. číslo | M4: Cílová pozice
A5: 1 | B5: S102081215 | C5: Hadice zahradní 1/2" 15m STR STALCO GARDEN | D5: ks | E5: 3 | F5: 226.3702464 | G5: =F5-(F5*$I$3) -> 226.3702464 | H5: =F5*E5 -> 679.1107392 | I5: =H5-(H5*$I$3) -> 679.1107392 | K5: R1.1 | L5: R-92625 | M5: POLICE
A6: 2 | B6: S102081220 | C6: Hadice zahradní 1/2" 20m STR STALCO GARDEN | D6: ks | E6: 3 | F6: 301.8269952 | G6: =F6-(F6*$I$3) -> 301.8269952 | H6: =F6*E6 -> 905.4809856 | I6: =H6-(H6*$I$3) -> 905.4809856 | K6: R1.1 | L6: R-92625 | M6: POLICE
A7: 3 | B7: S102081230 | C7: Hadice zahradní 1/2" 30m STR STALCO GARDEN | D7: ks | E7: 3 | F7: 452.7404928 | G7: 452.7404928 | H7: =F7*E7 -> 1358.221478 | I7: 1358.221478 | K7: R1.1 | L7: R-92625 | M7: POLICE
A8: 4 | B8: S102081250 | C8: Hadice zahradní 1/2" 50m STR STALCO GARDEN | D8: ks | E8: 2 | F8: 754.567488 | G8: 754.567488 | H8: 1509.134976 | I8: 1509.134976 | K8: R1.2 | L8: R-92625 | M8: POLICE
A9: 5 | B9: S102083420 | C9: Hadice zahradní 3/4" 20m STR STALCO GARDEN | D9: ks | E9: 3 | F9: 558.93888 | G9: 558.93888 | H9: 1676.81664 | I9: 1676.81664 | K9: R1.3 | L9: R-92625 | M9: POLICE
A10: 6 | B10: S102083430 | C10: Hadice zahradní 3/4" 30m STR STALCO GARDEN | D10: ks | E10: 3 | F10: 838.40832 | G10: 838.40832 | H10: 2515.22496 | I10: 2515.22496 | K10: R1.3 | L10: R-92625 | M10: POLICE
A11: 7 | B11: S102083450 | C11: Hadice zahradní 3/4" 50m STR STALCO GARDEN | D11: ks | E11: 2 | F11: 1397.3472 | G11: 1397.3472 | H11: 2794.6944 | I11: 2794.6944 | K11: R1 | M11: POLICE
A12: 8 | B12: S102081010 | C12: Hadice zahradní 1" 10m STR STALCO GARDEN | D12: ks | E12: 1 | F12: 449.0142336 | G12: 449.0142336 | H12: 449.0142336 | I12: 449.0142336 | K12: R1 | M12: POLICE
A13: 9 | B13: S102081020 | C13: Hadice zahradní 1" 20m STR STALCO GARDEN | D13: ks | E13: 1 | F13: 898.0284672 | G13: 898.0284672 | H13: 898.0284672 | I13: 898.0284672 | K13: R1 | M13: POLICE
A14: 10 | B14: S102061220 | C14: Hadice zahradní 1/2" 20m EXP STALCO GARDEN | D14: ks | E14: 3 | F14: 454.6036224 | G14: 454.6036224 | H14: 1363.810867 | I14: 1363.810867 | K14: R1.2 | L14: R-92625 | M14: POLICE
A15: 11 | B15: S102061230 | C15: Hadice zahradní 1/2" 30m EXP STALCO GARDEN | D15: ks | E15: 3 | F15: 681.9054336 | G15: 681.9054336 | H15: 2045.716301 | I15: 2045.716301 | K15: R1.2 | L15: R-92625 | M15: POLICE
A16: 12 | B16: S102061250 | C16: Hadice zahradní 1/2" 50m EXP STALCO GARDEN | D16: ks | E16: 3 | F16: 1136.509056 | G16: 1136.509056 | H16: 3409.527168 | I16: 3409.527168 | K16: R1.3 | L16: R-92625 | M16: POLICE
A17: 13 | B17: S102063420 | C17: Hadice zahradní 3/4" 20m EXP STALCO GARDEN | D17: ks | E17: 3 | F17: 674.4529152 | G17: 674.4529152 | H17: 2023.358746 | I17: 2023.358746 | K17: R1.3 | L17: R-92625 | M17: POLICE
A18: 14 | B18: S102063430 | C18: Hadice zahradní 3/4" 30m EXP STALCO GARDEN | D18: ks | E18: 3 | F18: 1011.679373 | G18: 1011.679373 | H18: 3035.038118 | I18: 3035.038118 | K18: R1 | M18: PODESTA
A19: 15 | B19: S102063450 | C19: Hadice zahradní 3/4" 50m EXP STALCO GARDEN | D19: ks | E19: 2 | F19: 1686.132288 | G19: 1686.132288 | H19: 3372.264576 | I19: 3372.264576 | K19: R1 | M19: PODESTA
C20: SUMA | E20: 38 | H20: =SUM(H5:H19) -> 28035.44266 | I20: =SUM(I5:I19) -> 28035.44266
C32: Specifikace regálových prvků | H32: rabat | I32: 0
A33: Poz. | B33: Kat. číslo | C33: Popis | D33: MJ | E33: Množství | F33: cena | G33: Cena po odečtení rabatu | H33: Celkem | I33: Celkem po odečtení rabatu
A34: 1 | B34: R-90305 | C34: CENOVÁ LIŠTA STŘÍBRNÁ 950mm BU | D34: ks | E34: 4 | F34: 26.30808 | G34: =F34-(F34*$I$32) -> 26.30808 | H34: =F34*E34 -> 105.23232 | I34: =H34-(H34*$I$32) -> 105.23232
A35: 2 | B35: R-92625 | C35: POLICE PLECHOVÁ 40CM 1M R-92625 | D35: ks | E35: 3 | F35: 1320.604518 | G35: =F35-(F35*$I$32) -> 1320.604518 | H35: 3961.813554 | I35: =H35-(H35*$I$32) -> 3961.813554
A36: 3 | B36: R-92627 | C36: ZARÁŽKA POLICE 1000MM R-92627 | D36: ks | E36: 4 | F36: 583.23432 | G36: 583.23432 | H36: 2332.93728 | I36: 2332.93728
A37: 4 | B37: R-92630 | C37: ROZDĚLOVAČ POLICE S E ZARÁŽKOU 40CM R-92630 | D37: ks | E37: 4 | F37: 219.234 | G37: 219.234 | H37: 876.936 | I37: 876.936
A38: 5 | B38: R-91084 | C38: GRAFIKA LOGO STALCO DOC ENOVÉ LIŠTY (POZADÍ POD CENOVKY) R-91084 BU | D38: ks | E38: 4 | F38: 27.17064 | G38: 27.17064 | H38: 108.68256 | I38: 108.68256
A39: 6 | B39: SZKIELET | D39: bal. | F39: 0 | G39: =F39-(F39*$I$32) -> 0 | H39: 0 | I39: =H39-(H39*$I$32) -> 0
C40: SUMA | E40: 19 | H40: =SUM(H34:H39) -> 7385.601714 | I40: =SUM(I34:I39) -> 7385.601714

Sheet Regál 2
A1: Regál 2
C3: Specifikace | H3: rabat | I3: 0 | K3: Prvky regálu a umístění produktu
A4: Poz. | B4: Kat. číslo | C4: Popis | D4: MJ | E4: Množství | F4: Kat. cena bez DPH | G4: Cena po odečtení rabatu | H4: Celkem | I4: Celkem po odečtení rabatu | J4: Obrázek | K4: Místo na regálu | L4: Kat. číslo | M4: Cílová pozice
A5: 1 | B5: S102041220 | C5: Hadice zahradní ATS 1/2" 20m EXP STALCO GARDEN | D5: ks | E5: 3 | F5: 566.3913984 | G5: =F5-(F5*$I$3) -> 566.3913984 | H5: =F5*E5 -> 1699.174195 | I5: =H5-(H5*$I$3) -> 1699.174195 | K5: R2.1 | L5: R-92625 | M5: PÓŁKA
A6: 2 | B6: S102041230 | C6: Hadice zahradní ATS 1/2" 30m EXP STALCO GARDEN | D6: ks | E6: 3 | F6: 849.5870976 | G6: =F6-(F6*$I$3) -> 849.5870976 | H6: =F6*E6 -> 2548.761293 | I6: =H6-(H6*$I$3) -> 2548.761293 | K6: R2.1 | L6: R-92625 | M6: PÓŁKA
A7: 3 | B7: S102041250 | C7: Hadice zahradní ATS 1/2" 50m EXP STALCO GARDEN | D7: ks | E7: 3 | F7: 1415.978496 | G7: 1415.978496 | H7: 4247.935488 | I7: 4247.935488 | K7: R.1.3 | L7: R-92625 | M7: PÓŁKA
A8: 4 | B8: S102043420 | C8: Hadice zahradní ATS 3/4" 20m EXP STALCO GARDEN | D8: ks | E8: 3 | F8: 894.302208 | G8: 894.302208 | H8: 2682.906624 | I8: 2682.906624 | K8: R2.1 | L8: R-92625 | M8: PÓŁKA
A9: 5 | B9: S102043430 | C9: Hadice zahradní ATS 3/4" 30m EXP STALCO GARDEN | D9: ks | E9: 2 | F9: 1341.453312 | G9: 1341.453312 | H9: 2682.906624 | I9: 2682.906624 | K9: R2 | M9: PODEST
A10: 6 | B10: S102043450 | C10: Hadice zahradní ATS 3/4" 50m EXP STALCO GARDEN | D10: ks | E10: 2 | F10: 2235.75552 | G10: 2235.75552 | H10: 4471.51104 | I10: 4471.51104 | K10: R2 | M10: PODEST
A11: 7 | B11: S102021220 | C11: Hadice zahradní ATS 1/2" 20m XTR STALCO GARDEN | D11: ks | E11: 3 | F11: 715.4417664 | G11: 715.4417664 | H11: 2146.325299 | I11: 2146.325299 | K11: R2.2 | L11: R-92625 | M11: PÓŁKA
A12: 8 | B12: S102021230 | C12: Hadice zahradní ATS 1/2" 30m XTR STALCO GARDEN | D12: ks | E12: 3 | F12: 1073.16265 | G12: 1073.16265 | H12: 3219.487949 | I12: 3219.487949 | K12: R2.2 | L12: R-92625 | M12: PÓŁKA
A13: 9 | B13: S102021250 | C13: Hadice zahradní ATS 1/2" 50m XTR STALCO GARDEN | D13: ks | E13: 3 | F13: 1788.604416 | G13: 1788.604416 | H13: 5365.813248 | I13: 5365.813248 | K13: R2.3 | L13: R-92625 | M13: PÓŁKA
A14: 10 | B14: S102023420 | C14: Hadice zahradní ATS 3/4" 20m XTR STALCO GARDEN | D14: ks | E14: 3 | F14: 1136.509056 | G14: 1136.509056 | H14: 3409.527168 | I14: 3409.527168 | K14: R2.2 | L14: R-92625 | M14: PÓŁKA
A15: 11 | B15: S102023430 | C15: Hadice zahradní ATS 3/4" 30m XTR STALCO GARDEN | D15: ks | E15: 3 | F15: 1704.763584 | G15: 1704.763584 | H15: 5114.290752 | I15: 5114.290752 | K15: R2 | M15: PODEST
A16: 12 | B16: S102023450 | C16: Hadice zahradní ATS 3/4" 50m XTR STALCO GARDEN | D16: ks | E16: 2 | F16: 2841.27264 | G16: 2841.27264 | H16: 5682.54528 | I16: 5682.54528 | K16: R2 | M16: PODEST
C17: SUMA | E17: =SUM(E5:E16) -> 33 | H17: =SUM(H5:H16) -> 43271.18496 | I17: =SUM(I5:I16) -> 43271.18496
C29: Specifikace regálových prvků | H29: rabat | I29: 0
A30: Poz. | B30: Kat. číslo | C30: Popis | D30: MJ | E30: Množství | F30: cena | G30: Cena po odečtení rabatu | H30: Celkem | I30: Celkem po odečtení rabatu
A31: 1 | B31: R-90305 | C31: CENOVÁ LIŠTA STŘÍBNRÁ 950mm BU | D31: ks | E31: 4 | F31: 26.30808 | G31: =F31-(F31*$I$29) -> 26.30808 | H31: =F31*E31 -> 105.23232 | I31: =H31-(H31*$I$29) -> 105.23232
A32: 2 | B32: R-92625 | C32: POLICE PLECHOVÁ 40CM 1M R-92625 | D32: ks | E32: 3 | F32: 1320.604518 | G32: =F32-(F32*$I$29) -> 1320.604518 | H32: 3961.813554 | I32: =H32-(H32*$I$29) -> 3961.813554
A33: 3 | B33: R-92627 | C33: OHRANIČENÍ POLICE 1000MM R-92627 | D33: ks | E33: 4 | F33: 583.23432 | G33: 583.23432 | H33: 2332.93728 | I33: 2332.93728
A34: 4 | B34: R-92630 | C34: POLICOVÁ PŘÍČKA S OMEZOVAČI 40CM R-92630 | D34: ks | E34: 4 | F34: 219.234 | G34: 219.234 | H34: 876.936 | I34: 876.936
A35: 5 | B35: R-91084 | C35: GRAFIKA LOGO STALCO DO CENOVÉ LIŠTY (POZADÍ POD CENOVKY) R-91084 BU | D35: ks | E35: 4 | F35: 27.17064 | G35: 27.17064 | H35: 108.68256 | I35: 108.68256
A36: 6 | B36: SZKIELET | D36: bal. | F36: 0 | G36: =F36-(F36*$I$29) -> 0 | H36: 0 | I36: =H36-(H36*$I$29) -> 0
C37: SUMA | E37: =SUM(E31:E36) -> 19 | H37: =SUM(H31:H36) -> 7385.601714 | I37: =SUM(I31:I36) -> 7385.601714

Sheet Regál 3
A1: Regál 3
C3: Specifikace | H3: rabat | I3: 0 | K3: Prvky regálu a umístění produktu
A4: Poz. | B4: Kat. číslo | C4: Popis | D4: MJ | E4: Množství | F4: Kat. cena bez DPH | G4: Cena po odečtení rabatu | H4: Celkem | I4: Celkem po odečtení rabatu | J4: Obrázek | K4: Místo na regálu | L4: Kat. číslo | M4: Cílová pozice
A5: 1 | B5: S101010400 | C5: Rychlospojka průchozí 1/2" STR STALCO GARDEN | D5: ks | E5: 30 | F5: 18.3589937 | G5: =F5-(F5*$I$3) -> 18.3589937 | H5: =F5*E5 -> 550.769811 | I5: =H5-(H5*$I$3) -> 550.769811 | K5: R3.1 | L5: R-92625 | M5: POLICE
A6: 2 | B6: S101010403 | C6: Rychlospojka s funkcí stop 1/2" STR STALCO GARDEN | D6: ks | E6: 30 | F6: 20.71008977 | G6: =F6-(F6*$I$3) -> 20.71008977 | H6: =F6*E6 -> 621.3026932 | I6: =H6-(H6*$I$3) -> 621.3026932 | K6: R3.1 | L6: R-92625 | M6: POLICE
A7: 3 | B7: S101010406 | C7: Rychlospojka průchozí 3/4" STR STALCO GARDEN | D7: ks | E7: 30 | F7: 22.75452114 | G7: 22.75452114 | H7: 682.6356343 | I7: 682.6356343 | K7: R3.1 | L7: R-92625 | M7: POLICE
A8: 4 | B8: S101010409 | C8: Rychlospojka s funkcí stop 3/4" STR STALCO GARDEN | D8: ks | E8: 30 | F8: 24.79895251 | G8: 24.79895251 | H8: 743.9685754 | I8: 743.9685754 | K8: R3.1 | L8: R-92625 | M8: POLICE
A9: 5 | B9: S101010430 | C9: Spojka hadicová opravná 1/2" STR STALCO GARDEN | D9: ks | E9: 30 | F9: 14.57679567 | G9: 14.57679567 | H9: 437.30387 | I9: 437.30387 | K9: R3.1 | L9: R-92625 | M9: POLICE
A10: 6 | B10: S101010433 | C10: Spojka hadicová opravná 3/4" STR STALCO GARDEN | D10: ks | E10: 30 | F10: 18.6656584 | G10: 18.6656584 | H10: 559.9697521 | I10: 559.9697521 | K10: R3.1 | L10: R-92625 | M10: POLICE
A11: 7 | B11: S101010436 | C11: Spojka hadicová opravná 1/2" - 3/4" STR STALCO GARDEN | D11: ks | E11: 30 | F11: 18.6656584 | G11: 18.6656584 | H11: 559.9697521 | I11: 559.9697521 | K11: R3.1 | L11: R-92625 | M11: POLICE
A12: 8 | B12: S101010442 | C12: Konektor dvojitý STR STALCO GARDEN | D12: ks | E12: 30 | F12: 11.00707246 | G12: 11.00707246 | H12: 330.2121739 | I12: 330.2121739 | K12: R3.2 | L12: R-92625 | M12: POLICE
A13: 9 | B13: S101010445 | C13: Konektor trojitý STR STALCO GARDEN | D13: ks | E13: 30 | F13: 14.37235253 | G13: 14.37235253 | H13: 431.1705758 | I13: 431.1705758 | K13: R3.2 | L13: R-92625 | M13: POLICE
A14: 10 | B14: S101010448 | C14: Adaptér s vnitřním závitem 1/2" STR STALCO GARDEN | D14: ks | E14: 30 | F14: 14.24676603 | G14: 14.24676603 | H14: 427.4029809 | I14: 427.4029809 | K14: R3.2 | L14: R-92625 | M14: POLICE
A15: 11 | B15: S101010451 | C15: Adaptér s vnitřním závitem 3/4" STR STALCO GARDEN | D15: ks | E15: 30 | F15: 15.99913578 | G15: 15.99913578 | H15: 479.9740733 | I15: 479.9740733 | K15: R3.2 | L15: R-92625 | M15: POLICE
A16: 12 | B16: S101010454 | C16: Adaptér s vnitřním závitem 1" STR STALCO GARDEN | D16: ks | E16: 30 | F16: 19.06578283 | G16: 19.06578283 | H16: 571.9734849 | I16: 571.9734849 | K16: R3.2 | L16: R-92625 | M16: POLICE
A17: 13 | B17: S101010457 | C17: Adaptér s vnitřním závitem 1/2" - 3/4" STR STALCO GARDEN | D17: ks | E17: 30 | F17: 19.50387527 | G17: 19.50387527 | H17: 585.116258 | I17: 585.116258 | K17: R3.2 | L17: R-92625 | M17: POLICE
A18: 14 | B18: S101010460 | C18: Adaptér s vnitřním závitem 3/4" - 1" STR STALCO GARDEN | D18: ks | E18: 30 | F18: 23.00861476 | G18: 23.00861476 | H18: 690.2584427 | I18: 690.2584427 | K18: R3.2 | L18: R-92625 | M18: POLICE
A19: 15 | B19: S101010463 | C19: Adaptér s vnějším závitem 1/2" STR STALCO GARDEN | D19: ks | E19: 30 | F19: 9.159052536 | G19: 9.159052536 | H19: 274.7715761 | I19: 274.7715761 | K19: R3.2 | L19: R-92625 | M19: POLICE
A20: 16 | B20: S101010466 | C20: Adaptér s vnějším závitem 3/4" STR STALCO GARDEN | D20: ks | E20: 30 | F20: 9.159052536 | G20: 9.159052536 | H20: 274.7715761 | I20: 274.7715761 | K20: R3.3 | L20: R-92625 | M20: POLICE
A21: 17 | B21: S101010472 | C21: Rozdělovač dvojitý s ventily STR STALCO GARDEN | D21: ks | E21: 6 | F21: 147.6018805 | G21: 147.6018805 | H21: 885.6112829 | I21: 885.6112829 | K21: R3 | L21: R-90265 | M21: HÁČEK
A22: 18 | B22: S101210412 | C22: Zavlažovací tryska, sada 4 ks 1/2" STR STALCO GARDEN | D22: ks | E22: 6 | F22: 68.68149127 | G22: 68.68149127 | H22: 412.0889476 | I22: 412.0889476 | K22: R3 | L22: R-90265 | M22: HÁČEK
A23: 19 | B23: S101210415 | C23: Zavlažovací tryska, sada 4 ks 3/4" STR STALCO GARDEN | D23: ks | E23: 6 | F23: 78.44293119 | G23: 78.44293119 | H23: 470.6575872 | I23: 470.6575872 | K23: R3 | L23: R-90265 | M23: HÁČEK
A24: 20 | B24: S101210430 | C24: Pistole zavlažovací nastavitelná STR STALCO GARDEN | D24: ks | E24: 6 | F24: 106.8441237 | G24: 106.8441237 | H24: 641.0647422 | I24: 641.0647422 | K24: R3 | L24: R-90265 | M24: HÁČEK
A25: 21 | B25: S101210433 | C25: Pistole zavlažovací 8 funkcí STR STALCO GARDEN | D25: ks | E25: 4 | F25: 129.8177218 | G25: 129.8177218 | H25: 519.2708873 | I25: 519.2708873 | K25: R3 | L25: R-90265 | M25: HÁČEK
A26: 22 | B26: S101410400 | C26: Zavlažovač na trnu STR STALCO GARDEN | D26: ks | E26: 6 | F26: 50.2540228 | G26: 50.2540228 | H26: 301.5241368 | I26: 301.5241368 | K26: R3 | L26: R-90265 | M26: HÁČEK
A27: 23 | B27: S101410412 | C27: Zavlažovač 8 funkcí na trnu STR STALCO GARDEN | D27: ks | E27: 4 | F27: 92.01133268 | G27: 92.01133268 | H27: 368.0453307 | I27: 368.0453307 | K27: R3 | L27: R-90265 | M27: HÁČEK
A28: 24 | B28: S101410415 | C28: Zavlažovač 8 funkcí na podstavci STR STALCO GARDEN | D28: ks | E28: 4 | F28: 18.6888 | G28: 18.6888 | H28: 74.7552 | I28: 74.7552 | K28: R3 | L28: R-90265 | M28: HÁČEK
A29: 25 | B29: S101410430 | C29: Zavlažovač otočný, 3ramnný na trnu STR STALCO GARDEN | D29: ks | E29: 6 | F29: 58.82243696 | G29: 58.82243696 | H29: 352.9346217 | I29: 352.9346217 | K29: R3 | L29: R-90265 | M29: HÁČEK
A30: 26 | B30: S101410451 | C30: Zavlažovač pulzující na trnu STR STALCO GARDEN S101410451 | D30: ks | E30: 5 | F30: 80.29760478 | G30: 80.29760478 | H30: 401.4880239 | I30: 401.4880239 | K30: R3 | L30: R-90265 | M30: HÁČEK
A31: 27 | B31: S101410481 | C31: Zavlažovač vahadlový STR STALCO GARDEN | D31: ks | E31: 3 | F31: 323.1666358 | G31: 323.1666358 | H31: 969.4999074 | I31: 969.4999074 | K31: R3 | L31: R-90265 | M31: HÁČEK
A32: 28 | B32: S101010500 | C32: Rychlospojka průchozí 3/4" STR HF STALCO GARDEN | D32: ks | E32: 30 | F32: 24.92599932 | G32: 24.92599932 | H32: 747.7799796 | I32: 747.7799796 | K32: R3.3 | L32: R-92625 | M32: POLICE
A33: 29 | B33: S101010503 | C33: Rychlospojka s funkcí stop 3/4" STR HF STALCO GARDEN | D33: ks | E33: 30 | F33: 28.72280043 | G33: 28.72280043 | H33: 861.684013 | I33: 861.684013 | K33: R3.3 | L33: R-92625 | M33: POLICE
A34: 30 | B34: S101010506 | C34: Rychlospojka průchozí 1" STR HF STALCO GARDEN | D34: ks | E34: 20 | F34: 56.24960852 | G34: 56.24960852 | H34: 1124.99217 | I34: 1124.99217 | K34: R3.3 | L34: R-92625 | M34: POLICE
A35: 31 | B35: S101010509 | C35: Rychlospojka s funkcí stop 1" STR HF STALCO GARDEN | D35: ks | E35: 20 | F35: 58.14800908 | G35: 58.14800908 | H35: 1162.960182 | I35: 1162.960182 | K35: R3.3 | L35: R-92625 | M35: POLICE
A36: 32 | B36: S101010533 | C36: Spojka hadicová opravná 1" STR HF STALCO GARDEN | D36: ks | E36: 20 | F36: 49.60520657 | G36: 49.60520657 | H36: 992.1041313 | I36: 992.1041313 | K36: R3.3 | L36: R-92625 | M36: POLICE
A37: 33 | B37: S101010536 | C37: Spojka hadicová opravná 3/4" - 1" STR HF STALCO GARDEN | D37: ks | E37: 20 | F37: 42.96080462 | G37: 42.96080462 | H37: 859.2160923 | I37: 859.2160923 | K37: R3.4 | L37: R-92625 | M37: POLICE
A38: 34 | B38: S101010542 | C38: Konektor dvojitý STR HF STALCO GARDEN | D38: ks | E38: 30 | F38: 23.02759876 | G38: 23.02759876 | H38: 690.8279629 | I38: 690.8279629 | K38: R3.4 | L38: R-92625 | M38: POLICE
A39: 35 | B39: S101010545 | C39: Konektor dvojitý s redukcí STR HF STALCO GARDEN | D39: ks | E39: 30 | F39: 21.41395829 | G39: 21.41395829 | H39: 642.4187486 | I39: 642.4187486 | K39: R3.4 | L39: R-92625 | M39: POLICE
A40: 36 | B40: S101010548 | C40: Konektor trojitý STR HF STALCO GARDEN | D40: ks | E40: 20 | F40: 32.51960155 | G40: 32.51960155 | H40: 650.392031 | I40: 650.392031 | K40: R3.4 | L40: R-92625 | M40: POLICE
A41: 37 | B41: S101010551 | C41: Konektor 3ramenný s redukcí STR HF STALCO GARDEN | D41: ks | E41: 20 | F41: 26.15995968 | G41: 26.15995968 | H41: 523.1991936 | I41: 523.1991936 | K41: R3.4 | L41: R-92625 | M41: POLICE
A42: 38 | B42: S101010554 | C42: Adaptér s vnitřním závitem 1" STR HF STALCO GARDEN | D42: ks | E42: 20 | F42: 23.02759876 | G42: 23.02759876 | H42: 460.5519752 | I42: 460.5519752 | K42: R3.4 | L42: R-92625 | M42: POLICE
A43: 39 | B43: S101010560 | C43: Adaptér s vnitřním závitem 3/4" - 1" STR HF STALCO GARDEN | D43: ks | E43: 20 | F43: 30.62120099 | G43: 30.62120099 | H43: 612.4240198 | I43: 612.4240198 | K43: R3.4 | L43: R-92625 | M43: POLICE
A44: 40 | B44: S101010566 | C44: Adaptér s vnějším závitem 3/4" STR HF STALCO GARDEN | D44: ks | E44: 30 | F44: 14.48479625 | G44: 14.48479625 | H44: 434.5438876 | I44: 434.5438876 | K44: R3.4 | L44: R-92625 | M44: POLICE
A45: 41 | B45: S101610212 | C45: Naviják na hadici 45 m EXP STALCO GARDEN | D45: ks | E45: 4 | F45: 650.434047 | G45: 650.434047 | H45: 2601.736188 | I45: 2601.736188 | K45: R3 | M45: PODESTA
C46: SUMA | E46: 850 | H46: =SUM(H5:H45) -> 25983.34247 | I46: =SUM(I5:I45) -> 25983.34247
C58: Specifikace regálových prvků | H58: rabat | I58: 0
A59: Poz. | B59: Kat. číslo | C59: Popis | D59: MJ | E59: Množství | F59: cena | G59: Cena po odečtení rabatu | H59: Celkem | I59: Celkem po odečtení rabatu
A60: 1 | B60: R-90265 | C60: DVOJITÝ HÁČEK S CENOVKOU | D60: ks | E60: 12 | F60: 78.78048 | G60: =F60-(F60*$I$58) -> 78.78048 | H60: =F60*E60 -> 945.36576 | I60: =H60-(H60*$I$58) -> 945.36576
A61: 2 | B61: R-90305 | C61: CENOVÁ LIŠTA STŘÍBNRÁ 950mm BU | D61: ks | E61: 5 | F61: 26.30808 | G61: =F61-(F61*$I$58) -> 26.30808 | H61: 131.5404 | I61: =H61-(H61*$I$58) -> 131.5404
A62: 3 | B62: R-90315 | C62: CENOVÁ LIŠTA TRANSPARENTNÍ 65MM BU | D62: ks | E62: 12 | F62: 2.73144 | G62: 2.73144 | H62: 32.77728 | I62: 32.77728
A63: 4 | B63: R-92625 | C63: POLICE PLECHOVÁ 40CM 1M R-92625 | D63: ks | E63: 4 | F63: 1320.604518 | G63: 1320.604518 | H63: 5282.418072 | I63: 5282.418072
A64: 5 | B64: R-91084 | C64: GRAFIKA LOGO STALCO DO CENOVÉ LIŠTY (POZADÍ POD CENOVKY) R-91084 BU | D64: ks | E64: 5 | F64: 27.17064 | G64: 27.17064 | H64: 135.8532 | I64: 135.8532
A65: 6 | B65: R-91832 | C65: TYČ FI 5 934 x 81MM PRO NOSNÍKY ZA CENOVOU LIŠTU R-91832 | D65: ks | E65: 4 | F65: 65.4108 | G65: 65.4108 | H65: 261.6432 | I65: 261.6432
A66: 7 | B66: SZKIELET | D66: bal. | F66: 0 | G66: =F66-(F66*$I$58) -> 0 | H66: 0 | I66: =H66-(H66*$I$58) -> 0
C67: SUMA | E67: 42 | H67: =SUM(H60:H66) -> 6789.597912 | I67: =SUM(I60:I66) -> 6789.597912

Sheet Regál 4
A1: Regál 4
C3: Specifikace | H3: rabat | I3: 0 | K3: Prvky regálu a umístění produktu
A4: Poz. | B4: Kat. číslo | C4: Popis | D4: MJ | E4: Množství | F4: Kat. cena bez DPH | G4: Cena po odečtení rabatu | H4: Celkem | I4: Celkem po odečtení rabatu | J4: Obrázek | K4: Místo na regálu | L4: Kat. číslo | M4: Cílová pozice
A5: 1 | B5: S101010200 | C5: Rychlospojka průchozí 1/2" EXP STALCO GARDEN | D5: ks | E5: 6 | F5: 46.72152548 | G5: =F5-(F5*$I$3) -> 46.72152548 | H5: =F5*E5 -> 280.3291529 | I5: =H5-(H5*$I$3) -> 280.3291529 | K5: R4 | L5: R-90265 | M5: HÁČEK
A6: 2 | B6: S101010203 | C6: Rychlospojka s funkcí stop 1/2" EXP STALCO GARDEN | D6: ks | E6: 6 | F6: 50.53552755 | G6: =F6-(F6*$I$3) -> 50.53552755 | H6: =F6*E6 -> 303.2131653 | I6: =H6-(H6*$I$3) -> 303.2131653 | K6: R4 | L6: R-90265 | M6: HÁČEK
A7: 3 | B7: S101010206 | C7: Rychlospojka průchozí 3/4" EXP STALCO GARDEN | D7: ks | E7: 6 | F7: 49.58202703 | G7: 49.58202703 | H7: 297.4921622 | I7: 297.4921622 | K7: R4 | L7: R-90265 | M7: HÁČEK
A8: 4 | B8: S101010209 | C8: Rychlospojka s funkcí stop 3/4" EXP STALCO GARDEN | D8: ks | E8: 6 | F8: 53.39602911 | G8: 53.39602911 | H8: 320.3761747 | I8: 320.3761747 | K8: R4 | L8: R-90265 | M8: HÁČEK
A9: 5 | B9: S101010212 | C9: Rychlospojka s ventilem 1/2" EXP STALCO GARDEN | D9: ks | E9: 6 | F9: 67.69853691 | G9: 67.69853691 | H9: 406.1912215 | I9: 406.1912215 | K9: R4 | L9: R-90265 | M9: HÁČEK
A10: 6 | B10: S101010215 | C10: Rychlospojka s ventilem 3/4" EXP STALCO GARDEN | D10: ks | E10: 6 | F10: 69.60553795 | G10: 69.60553795 | H10: 417.6332277 | I10: 417.6332277 | K10: R4 | L10: R-90265 | M10: HÁČEK
A11: 7 | B11: S101010230 | C11: Spojka hadicová opravná 1/2" EXP STALCO GARDEN | D11: ks | E11: 6 | F11: 42.81217334 | G11: 42.81217334 | H11: 256.8730401 | I11: 256.8730401 | K11: R4 | L11: R-90265 | M11: HÁČEK
A12: 8 | B12: S101010233 | C12: Spojka hadicová opravná 3/4" EXP STALCO GARDEN | D12: ks | E12: 6 | F12: 53.68207927 | G12: 53.68207927 | H12: 322.0924756 | I12: 322.0924756 | K12: R4 | L12: R-90265 | M12: HÁČEK
A13: 9 | B13: S101010236 | C13: Spojka hadicová opravná 1/2" - 3/4" EXP STALCO GARDEN | D13: ks | E13: 6 | F13: 49.77272714 | G13: 49.77272714 | H13: 298.6363628 | I13: 298.6363628 | K13: R4 | L13: R-90265 | M13: HÁČEK
A14: 10 | B14: S101010242 | C14: Konektor dvojitý EXP STALCO GARDEN | D14: ks | E14: 6 | F14: 21.55122725 | G14: 21.55122725 | H14: 129.3073635 | I14: 129.3073635 | K14: R4 | L14: R-90265 | M14: HÁČEK
A15: 11 | B15: S101010245 | C15: Konektor trojitý EXP STALCO GARDEN | D15: ks | E15: 6 | F15: 24.98295134 | G15: 24.98295134 | H15: 149.897708 | I15: 149.897708 | K15: R4 | L15: R-90265 | M15: HÁČEK
A16: 12 | B16: S101010251 | C16: Adaptér s vnitřním závitem 3/4" EXP STALCO GARDEN | D16: ks | E16: 6 | F16: 28.89106575 | G16: 28.89106575 | H16: 173.3463945 | I16: 173.3463945 | K16: R4 | L16: R-90265 | M16: HÁČEK
A17: 13 | B17: S101010254 | C17: Adaptér s vnitřním závitem 1" EXP STALCO GARDEN | D17: ks | E17: 6 | F17: 29.93991632 | G17: 29.93991632 | H17: 179.6394979 | I17: 179.6394979 | K17: R4 | L17: R-90265 | M17: HÁČEK
A18: 14 | B18: S101010257 | C18: Adaptér s vnitřním závitem 1/2" - 3/4" EXP STALCO GARDEN | D18: ks | E18: 6 | F18: 32.89576794 | G18: 32.89576794 | H18: 197.3746076 | I18: 197.3746076 | K18: R4 | L18: R-90265 | M18: HÁČEK
A19: 15 | B19: S101010260 | C19: Adaptér s vnitřním závitem 3/4" - 1" EXP STALCO GARDEN | D19: ks | E19: 6 | F19: 38.80747116 | G19: 38.80747116 | H19: 232.844827 | I19: 232.844827 | K19: R4 | L19: R-90265 | M19: HÁČEK
A20: 16 | B20: S101010263 | C20: Adaptér s vnějším závitem 1/2" EXP STALCO GARDEN | D20: ks | E20: 6 | F20: 17.26814353 | G20: 17.26814353 | H20: 103.6088612 | I20: 103.6088612 | K20: R4 | L20: R-90265 | M20: HÁČEK
A21: 17 | B21: S101010266 | C21: Adaptér s vnějším závitem 3/4" EXP STALCO GARDEN | D21: ks | E21: 6 | F21: 18.99495789 | G21: 18.99495789 | H21: 113.9697473 | I21: 113.9697473 | K21: R4 | L21: R-90265 | M21: HÁČEK
A22: 18 | B22: S101010272 | C22: Rozdělovač dvojitý EXP STALCO GARDEN | D22: ks | E22: 4 | F22: 193.6145029 | G22: 193.6145029 | H22: 774.4580118 | I22: 774.4580118 | K22: R4 | L22: R-90265 | M22: HÁČEK
A23: 19 | B23: S101010275 | C23: Rozdělovač 4ramenný EXP STALCO GARDEN | D23: ks | E23: 4 | F23: 324.1853421 | G23: 324.1853421 | H23: 1296.741368 | I23: 1296.741368 | K23: R4 | L23: R-90265 | M23: HÁČEK
A24: 20 | B24: S101010281 | C24: Hodiny s průtokem vody EXP STALCO GARDEN | D24: ks | E24: 3 | F24: 354.6549213 | G24: 354.6549213 | H24: 1063.964764 | I24: 1063.964764 | K24: R4 | L24: R-90265 | M24: HÁČEK
A25: 21 | B25: S101210200 | C25: Tryska nastavitelná EXP STALCO GARDEN | D25: ks | E25: 6 | F25: 47.76312407 | G25: 47.76312407 | H25: 286.5787444 | I25: 286.5787444 | K25: R4 | L25: R-90265 | M25: HÁČEK
A26: 22 | B26: S101210212 | C26: Zavlažovací tryska 1/2", sada 4 ks EXP STALCO GARDEN | D26: ks | E26: 6 | F26: 179.2489656 | G26: 179.2489656 | H26: 1075.493794 | I26: 1075.493794 | K26: R4 | L26: R-90265 | M26: HÁČEK
A27: 23 | B27: S101210215 | C27: Zavlažovací tryska 3/4", sada 4 ks EXP STALCO GARDEN | D27: ks | E27: 6 | F27: 192.6080003 | G27: 192.6080003 | H27: 1155.648002 | I27: 1155.648002 | K27: R4 | L27: R-90265 | M27: HÁČEK
A28: 24 | B28: S101210230 | C28: Pistole zavlažovací nastavitelná EXP STALCO GARDEN | D28: ks | E28: 6 | F28: 201.2090227 | G28: 201.2090227 | H28: 1207.254136 | I28: 1207.254136 | K28: R4 | L28: R-90265 | M28: HÁČEK
A29: 25 | B29: S101210233 | C29: Pistole zavlažovací 7-funkcí EXP STALCO GARDEN | D29: ks | E29: 4 | F29: 205.967035 | G29: 205.967035 | H29: 823.8681401 | I29: 823.8681401 | K29: R4 | L29: R-90265 | M29: HÁČEK
A30: 26 | B30: S101210251 | C30: Pistole zavlažovací nastavitelná, kovová EXP STALCO GARDEN | D30: ks | E30: 6 | F30: 173.9184948 | G30: 173.9184948 | H30: 1043.510969 | I30: 1043.510969 | K30: R4 | L30: R-90265 | M30: HÁČEK
A31: 27 | B31: S101210254 | C31: Pistole zavlažovací 7 funkcí, kovová EXP STALCO GARDEN | D31: ks | E31: 4 | F31: 170.7394435 | G31: 170.7394435 | H31: 682.9577741 | I31: 682.9577741 | K31: R4 | L31: R-90265 | M31: HÁČEK
A32: 28 | B32: S101410215 | C32: Zavlačovač s 8 funkcemi na podstavci EXP STALCO GARDEN | D32: ks | E32: 5 | F32: 170.8146492 | G32: 170.8146492 | H32: 854.073246 | I32: 854.073246 | K32: R4 | L32: R-90265 | M32: HÁČEK
A33: 29 | B33: S101410230 | C33: Zavlažovač otočný 3ramenný na podstavci EXP STALCO GARDEN | D33: ks | E33: 3 | F33: 185.0188524 | G33: 185.0188524 | H33: 555.0565573 | I33: 555.0565573 | K33: R4.1 | L33: R-92625 | M33: POLICE
A34: 30 | B34: S101410251 | C34: Zavlažovač pulzující, kovový EXP STALCO GARDEN | D34: ks | E34: 5 | F34: 382.673002 | G34: 382.673002 | H34: 1913.36501 | I34: 1913.36501 | K34: R4 | L34: R-90265 | M34: HÁČEK
A35: 31 | B35: S101410281 | C35: Zavlažovač vahadlový EXP STALCO GARDEN | D35: ks | E35: 4 | F35: 498.2397443 | G35: 498.2397443 | H35: 1992.958977 | I35: 1992.958977 | K35: R4 | L35: R-90265 | M35: HÁČEK
A36: 32 | B36: S101410284 | C36: Zavlažovač vahadlový nastavitelný EXP STALCO GARDEN | D36: ks | E36: 4 | F36: 509.6703458 | G36: 509.6703458 | H36: 2038.681383 | I36: 2038.681383 | K36: R4 | L36: R-90265 | M36: HÁČEK
A37: 33 | B37: S101610203 | C37: Závěs na hadici EXP STALCO GARDEN | D37: ks | E37: 5 | F37: 78.909864 | G37: 78.909864 | H37: 394.54932 | I37: 394.54932 | K37: R4.1 | L37: R-92625 | M37: POLICE
A38: 34 | B38: S101610215 | C38: Vozík na hadice 60m EXP STALCO GARDEN | D38: ks | E38: 1 | F38: 1375.681212 | G38: 1375.681212 | H38: 1375.681212 | I38: 1375.681212 | K38: R4 | M38: PODESTA
A39: 35 | B39: S101610218 | C39: Vozík na hadice kovový 60 m EXP STALCO GARDEN | D39: ks | E39: 1 | F39: 1727.742942 | G39: 1727.742942 | H39: 1727.742942 | I39: 1727.742942 | K39: R4 | M39: PODESTA
A40: 36 | B40: S101210400 | C40: Tryska nastavitelná STR STALCO GARDEN | D40: ks | E40: 6 | F40: 35.39498115 | G40: 35.39498115 | H40: 212.3698869 | I40: 212.3698869 | K40: R4.1 | L40: R-92625 | M40: POLICE
A41: 37 | B41: S101210500 | C41: Tryska nastavitelná STR HF STALCO GARDEN | D41: ks | E41: 20 | F41: 45.5566401 | G41: 45.5566401 | H41: 911.1328021 | I41: 911.1328021 | K41: R4.1 | L41: R-92625 | M41: POLICE
C42: SUMA | E42: 179 | H42: =SUM(H5:H39) -> 24445.41034 | I42: =SUM(I5:I39) -> 24445.41034
C54: Specifikace regálových prvků | H54: rabat | I54: 0
A55: Poz. | B55: Kat. číslo | C55: Popis | D55: MJ | E55: Množství | F55: cena | G55: Cena po odečtení rabatu | H55: Celkem | I55: Celkem po odečtení rabatu
A56: 1 | B56: R-90265 | C56: DVOJITÝ HÁČEK S CENOVKOU | D56: ks | E56: 31 | F56: 78.78048 | G56: =F56-(F56*$I$54) -> 78.78048 | H56: =F56*E56 -> 2442.19488 | I56: =H56-(H56*$I$54) -> 2442.19488
A57: 2 | B57: R-90305 | C57: CENOVÁ LIŠTA STŘÍBNRÁ 950mm BU | D57: ks | E57: 2 | F57: 26.30808 | G57: =F57-(F57*$I$54) -> 26.30808 | H57: 52.61616 | I57: =H57-(H57*$I$54) -> 52.61616
A58: 3 | B58: R-90315 | C58: CENOVÁ LIŠTA TRANSPARENTNÍ 65MM BU | D58: ks | E58: 31 | F58: 2.73144 | G58: 2.73144 | H58: 84.67464 | I58: 84.67464
A59: 4 | B59: R-91084 | C59: GRAFIKA LOGO STALCO DO CENOVÉ LIŠTY (POZADÍ POD CENOVKY) R-91084 BU | D59: ks | E59: 2 | F59: 27.17064 | G59: 27.17064 | H59: 54.34128 | I59: 54.34128
A60: 5 | B60: R-91832 | C60: TYČ FI 5 934 x 81MM PRO NOSNÍKY ZA CENOVOU LIŠTU R-91832 | D60: ks | E60: 1 | F60: 65.4108 | G60: 65.4108 | H60: 65.4108 | I60: 65.4108
A61: 6 | B61: R-92625 | C61: POLICE PLECHOVÁ 40CM 1M R-92625 | D61: ks | E61: 1 | F61: 1320.604518 | G61: 1320.604518 | H61: 1320.604518 | I61: 1320.604518
A62: 7 | B62: SZKIELET | D62: bal. | F62: 0 | G62: =F62-(F62*$I$54) -> 0 | H62: 0 | I62: =H62-(H62*$I$54) -> 0
C63: SUMA | E63: 68 | H63: =SUM(H56:H62) -> 4019.842278 | I63: =SUM(I56:I62) -> 4019.842278

Sheet Regál 5
A1: Regál 5
C3: Specifikace | H3: rabat | I3: 0 | K3: Prvky regálu a umístění produktu
A4: Poz. | B4: Kat. číslo | C4: Popis | D4: MJ | E4: Množství | F4: Kat. cena bez DPH | G4: Cena po odečtení rabatu | H4: Celkem | I4: Celkem po odečtení rabatu | J4: Obrázek | K4: Místo na regálu | L4: Kat. číslo | M4: Cílová pozice
A5: 1 | B5: S101010000 | C5: Rychlospojka průchozí 1/2" XTR STALCO GARDEN | D5: ks | E5: 6 | F5: 84.40679987 | G5: =F5-(F5*$I$3) -> 84.40679987 | H5: =F5*E5 -> 506.4407992 | I5: =H5-(H5*$I$3) -> 506.4407992 | K5: R5 | L5: R-90265 | M5: HÁČEK
A6: 2 | B6: S101010003 | C6: Rychlospojka s funkcí stop 1/2" XTR STALCO GARDEN | D6: ks | E6: 6 | F6: 88.10344804 | G6: =F6-(F6*$I$3) -> 88.10344804 | H6: =F6*E6 -> 528.6206882 | I6: =H6-(H6*$I$3) -> 528.6206882 | K6: R5 | L6: R-90265 | M6: HÁČEK
A7: 3 | B7: S101010006 | C7: Rychlospojka průchozí 3/4" XTR STALCO GARDEN | D7: ks | E7: 6 | F7: 102.8020253 | G7: 102.8020253 | H7: 616.8121517 | I7: 616.8121517 | K7: R5 | L7: R-90265 | M7: HÁČEK
A8: 4 | B8: S101010009 | C8: Rychlospojka s funkcí stop 3/4" XTR STALCO GARDEN | D8: ks | E8: 6 | F8: 106.410658 | G8: 106.410658 | H8: 638.4639481 | I8: 638.4639481 | K8: R5 | L8: R-90265 | M8: HÁČEK
A9: 5 | B9: S101010012 | C9: Rychlospojka s ventilem 1/2" XTR STALCO GARDEN | D9: ks | E9: 6 | F9: 101.8338555 | G9: 101.8338555 | H9: 611.0031332 | I9: 611.0031332 | K9: R5 | L9: R-90265 | M9: HÁČEK
A10: 6 | B10: S101010015 | C10: Rychlospojka s ventilem 3/4" XTR STALCO GARDEN | D10: ks | E10: 6 | F10: 116.5324328 | G10: 116.5324328 | H10: 699.1945966 | I10: 699.1945966 | K10: R5 | L10: R-90265 | M10: HÁČEK
A11: 7 | B11: S101010030 | C11: Spojka hadicová opravná 1/2" XTR STALCO GARDEN | D11: ks | E11: 6 | F11: 123.8377137 | G11: 123.8377137 | H11: 743.0262821 | I11: 743.0262821 | K11: R5 | L11: R-90265 | M11: HÁČEK
A12: 8 | B12: S101010033 | C12: Spojka hadicová opravná 3/4" XTR STALCO GARDEN | D12: ks | E12: 6 | F12: 161.4203034 | G12: 161.4203034 | H12: 968.5218204 | I12: 968.5218204 | K12: R5 | L12: R-90265 | M12: HÁČEK
A13: 9 | B13: S101010036 | C13: Spojka hadicová opravná 1/2" - 3/4" XTR STALCO GARDEN | D13: ks | E13: 6 | F13: 143.1130934 | G13: 143.1130934 | H13: 858.6785605 | I13: 858.6785605 | K13: R5 | L13: R-90265 | M13: HÁČEK
A14: 10 | B14: S101010042 | C14: Adaptér dvojitý XTR STALCO GARDEN | D14: ks | E14: 6 | F14: 42.00939409 | G14: 42.00939409 | H14: 252.0563645 | I14: 252.0563645 | K14: R5 | L14: R-90265 | M14: HÁČEK
A15: 11 | B15: S101010045 | C15: Adaptér trojitý XTR STALCO GARDEN | D15: ks | E15: 6 | F15: 83.9312686 | G15: 83.9312686 | H15: 503.5876116 | I15: 503.5876116 | K15: R5 | L15: R-90265 | M15: HÁČEK
A16: 12 | B16: S101010051 | C16: Adaptér s vnitřním závitem 3/4" XTR STALCO GARDEN | D16: ks | E16: 6 | F16: 38.42109168 | G16: 38.42109168 | H16: 230.5265501 | I16: 230.5265501 | K16: R5 | L16: R-90265 | M16: HÁČEK
A17: 13 | B17: S101010054 | C17: Adaptér s vnitřním závitem 1" XTR STALCO GARDEN | D17: ks | E17: 6 | F17: 42.00939409 | G17: 42.00939409 | H17: 252.0563645 | I17: 252.0563645 | K17: R5 | L17: R-90265 | M17: HÁČEK
A18: 14 | B18: S101010057 | C18: Adaptér s vnitřním závitem 1/2" - 3/4" XTR STALCO GARDEN | D18: ks | E18: 6 | F18: 61.17618014 | G18: 61.17618014 | H18: 367.0570808 | I18: 367.0570808 | K18: R5 | L18: R-90265 | M18: HÁČEK
A19: 15 | B19: S101010060 | C19: Adaptér s vnitřním závitem 3/4" - 1" XTR STALCO GARDEN | D19: ks | E19: 6 | F19: 73.95403751 | G19: 73.95403751 | H19: 443.724225 | I19: 443.724225 | K19: R5 | L19: R-90265 | M19: HÁČEK
A20: 16 | B20: S101010066 | C20: Adaptér s vnějším závitem 3/4" XTR STALCO GARDEN | D20: ks | E20: 6 | F20: 42.97210937 | G20: 42.97210937 | H20: 257.8326562 | I20: 257.8326562 | K20: R5 | L20: R-90265 | M20: HÁČEK
A21: 17 | B21: S101010072 | C21: Rozdělovač dvojitý XTR STALCO GARDEN | D21: ks | E21: 4 | F21: 319.4343682 | G21: 319.4343682 | H21: 1277.737473 | I21: 1277.737473 | K21: R5 | L21: R-90265 | M21: HÁČEK
A22: 18 | B22: S101010075 | C22: Rozdělovač 4ramenný XTR STALCO GARDEN | D22: ks | E22: 4 | F22: 728.0603528 | G22: 728.0603528 | H22: 2912.241411 | I22: 2912.241411 | K22: R5 | L22: R-90265 | M22: HÁČEK
A23: 19 | B23: S101210000 | C23: Tryska rozprašovací nastavitelná XTR STALCO GARDEN | D23: ks | E23: 6 | F23: 160.0550311 | G23: 160.0550311 | H23: 960.3301869 | I23: 960.3301869 | K23: R5 | L23: R-90265 | M23: HÁČEK
A24: 20 | B24: S101210030 | C24: Pistole zavlažovací nastavitelná XTR STALCO GARDEN | D24: ks | E24: 6 | F24: 305.0617924 | G24: 305.0617924 | H24: 1830.370755 | I24: 1830.370755 | K24: R5 | L24: R-90265 | M24: HÁČEK
A25: 21 | B25: S101210033 | C25: Pistole zavlažovací 8 funkcí XTR STALCO GARDEN | D25: ks | E25: 4 | F25: 388.052508 | G25: 388.052508 | H25: 1552.210032 | I25: 1552.210032 | K25: R5 | L25: R-90265 | M25: HÁČEK
A26: 22 | B26: S101210039 | C26: Pistole zavlažovací 6 funkcí XTR STALCO GARDEN | D26: ks | E26: 3 | F26: 429.9596169 | G26: 429.9596169 | H26: 1289.878851 | I26: 1289.878851 | K26: R5 | L26: R-90265 | M26: HÁČEK
A27: 23 | B27: S101210039 | C27: Pistole zavlažovací 6 funkcí XTR STALCO GARDEN | D27: ks | E27: 1 | F27: 429.9596169 | G27: 429.9596169 | H27: 429.9596169 | I27: 429.9596169 | K27: R5 | L27: R-90440 | M27: HÁČEK
A28: 24 | B28: S101410042 | C28: Zavlažovač turbínový 6 funkcí XTR STALCO GARDEN | D28: ks | E28: 3 | F28: 726.7089018 | G28: 726.7089018 | H28: 2180.126705 | I28: 2180.126705 | K28: R5 | L28: R-90265 | M28: HÁČEK
A29: 25 | B29: S101410081 | C29: Zavlažovač vahadlový nastavitelný XTR STALCO GARDEN | D29: ks | E29: 3 | F29: 832.2780486 | G29: 832.2780486 | H29: 2496.834146 | I29: 2496.834146 | K29: R5.1 | L29: R-92625 | M29: POLICE
A30: 26 | B30: S101410084 | C30: Zavlažovač vahadlový nastavitelný s kovovou základnou XTR STALCO GARDEN | D30: ks | E30: 3 | F30: 1117.069427 | G30: 1117.069427 | H30: 3351.20828 | I30: 3351.20828 | K30: R5.1 | L30: R-92625 | M30: POLICE
A31: 27 | B31: S101610230 | C31: Naviják na hadici automatický 25 m EXP STALCO GARDEN | D31: ks | E31: 1 | F31: 2623.315451 | G31: 2623.315451 | H31: 2623.315451 | I31: 2623.315451 | K31: R5 | L31: R-92677 | M31: POLICE
A32: 28 | B32: S101610233 | C32: Naviják na hadici automatický 35 m EXP STALCO GARDEN | D32: ks | E32: 1 | F32: 3546.043362 | G32: 3546.043362 | H32: 3546.043362 | I32: 3546.043362 | K32: R5 | L32: R-92677 | M32: POLICE
C33: SUMA | E33: 135 | H33: =SUM(H5:H32) -> 32927.8591 | I33: =SUM(I5:I32) -> 32927.8591
C45: Specifikace regálových prvků | H45: rabat | I45: 0
A46: Poz. | B46: Kat. číslo | C46: Popis | D46: MJ | E46: Množství | F46: cena | G46: Cena po odečtení rabatu | H46: Celkem | I46: Celkem po odečtení rabatu
A47: 1 | B47: R-90265 | C47: DVOJITÝ HÁČEK S CENOVKOU | D47: ks | E47: 23 | F47: 78.78048 | G47: =F47-(F47*$I$45) -> 78.78048 | H47: =F47*E47 -> 1811.95104 | I47: =H47-(H47*$I$45) -> 1811.95104
A48: 2 | B48: R-90277 | C48: SYSTÉMOVÁ HRAZDA | D48: ks | E48: 2 | F48: 422.79816 | G48: =F48-(F48*$I$45) -> 422.79816 | H48: 845.59632 | I48: =H48-(H48*$I$45) -> 845.59632
A49: 3 | B49: R-90305 | C49: CENOVÁ LIŠTA STŘÍBNRÁ 950mm BU | D49: ks | E49: 2 | F49: 26.30808 | G49: 26.30808 | H49: 52.61616 | I49: 52.61616
A50: 4 | B50: R-90315 | C50: CENOVÁ LIŠTA TRANSPARENTNÍ 65MM BU | D50: ks | E50: 23 | F50: 2.73144 | G50: 2.73144 | H50: 62.82312 | I50: 62.82312
A51: 5 | B51: R-92658 | C51: GRAFIKA MAGNETICKÁ VIP (180MM X 295MM) R-92658 | D51: ks | E51: 1 | F51: 0 | G51: 0 | H51: 0 | I51: 0
A52: 6 | B52: R-92677 | C52: DRŽÁK NOSNÍKU PRO AUTOMATICKÉ NAVÍJEČE R-92677 | D52: ks | E52: 2 | F52: 179.56 | G52: 179.56 | H52: 359.12 | I52: 359.12
A53: 7 | B53: R-91084 | C53: GRAFIKA LOGO STALCO DO CENOVÉ LIŠTY (POZADÍ POD CENOVKY) R-91084 BU | D53: ks | E53: 2 | F53: 27.17064 | G53: 27.17064 | H53: 54.34128 | I53: 54.34128
A54: 8 | B54: R-91832 | C54: TYČ FI 5 934 x 81MM PRO NOSNÍKY ZA CENOVOU LIŠTU R-91832 | D54: ks | E54: 1 | F54: 65.4108 | G54: 65.4108 | H54: 65.4108 | I54: 65.4108
A55: 9 | B55: R-92625 | C55: POLICE PLECHOVÁ 40CM 1M R-92625 | D55: ks | E55: 1 | F55: 1320.604518 | G55: 1320.604518 | H55: 1320.604518 | I55: 1320.604518
A56: 10 | B56: R-90440 | C56: HÁK NA ELEKTRONÁŘADÍ | D56: ks | E56: 2 | F56: 27.81756 | G56: 27.81756 | H56: 55.63512 | I56: 55.63512
A57: 11 | B57: SZKIELET | D57: bal. | F57: 0 | G57: =F57-(F57*$I$45) -> 0 | H57: 0 | I57: =H57-(H57*$I$45) -> 0
C58: SUMA | E58: 59 | H58: =SUM(H47:H57) -> 4628.098358 | I58: =SUM(I47:I57) -> 4628.098358

Sheet Regál 6
B1: Regál 6
C3: Specifikace | H3: rabat | I3: 0 | K3: Prvky regálu a umístění produktu
A4: Poz. | B4: Kat. číslo | C4: Popis | D4: MJ | E4: Množství | F4: Kat. cena bez DPH | G4: Cena po odečtení rabatu | H4: Celkem | I4: Celkem po odečtení rabatu | J4: Obrázek | K4: Místo na regálu | L4: Kat. číslo | M4: Cílová pozice
A5: 1 | B5: S101010600 | C5: Rychlospojka průchozí 1/2" BRS STALCO GARDEN | D5: ks | E5: 6 | F5: 105.6391211 | G5: =F5-(F5*$I$3) -> 105.6391211 | H5: =F5*E5 -> 633.8347269 | I5: =H5-(H5*$I$3) -> 633.8347269 | K5: R6 | L5: R-90265 | M5: HÁČEK
A6: 2 | B6: S101010603 | C6: Rychlospojka s funkcí stop 1/2" BRS STALCO GARDEN | D6: ks | E6: 6 | F6: 105.0910453 | G6: =F6-(F6*$I$3) -> 105.0910453 | H6: =F6*E6 -> 630.5462718 | I6: =H6-(H6*$I$3) -> 630.5462718 | K6: R6 | L6: R-90265 | M6: HÁČEK
A7: 3 | B7: S101010606 | C7: Rychlospojka průchozí 3/4" BRS STALCO GARDEN | D7: ks | E7: 6 | F7: 136.5299571 | G7: 136.5299571 | H7: 819.1797427 | I7: 819.1797427 | K7: R6 | L7: R-90265 | M7: HÁČEK
A8: 4 | B8: S101010609 | C8: Rychlospojka s funkcí stop 3/4" BRS STALCO GARDEN | D8: ks | E8: 6 | F8: 127.6935415 | G8: 127.6935415 | H8: 766.1612489 | I8: 766.1612489 | K8: R6 | L8: R-90265 | M8: HÁČEK
A9: 5 | B9: S101010630 | C9: Spojka hadicová opravná 1/2" BRS STALCO GARDEN | D9: ks | E9: 6 | F9: 103.3632595 | G9: 103.3632595 | H9: 620.1795568 | I9: 620.1795568 | K9: R6 | L9: R-90265 | M9: HÁČEK
A10: 6 | B10: S101010633 | C10: Spojka hadicová opravná 3/4" BRS STALCO GARDEN | D10: ks | E10: 6 | F10: 176.2923049 | G10: 176.2923049 | H10: 1057.753829 | I10: 1057.753829 | K10: R6 | L10: R-90265 | M10: HÁČEK
A11: 7 | B11: S101010642 | C11: Konektor dvojitý BRS STALCO GARDEN | D11: ks | E11: 6 | F11: 55.78035515 | G11: 55.78035515 | H11: 334.6821309 | I11: 334.6821309 | K11: R6 | L11: R-90265 | M11: HÁČEK
A12: 8 | B12: S101010645 | C12: Konektor trojitý BRS STALCO GARDEN | D12: ks | E12: 6 | F12: 124.1866691 | G12: 124.1866691 | H12: 745.1200144 | I12: 745.1200144 | K12: R6 | L12: R-90265 | M12: HÁČEK
A13: 9 | B13: S101010651 | C13: Adaptér s vnitřním závitem 3/4" BRS STALCO GARDEN | D13: ks | E13: 6 | F13: 48.05402217 | G13: 48.05402217 | H13: 288.324133 | I13: 288.324133 | K13: R6 | L13: R-90265 | M13: HÁČEK
A14: 10 | B14: S101010654 | C14: Adaptér s vnitřním závitem 1" BRS STALCO GARDEN | D14: ks | E14: 6 | F14: 55.57741207 | G14: 55.57741207 | H14: 333.4644724 | I14: 333.4644724 | K14: R6 | L14: R-90265 | M14: HÁČEK
A15: 11 | B15: S101010657 | C15: Adaptér s vnitřním závitem 1/2" - 3/4" BRS STALCO GARDEN | D15: ks | E15: 6 | F15: 80.10453289 | G15: 80.10453289 | H15: 480.6271973 | I15: 480.6271973 | K15: R6 | L15: R-90265 | M15: HÁČEK
A16: 12 | B16: S101010660 | C16: Adaptér s vnitřním závitem 3/4" - 1" BRS STALCO GARDEN | D16: ks | E16: 6 | F16: 110.7199461 | G16: 110.7199461 | H16: 664.3196767 | I16: 664.3196767 | K16: R6 | L16: R-90265 | M16: HÁČEK
A17: 13 | B17: S101010666 | C17: Adaptér s vnějším závitem 3/4" BRS STALCO GARDEN | D17: ks | E17: 6 | F17: 48.05402217 | G17: 48.05402217 | H17: 288.324133 | I17: 288.324133 | K17: R6 | L17: R-90265 | M17: HÁČEK
A18: 14 | B18: S101010672 | C18: Rozdělovač dvojitý BRS STALCO GARDEN | D18: ks | E18: 4 | F18: 264.3576687 | G18: 264.3576687 | H18: 1057.430675 | I18: 1057.430675 | K18: R6 | L18: R-90265 | M18: 2 X HÁČEK
A19: 15 | B19: S101210600 | C19: Tryska nastavitelná BRS STALCO GARDEN | D19: ks | E19: 6 | F19: 125.7865682 | G19: 125.7865682 | H19: 754.7194095 | I19: 754.7194095 | K19: R6 | L19: R-90265 | M19: HÁČEK
A20: 16 | B20: S101210603 | C20: Pistole zavlažovací nastavitelná BRS STALCO GARDEN | D20: ks | E20: 6 | F20: 415.6855798 | G20: 415.6855798 | H20: 2494.113479 | I20: 2494.113479 | K20: R6 | L20: R-90265 | M20: HÁČEK
A21: 17 | B21: S101210606 | C21: Pistole zavlažovací 8 funkcí BRS STALCO GARDEN | D21: ks | E21: 4 | F21: 413.7640748 | G21: 413.7640748 | H21: 1655.056299 | I21: 1655.056299 | K21: R6 | L21: R-90265 | M21: HÁČEK
A22: 18 | B22: S101010700 | C22: Konektor s vnitřním závitem 1/2" BRS GK STALCO GARDEN | D22: ks | E22: 6 | F22: 74.62506973 | G22: 74.62506973 | H22: 447.7504184 | I22: 447.7504184 | K22: R6 | L22: R-90265 | M22: HÁČEK
A23: 19 | B23: S101010703 | C23: Konektor s vnitřním závitem 3/4" BRS GK STALCO GARDEN | D23: ks | E23: 6 | F23: 74.62506973 | G23: 74.62506973 | H23: 447.7504184 | I23: 447.7504184 | K23: R6 | L23: R-90265 | M23: HÁČEK
A24: 20 | B24: S101010706 | C24: Konektor s vnitřním závitem 1" BRS GK STALCO GARDEN | D24: ks | E24: 6 | F24: 76.60376476 | G24: 76.60376476 | H24: 459.6225886 | I24: 459.6225886 | K24: R6 | L24: R-90265 | M24: HÁČEK
A25: 21 | B25: S101010709 | C25: Konektor s vnějším závitem 1/2" BRS GK STALCO GARDEN | D25: ks | E25: 6 | F25: 71.70413897 | G25: 71.70413897 | H25: 430.2248338 | I25: 430.2248338 | K25: R6 | L25: R-90265 | M25: HÁČEK
A26: 22 | B26: S101010712 | C26: Konektor s vnějším závitem 3/4" BRS GK STALCO GARDEN | D26: ks | E26: 6 | F26: 73.682834 | G26: 73.682834 | H26: 442.097004 | I26: 442.097004 | K26: R6 | L26: R-90265 | M26: HÁČEK
A27: 23 | B27: S101010715 | C27: Konektor s vnějším závitem 1" BRS GK STALCO GARDEN | D27: ks | E27: 6 | F27: 75.66152903 | G27: 75.66152903 | H27: 453.9691742 | I27: 453.9691742 | K27: R6 | L27: R-90265 | M27: HÁČEK
A28: 24 | B28: S101010718 | C28: Spojka s konektorem na hadici 1/2" BRS GK STALCO GARDEN | D28: ks | E28: 6 | F28: 77.64022406 | G28: 77.64022406 | H28: 465.8413444 | I28: 465.8413444 | K28: R6 | L28: R-90265 | M28: HÁČEK
A29: 25 | B29: S101010721 | C29: Spojka s konektorem na hadici 3/4" BRS GK STALCO GARDEN | D29: ks | E29: 6 | F29: 79.61891909 | G29: 79.61891909 | H29: 477.7135145 | I29: 477.7135145 | K29: R6 | L29: R-90265 | M29: HÁČEK
A30: 26 | B30: S101010724 | C30: Spojka s konektorem na hadici 1" BRS GK STALCO GARDEN | D30: ks | E30: 6 | F30: 99.68854012 | G30: 99.68854012 | H30: 598.1312407 | I30: 598.1312407 | K30: R6 | L30: R-90265 | M30: HÁČEK
A31: 27 | B31: S101010727 | C31: Spojka s otočným konektorem na hadici 1/2" BRS GK STALCO GARDEN | D31: ks | E31: 6 | F31: 128.5209534 | G31: 128.5209534 | H31: 771.1257205 | I31: 771.1257205 | K31: R6 | L31: R-90265 | M31: HÁČEK
A32: 28 | B32: S101010730 | C32: Spojka s otočným konektorem na hadici 3/4" BRS GK STALCO GARDEN | D32: ks | E32: 6 | F32: 133.7032499 | G32: 133.7032499 | H32: 802.2194996 | I32: 802.2194996 | K32: R6 | L32: R-90265 | M32: HÁČEK
A33: 29 | B33: S101010733 | C33: Spojka s otočným konektorem na hadici 1" BRS GK STALCO GARDEN | D33: ks | E33: 6 | F33: 139.9220057 | G33: 139.9220057 | H33: 839.5320344 | I33: 839.5320344 | K33: R6 | L33: R-90265 | M33: HÁČEK
A34: 30 | B34: S101010736 | C34: Spojka 3ramenná BRS GK STALCO GARDEN S101010736 | D34: ks | E34: 3 | F34: 385.5628603 | G34: 385.5628603 | H34: 1156.688581 | I34: 1156.688581 | K34: R6 | L34: R-90265 | M34: HÁČEK
A35: 31 | B35: S101010739 | C35: Spojka s konektorem pro rychlospojku BRS GK STALCO GARDEN | D35: ks | E35: 6 | F35: 79.14780123 | G35: 79.14780123 | H35: 474.8868074 | I35: 474.8868074 | K35: R6 | L35: R-90265 | M35: HÁČEK
A36: 32 | B36: S101010742 | C36: Konektor uzavírací BRS GK STALCO GARDEN | D36: ks | E36: 6 | F36: 88.75860566 | G36: 88.75860566 | H36: 532.551634 | I36: 532.551634 | K36: R6 | L36: R-90265 | M36: HÁČEK
A37: 33 | B37: S101610006 | C37: Závěs kovový na hadici XTR STALCO GARDEN | D37: ks | E37: 5 | F37: 166.2700777 | G37: 166.2700777 | H37: 831.3503885 | I37: 831.3503885 | K37: R6 | L37: R-90261 | M37: 2 X HÁČEK
A38: 34 | B38: S101610012 | C38: Naviják kovový na hadici 60 m XTR STALCO GARDEN | D38: ks | E38: 1 | F38: 2657.548801 | G38: 2657.548801 | H38: 2657.548801 | I38: 2657.548801 | K38: R6 | M38: PODESTA
A39: 35 | B39: S101610015 | C39: Vozík na hadice kovový 60 m XTR STALCO GARDEN | D39: ks | E39: 1 | F39: 3127.810366 | G39: 3127.810366 | H39: 3127.810366 | I39: 3127.810366 | K39: R6 | M39: PODESTA
C40: SUMA | E40: 192 | H40: =SUM(H5:H39) -> 29040.65136 | I40: =SUM(I5:I39) -> 29040.65136
C52: Specifikace regálových prvků | H52: rabat | I52: 0
A53: Poz. | B53: Kat. číslo | C53: Popis | D53: MJ | E53: Množství | F53: cena | G53: Cena po odečtení rabatu | H53: Celkem | I53: Celkem po odečtení rabatu
A54: 1 | B54: R-90261 | C54: JEDNODUCHÝ HÁČEK S CENOVKOU | D54: ks | E54: 3 | F54: 69.86736 | G54: =F54-(F54*$I$52) -> 69.86736 | H54: =F54*E54 -> 209.60208 | I54: =H54-(H54*$I$52) -> 209.60208
A55: 2 | B55: R-90265 | C55: DVOJITÝ HÁČEK S CENOVKOU | D55: ks | E55: 33 | F55: 78.78048 | G55: =F55-(F55*$I$52) -> 78.78048 | H55: 2599.75584 | I55: =H55-(H55*$I$52) -> 2599.75584
A56: 3 | B56: R-90305 | C56: CENOVÁ LIŠTA STŘÍBNRÁ 950mm BU | D56: ks | E56: 1 | F56: 26.30808 | G56: 26.30808 | H56: 26.30808 | I56: 26.30808
A57: 4 | B57: R-90315 | C57: CENOVÁ LIŠTA TRANSPARENTNÍ 65MM BU | D57: ks | E57: 34 | F57: 2.73144 | G57: 2.73144 | H57: 92.86896 | I57: 92.86896
A58: 5 | B58: R-92662 | C58: GRAFIKA MAGNETICKÁ (150MM X 100MM) R-92662 | D58: ks | E58: 2 | F58: 0 | G58: 0 | H58: 0 | I58: 0
A59: 6 | B59: R-91084 | C59: GRAFIKA LOGO STALCO DO CENOVÉ LIŠTY (POZADÍ POD CENOVKY) R-91084 BU | D59: ks | E59: 1 | F59: 27.17064 | G59: 27.17064 | H59: 27.17064 | I59: 27.17064
A60: 7 | B60: SZKIELET | D60: bal. | F60: 0 | G60: =F60-(F60*$I$52) -> 0 | H60: 0 | I60: =H60-(H60*$I$52) -> 0
C61: SUMA | E61: 74 | H61: =SUM(H54:H60) -> 2955.7056 | I61: =SUM(I54:I60) -> 2955.7056

Sheet Regál 7
B1: Regál 7
C3: Specifikace | H3: rabat | I3: 0 | K3: Prvky regálu a umístění produktu
A4: Poz. | B4: Kat. číslo | C4: Popis | D4: MJ | E4: Množství | F4: Kat. cena bez DPH | G4: Cena po odečtení rabatu | H4: Celkem | I4: Celkem po odečtení rabatu | J4: Obrázek | K4: Místo na regálu | L4: Kat. číslo | M4: Cílová pozice | R4: Z:\ZDJĘCIA KATALOG STALCO - MINIATURY EAN\
A5: 1 | B5: S103210406 | C5: Postřikovač tlakový ruční 1,5l STR STALCO GARDEN | D5: ks | E5: 4 | F5: 106.0278028 | G5: =F5-(F5*$I$3) -> 106.0278028 | H5: =F5*E5 -> 424.1112113 | I5: =H5-(H5*$I$3) -> 424.1112113 | K5: R7.1 | L5: R-92625 | M5: POLICE
A6: 2 | B6: S103210409 | C6: Postřikovač tlakový ruční 2l STR STALCO GARDEN | D6: ks | E6: 4 | F6: 114.5784321 | G6: =F6-(F6*$I$3) -> 114.5784321 | H6: =F6*E6 -> 458.3137284 | I6: =H6-(H6*$I$3) -> 458.3137284 | K6: R7.1 | L6: R-92625 | M6: POLICE
A7: 3 | B7: S103210415 | C7: Postřikovač tlakový 5l STR STALCO GARDEN | D7: ks | E7: 4 | F7: 392.4738831 | G7: 392.4738831 | H7: 1569.895532 | I7: 1569.895532 | K7: R7.3 | L7: R-92625 | M7: POLICE
A8: 4 | B8: S103210418 | C8: Postřikovač tlakový 8l STR STALCO GARDEN | D8: ks | E8: 4 | F8: 435.2270294 | G8: 435.2270294 | H8: 1740.908117 | I8: 1740.908117 | K8: R7 | L8: R-92625 | M8: PODESTA
A9: 5 | B9: S103210206 | C9: Postřikovač tlakový ruční 1,5l EXP STALCO GARDEN | D9: ks | E9: 4 | F9: 235.9973676 | G9: 235.9973676 | H9: 943.9894704 | I9: 943.9894704 | K9: R7.1 | L9: R-92625 | M9: POLICE
A10: 6 | B10: S103210209 | C10: Postřikovač tlakový ruční 2l EXP STALCO GARDEN | D10: ks | E10: 4 | F10: 253.0986261 | G10: 253.0986261 | H10: 1012.394504 | I10: 1012.394504 | K10: R7.1 | L10: R-92625 | M10: POLICE
A11: 7 | B11: S103210215 | C11: Postřikovač tlakový 5l EXP STALCO GARDEN | D11: ks | E11: 4 | F11: 714.8326062 | G11: 714.8326062 | H11: 2859.330425 | I11: 2859.330425 | K11: R7.3 | L11: R-92625 | M11: POLICE
A12: 8 | B12: S103210218 | C12: Postřikovač tlakový 8l EXP STALCO GARDEN | D12: ks | E12: 4 | F12: 774.687011 | G12: 774.687011 | H12: 3098.748044 | I12: 3098.748044 | K12: R7 | L12: R-92625 | M12: PODESTA
A13: 9 | B13: S103410203 | C13: Sada těsnění NBR pro postřikovače EXP STALCO GARDEN | D13: ks | E13: 3 | F13: 63.34900983 | G13: 63.34900983 | H13: 190.0470295 | I13: 190.0470295 | K13: R7 | L13: R-90261 | M13: HÁČEK
A14: 10 | B14: S103410212 | C14: Trubice teleskopická s tryskou pro postřikovače EXP STALCO GARDEN | D14: ks | E14: 3 | F14: 122.6829416 | G14: 122.6829416 | H14: 368.0488247 | I14: 368.0488247 | K14: R7.2 | L14: R-92625 | M14: POLICE
A15: 11 | B15: S103410221 | C15: Ventil s rukojetí a hadicí 150 cm pro postřikovače EXP STALCO GARDEN | D15: ks | E15: 2 | F15: 158.9301743 | G15: 158.9301743 | H15: 317.8603486 | I15: 317.8603486 | K15: R7.2 | L15: R-92625 | M15: POLICE
A16: 12 | B16: S103410230 | C16: Pumpa pro postřikovače EXP STALCO GARDEN | D16: ks | E16: 1 | F16: 173.9867171 | G16: 173.9867171 | H16: 173.9867171 | I16: 173.9867171 | K16: R7.2 | L16: R-92625 | M16: POLICE
A17: 13 | B17: S103410403 | C17: Sada těsnění NBR pro postřikovače STR STALCO GARDEN | D17: ks | E17: 3 | F17: 63.34900983 | G17: 63.34900983 | H17: 190.0470295 | I17: 190.0470295 | K17: R7 | L17: R-90261 | M17: HÁČEK
A18: 14 | B18: S103410412 | C18: Trubice teleskopická s tryskou pro postřikovače STR STALCO GARDEN | D18: ks | E18: 3 | F18: 122.6829416 | G18: 122.6829416 | H18: 368.0488247 | I18: 368.0488247 | K18: R7.2 | L18: R-92625 | M18: POLICE
A19: 15 | B19: S103410421 | C19: Ventril s rukojetí a hadicí 150 cm pro postřikovače STR STALCO GARDEN | D19: ks | E19: 2 | F19: 144.9889309 | G19: 144.9889309 | H19: 289.9778619 | I19: 289.9778619 | K19: R7.2 | L19: R-92625 | M19: POLICE
A20: 16 | B20: S103410503 | C20: Kryt proti herbicidům - univerzální STALCO GARDEN | D20: ks | E20: 5 | F20: 83.64746016 | G20: 83.64746016 | H20: 418.2373008 | I20: 418.2373008 | K20: R7.2 | L20: R-92625 | M20: POLICE
C21: SUMA | E21: 54 | H21: =SUM(H5:H20) -> 14423.94497 | I21: =SUM(I5:I20) -> 14423.94497
C33: Specifikace regálových prvků | H33: rabat | I33: 0
A34: Poz. | B34: Kat. číslo | C34: Popis | D34: MJ | E34: Množství | F34: cena | G34: Cena po odečtení rabatu | H34: Celkem | I34: Celkem po odečtení rabatu
A35: 1 | B35: R-90261 | C35: JEDNODUCHÝ HÁČEK S CENOVKOU | D35: ks | E35: 2 | F35: 69.86736 | G35: =F35-(F35*$I$33) -> 69.86736 | H35: =F35*E35 -> 139.73472 | I35: =H35-(H35*$I$33) -> 139.73472
A36: 2 | B36: R-90305 | C36: CENOVÁ LIŠTA STŘÍBNRÁ 950mm BU | D36: ks | E36: 4 | F36: 26.30808 | G36: =F36-(F36*$I$33) -> 26.30808 | H36: 105.23232 | I36: =H36-(H36*$I$33) -> 105.23232
A37: 3 | B37: R-90315 | C37: CENOVÁ LIŠTA TRANSPARENTNÍ 65MM BU | D37: ks | E37: 2 | F37: 2.73144 | G37: 2.73144 | H37: 5.46288 | I37: 5.46288
A38: 4 | B38: R-92625 | C38: POLICE PLECHOVÁ 40CM 1M R-92625 | D38: ks | E38: 3 | F38: 1320.604518 | G38: 1320.604518 | H38: 3961.813554 | I38: 3961.813554
A39: 5 | B39: R-92627 | C39: OHRANIČENÍ POLICE 1000MM R-92627 | D39: ks | E39: 3 | F39: 583.23432 | G39: 583.23432 | H39: 1749.70296 | I39: 1749.70296
A40: 6 | B40: R-91084 | C40: GRAFIKA LOGO STALCO DO CENOVÉ LIŠTY (POZADÍ POD CENOVKY) R-91084 BU | D40: ks | E40: 4 | F40: 27.17064 | G40: 27.17064 | H40: 108.68256 | I40: 108.68256
A41: 7 | B41: R-91832 | C41: TYČ FI 5 934 x 81MM PRO NOSNÍKY ZA CENOVOU LIŠTU R-91832 | D41: ks | E41: 2 | F41: 65.4108 | G41: 65.4108 | H41: 130.8216 | I41: 130.8216
A42: 8 | B42: SZKIELET | D42: bal. | F42: 0 | G42: =F42-(F42*$I$33) -> 0 | H42: 0 | I42: =H42-(H42*$I$33) -> 0
C43: SUMA | E43: 20 | H43: =SUM(H35:H42) -> 6201.450594 | I43: =SUM(I35:I42) -> 6201.450594

Sheet Regál 8
A1: Regál 8
C3: Specifikace | H3: rabat | I3: 0 | K3: Prvky regálu a umístění produktu
A4: Poz. | B4: Kat. číslo | C4: Popis | D4: MJ | E4: Množství | F4: Kat. cena bez DPH | G4: Cena po odečtení rabatu | H4: Celkem | I4: Celkem po odečtení rabatu | J4: Obrázek | K4: Místo na regálu | L4: Kat. číslo | M4: Cílová pozice
A5: 1 | B5: S104010406 | C5: Nůžky zahradnické STR STALCO GARDEN | D5: ks | E5: 10 | F5: 235.5966194 | G5: =F5-(F5*$I$3) -> 235.5966194 | H5: =F5*E5 -> 2355.966194 | I5: =H5-(H5*$I$3) -> 2355.966194 | K5: R8 | L5: R-90265 | M5: HÁČEK
A6: 2 | B6: S104010412 | C6: Nůžky zahradnické STR STALCO GARDEN | D6: ks | E6: 12 | F6: 235.5966194 | G6: =F6-(F6*$I$3) -> 235.5966194 | H6: =F6*E6 -> 2827.159433 | I6: =H6-(H6*$I$3) -> 2827.159433 | K6: R8 | L6: R-90265 | M6: HÁČEK
A7: 3 | B7: S104010415 | C7: Nůžky zahradnické kovadlinové STR STALCO GARDEN | D7: ks | E7: 12 | F7: 240.1273237 | G7: 240.1273237 | H7: 2881.527884 | I7: 2881.527884 | K7: R8 | L7: R-90265 | M7: HÁČEK
A8: 4 | B8: S104010421 | C8: Nůžky zahradnické STR STALCO GARDEN | D8: ks | E8: 10 | F8: 253.7194363 | G8: 253.7194363 | H8: 2537.194363 | I8: 2537.194363 | K8: R8 | L8: R-90265 | M8: HÁČEK
A9: 5 | B9: S104010424 | C9: Nůžky zahradnické kovadlinové STR STALCO GARDEN | D9: ks | E9: 10 | F9: 258.2501405 | G9: 258.2501405 | H9: 2582.501405 | I9: 2582.501405 | K9: R8 | L9: R-90265 | M9: HÁČEK
A10: 6 | B10: S104020406 | C10: Nůžky na větve 790mm STR STALCO GARDEN | D10: ks | E10: 4 | F10: 362.4563376 | G10: 362.4563376 | H10: 1449.82535 | I10: 1449.82535 | K10: R8 | L10: R-90265 | M10: HÁČEK
A11: 7 | B11: S104020409 | C11: Nůžky na větve teleskopické 650-990mm STR STALCO GARDEN | D11: ks | E11: 4 | F11: 489.3160558 | G11: 489.3160558 | H11: 1957.264223 | I11: 1957.264223 | K11: R8 | L11: R-90265 | M11: HÁČEK
A12: 8 | B12: S104020412 | C12: Nůžky na větve STR 730mm STALCO GARDEN | D12: ks | E12: 4 | F12: 416.8247882 | G12: 416.8247882 | H12: 1667.299153 | I12: 1667.299153 | K12: R8 | L12: R-90265 | M12: HÁČEK
A13: 9 | B13: S104020415 | C13: Nůžky na větve teleskopické 630-950mm STR STALCO GARDEN | D13: ks | E13: 4 | F13: 543.6845064 | G13: 543.6845064 | H13: 2174.738026 | I13: 2174.738026 | K13: R8 | L13: R-90265 | M13: HÁČEK
A14: 10 | B14: S104020421 | C14: Nůžky na větve kovadlinové 790mm STR STALCO GARDEN | D14: ks | E14: 4 | F14: 425.8861967 | G14: 425.8861967 | H14: 1703.544787 | I14: 1703.544787 | K14: R8 | L14: R-90265 | M14: HÁČEK
A15: 11 | B15: S104020424 | C15: Nůžky na větve kovadlinové STR teleskopické 650-990mm STALCO GARDEN | D15: ks | E15: 4 | F15: 552.7459148 | G15: 552.7459148 | H15: 2210.983659 | I15: 2210.983659 | K15: R8 | L15: R-90265 | M15: HÁČEK
A16: 12 | B16: S104040406 | C16: Nůžky na živý plot 630mm STR STALCO GARDEN | D16: ks | E16: 5 | F16: 380.5791545 | G16: 380.5791545 | H16: 1902.895772 | I16: 1902.895772 | K16: R8 | L16: R-90265 | M16: HÁČEK
A17: 13 | B17: S104040409 | C17: Nůžky na živý plot teleskopické 690-860mm STR STALCO GARDEN | D17: ks | E17: 5 | F17: 498.3774642 | G17: 498.3774642 | H17: 2491.887321 | I17: 2491.887321 | K17: R8 | L17: R-90265 | M17: HÁČEK
C18: SUMA | E18: 88 | H18: =SUM(H5:H17) -> 28742.78757 | I18: =SUM(I5:I17) -> 28742.78757
C30: Specifikace regálových prvků | H30: rabat | I30: 0
A31: Poz. | B31: Kat. číslo | C31: Popis | D31: MJ | E31: Množství | F31: cena | G31: Cena po odečtení rabatu | H31: Celkem | I31: Celkem po odečtení rabatu
A32: 1 | B32: R-90265 | C32: DVOJITÝ HÁČEK S CENOVKOU | D32: ks | E32: 13 | F32: 78.78048 | G32: =F32-(F32*$I$30) -> 78.78048 | H32: =F32*E32 -> 1024.14624 | I32: =H32-(H32*$I$30) -> 1024.14624
A33: 2 | B33: R-90305 | C33: CENOVÁ LIŠTA STŘÍBNRÁ 950mm BU | D33: ks | E33: 1 | F33: 26.30808 | G33: =F33-(F33*$I$30) -> 26.30808 | H33: 26.30808 | I33: =H33-(H33*$I$30) -> 26.30808
A34: 3 | B34: R-90315 | C34: CENOVÁ LIŠTA TRANSPARENTNÍ 65MM BU | D34: ks | E34: 13 | F34: 2.73144 | G34: 2.73144 | H34: 35.50872 | I34: 35.50872
A35: 4 | B35: R-91084 | C35: GRAFIKA LOGO STALCO DO CENOVÉ LIŠTY (POZADÍ POD CENOVKY) R-91084 BU | D35: ks | E35: 1 | F35: 27.17064 | G35: 27.17064 | H35: 27.17064 | I35: 27.17064
A36: 5 | B36: SZKIELET | D36: bal. | F36: 0 | G36: =F36-(F36*$I$30) -> 0 | H36: 0 | I36: =H36-(H36*$I$30) -> 0
C37: SUMA | E37: 28 | H37: =SUM(H32:H36) -> 1113.13368 | I37: =SUM(I32:I36) -> 1113.13368

Sheet Regál 9
A1: Regál 9
C3: Specifikace | H3: rabat | I3: 0 | K3: Prvky regálu a umístění produktu
A4: Poz. | B4: Kat. číslo | C4: Popis | D4: MJ | E4: Množství | F4: Kat. cena bez DPH | G4: Cena po odečtení rabatu | H4: Celkem | I4: Celkem po odečtení rabatu | J4: Obrázek | K4: Místo na regálu | L4: Kat. číslo | M4: Cílová pozice
A5: 1 | B5: S104070212 | C5: Pilka zahradní skládací 230mm EXP STALCO GARDEN | D5: ks | E5: 6 | F5: 308.087887 | G5: =F5-(F5*$I$3) -> 308.087887 | H5: =F5*E5 -> 1848.527322 | I5: =H5-(H5*$I$3) -> 1848.527322 | K5: R9 | L5: R-90265 | M5: HÁČEK
A6: 2 | B6: S104070221 | C6: Pilka zahradní 270mm EXP STALCO GARDEN | D6: ks | E6: 6 | F6: 308.087887 | G6: =F6-(F6*$I$3) -> 308.087887 | H6: =F6*E6 -> 1848.527322 | I6: =H6-(H6*$I$3) -> 1848.527322 | K6: R9 | L6: R-90265 | M6: HÁČEK
A7: 3 | B7: S104070257 | C7: Pila oblouková 533mm EXP STALCO GARDEN | D7: ks | E7: 5 | F7: 208.4123941 | G7: 208.4123941 | H7: 1042.061971 | I7: 1042.061971 | K7: R9 | L7: R-98020 | M7: HÁČEK NA PILY
A8: 4 | B8: S104070260 | C8: Pila oblouková 610mm EXP STALCO GARDEN | D8: ks | E8: 5 | F8: 217.4738026 | G8: 217.4738026 | H8: 1087.369013 | I8: 1087.369013 | K8: R9 | L8: R-98020 | M8: HÁČEK NA PILY
A9: 5 | B9: S104097257 | C9: Pilový list do obloukové pily 533mm EXP na mokré dřevo STALCO GARDEN | D9: ks | E9: 10 | F9: 50.74388726 | G9: 50.74388726 | H9: 507.4388726 | I9: 507.4388726 | K9: R9 | L9: R-90261 | M9: HÁČEK
A10: 6 | B10: S104097258 | C10: Pilový list do obloukové pily 533mm EXP na suché dřevoSTALCO GARDEN | D10: ks | E10: 10 | F10: 57.99301402 | G10: 57.99301402 | H10: 579.9301402 | I10: 579.9301402 | K10: R9 | L10: R-90261 | M10: HÁČEK
A11: 7 | B11: S104097260 | C11: Pilový list do obloukové pily 610mm EXP na mokré dřevo STALCO GARDEN | D11: ks | E11: 10 | F11: 50.74388726 | G11: 50.74388726 | H11: 507.4388726 | I11: 507.4388726 | K11: R9 | L11: R-90261 | M11: HÁČEK
A12: 8 | B12: S104097261 | C12: Pilový list do obloukové pily 610mm EXP na suché dřevo STALCO GARDEN | D12: ks | E12: 10 | F12: 57.99301402 | G12: 57.99301402 | H12: 579.9301402 | I12: 579.9301402 | K12: R9 | L12: R-90261 | M12: HÁČEK
A13: 9 | B13: S104210203 | C13: Sekera univerzální 630g EXP STALCO GARDEN | D13: ks | E13: 4 | F13: 517.6822039 | G13: 517.6822039 | H13: 2070.728816 | I13: 2070.728816 | K13: R9 | L13: R-90265 | M13: HÁČEK
A14: 10 | B14: S104210206 | C14: Sekera univerzální 950g EXP STALCO GARDEN | D14: ks | E14: 4 | F14: 635.8744879 | G14: 635.8744879 | H14: 2543.497952 | I14: 2543.497952 | K14: R9 | L14: R-90265 | M14: HÁČEK
A15: 11 | B15: S104210209 | C15: Sekera štípací 1240g EXP STALCO GARDEN | D15: ks | E15: 3 | F15: 769.8257431 | G15: 769.8257431 | H15: 2309.477229 | I15: 2309.477229 | K15: R9 | L15: R-90265 | M15: HÁČEK
A16: 12 | B16: S104210212 | C16: Sekera štípací 1710g EXP STALCO GARDEN | D16: ks | E16: 3 | F16: 958.9333975 | G16: 958.9333975 | H16: 2876.800193 | I16: 2876.800193 | K16: R9 | L16: R-90265 | M16: HÁČEK
A17: 13 | B17: S104210215 | C17: Sekera štípací 2300g EXP STALCO GARDEN | D17: ks | E17: 2 | F17: 1155.920538 | G17: 1155.920538 | H17: 2311.841075 | I17: 2311.841075 | K17: R9 | L17: R-90265 | M17: HÁČEK
A18: 14 | B18: S104210251 | C18: Brousek na sekery a nože EXP STALCO GARDEN | D18: ks | E18: 12 | F18: 118.192284 | G18: 118.192284 | H18: 1418.307408 | I18: 1418.307408 | K18: R9 | L18: R-90265 | M18: HÁČEK
A19: 15 | K19: R9 | L19: R-90265 | M19: HÁČEK
A20: 16 | B20: S105610451 | C20: Set drobného zahradnického nářadí STR STALCO GARDEN | D20: ks | E20: 4 | F20: 416.7177324 | G20: 416.7177324 | H20: 1666.87093 | I20: 1666.87093 | K20: R9 | M20: PODESTA
A21: 17 | B21: S-76353 | C21: Rukavice kožené "SKIN COMFORT GRIP" | D21: pár | E21: 6 | F21: 278.7 | G21: 278.7 | H21: 1672.2 | I21: 1672.2 | K21: R9 | L21: R-90265 | M21: HÁČEK
A22: 18 | B22: S-76354 | C22: Rukavice kožené "SKIN COMFORT GRIP" | D22: pár | E22: 6 | F22: 278.7 | G22: 278.7 | H22: 1672.2 | I22: 1672.2 | K22: R9 | L22: R-90265 | M22: HÁČEK
A23: 19 | B23: S-76355 | C23: Rukavice kožené "SKIN COMFORT GRIP" | D23: pár | E23: 6 | F23: 278.7 | G23: 278.7 | H23: 1672.2 | I23: 1672.2 | K23: R9 | L23: R-90265 | M23: HÁČEK
A24: 20 | B24: S-76356 | C24: Rukavice kožené "SKIN COMFORT GRIP" | D24: pár | E24: 6 | F24: 278.7 | G24: 278.7 | H24: 1672.2 | I24: 1672.2 | K24: R9 | L24: R-90265 | M24: HÁČEK
C25: SUMA | E25: 118 | H25: =SUM(H5:H24) -> 29887.54725 | I25: =SUM(I5:I24) -> 29887.54725
C37: Specifikace regálových prvků | H37: rabat | I37: 0
A38: Poz. | B38: Kat. číslo | C38: Popis | D38: MJ | E38: Množství | F38: cena | G38: Cena po odečtení rabatu | H38: Celkem | I38: Celkem po odečtení rabatu
A39: 1 | B39: R-90261 | C39: JEDNODUCHÝ HÁČEK S CENOVKOU | D39: ks | E39: 4 | F39: 69.86736 | G39: =F39-(F39*$I$37) -> 69.86736 | H39: =F39*E39 -> 279.46944 | I39: =H39-(H39*$I$37) -> 279.46944
A40: 2 | B40: R-90265 | C40: DVOJITÝ HÁČEK S CENOVKOU | D40: ks | E40: 14 | F40: 78.78048 | G40: =F40-(F40*$I$37) -> 78.78048 | H40: 1102.92672 | I40: =H40-(H40*$I$37) -> 1102.92672
A41: 3 | B41: R-90305 | C41: CENOVÁ LIŠTA STŘÍBNRÁ 950mm BU | D41: ks | E41: 1 | F41: 26.30808 | G41: 26.30808 | H41: 26.30808 | I41: 26.30808
A42: 4 | B42: R-90315 | C42: CENOVÁ LIŠTA TRANSPARENTNÍ 65MM BU | D42: ks | E42: 21 | F42: 2.73144 | G42: 2.73144 | H42: 57.36024 | I42: 57.36024
A43: 5 | B43: R-98020 | C43: HÁK PRO OBLOUKOVÉ PILY 100X50X76MM NA PERFOROVANÝ PLECH R-98020 | D43: bal. | E43: 3 | F43: 70.4424 | G43: 70.4424 | H43: 211.3272 | I43: 211.3272
A44: 6 | B44: R-91084 | C44: GRAFIKA LOGO STALCO DO CENOVÉ LIŠTY (POZADÍ POD CENOVKY) R-91084 BU | D44: ks | E44: 1 | F44: 27.17064 | G44: 27.17064 | H44: 27.17064 | I44: 27.17064
A45: 7 | B45: SZKIELET | D45: bal. | F45: 0 | G45: =F45-(F45*$I$37) -> 0 | H45: 0 | I45: =H45-(H45*$I$37) -> 0
C46: SUMA | E46: 44 | H46: =SUM(H39:H45) -> 1704.56232 | I46: =SUM(I39:I45) -> 1704.56232

Sheet Regál 10
A1: Regál 10
C3: Specifikace | H3: rabat | I3: 0 | K3: Prvky regálu a umístění produktu
A4: Poz. | B4: Kat. číslo | C4: Popis | D4: MJ | E4: Množství | F4: Kat. cena bez DPH | G4: Cena po odečtení rabatu | H4: Celkem | I4: Celkem po odečtení rabatu | J4: Obrázek | K4: Místo na regálu | L4: Kat. číslo | M4: Cílová pozice
A5: 1 | B5: S105610000 | C5: Lopatka široká XTR STALCO GARDEN | D5: ks | E5: 6 | F5: 193.4090592 | G5: =F5-(F5*$I$3) -> 193.4090592 | H5: =F5*E5 -> 1160.454355 | I5: =H5-(H5*$I$3) -> 1160.454355 | K5: R10 | L5: R-90265 | M5: HÁČEK
A6: 2 | B6: S105610003 | C6: Lopatka úzká XTR STALCO GARDE | D6: ks | E6: 6 | F6: 183.4051423 | G6: =F6-(F6*$I$3) -> 183.4051423 | H6: =F6*E6 -> 1100.430854 | I6: =H6-(H6*$I$3) -> 1100.430854 | K6: R10 | L6: R-90265 | M6: HÁČEK
A7: 3 | B7: S105610006 | C7: Vidle ruční XTR STALCO GARDEN | D7: ks | E7: 6 | F7: 229.2564279 | G7: 229.2564279 | H7: 1375.538567 | I7: 1375.538567 | K7: R10 | L7: R-90265 | M7: HÁČEK
A8: 4 | B8: S105610009 | C8: Hrábě ruční XTR STALCO GARDEN | D8: ks | E8: 6 | F8: 267.6047758 | G8: 267.6047758 | H8: 1605.628655 | I8: 1605.628655 | K8: R10 | L8: R-90265 | M8: HÁČEK
A9: 5 | B9: S105610012 | C9: Hrábě vějířové ruční XTR STALCO GARDEN | D9: ks | E9: 6 | F9: 221.7534903 | G9: 221.7534903 | H9: 1330.520942 | I9: 1330.520942 | K9: R10 | L9: R-90265 | M9: HÁČEK
A10: 6 | B10: S105610015 | C10: Kultivátor 3 zubyXTR STALCO GARDEN | D10: ks | E10: 6 | F10: 224.2544695 | G10: 224.2544695 | H10: 1345.526817 | I10: 1345.526817 | K10: R10 | L10: R-90265 | M10: HÁČEK
A11: 7 | B11: S105610018 | C11: Motyčka s kultivátorem XTR STALCO GARDEN | D11: ks | E11: 6 | F11: 319.2916796 | G11: 319.2916796 | H11: 1915.750078 | I11: 1915.750078 | K11: R10 | L11: R-90265 | M11: HÁČEK
A12: 8 | B12: S105610200 | C12: Lopatka široká EXP STALCO GARDEN | D12: ks | E12: 6 | F12: 138.3875165 | G12: 138.3875165 | H12: 830.3250989 | I12: 830.3250989 | K12: R10 | L12: R-90265 | M12: HÁČEK
A13: 9 | B13: S105610203 | C13: Lopatka úzká EXP STALCO GARDEN | D13: ks | E13: 6 | F13: 129.2172594 | G13: 129.2172594 | H13: 775.3035562 | I13: 775.3035562 | K13: R10 | L13: R-90265 | M13: HÁČEK
A14: 10 | B14: S105610206 | C14: Vidle ruční EXP STALCO GARDEN | D14: ks | E14: 6 | F14: 166.7319476 | G14: 166.7319476 | H14: 1000.391685 | I14: 1000.391685 | K14: R10 | L14: R-90265 | M14: HÁČEK
A15: 11 | B15: S105610209 | C15: Hrábě ruční EXP STALCO GARDEN | D15: ks | E15: 6 | F15: 171.733906 | G15: 171.733906 | H15: 1030.403436 | I15: 1030.403436 | K15: R10 | L15: R-90265 | M15: HÁČEK
A16: 12 | B16: S105610212 | C16: Hrábě vějířové ruční EXP STALCO GARDEN | D16: ks | E16: 6 | F16: 205.9139552 | G16: 205.9139552 | H16: 1235.483731 | I16: 1235.483731 | K16: R10 | L16: R-90265 | M16: HÁČEK
A17: 13 | B17: S105610215 | C17: Kultivátor 3 zubyEXP STALCO GARDEN | D17: ks | E17: 6 | F17: 162.5636489 | G17: 162.5636489 | H17: 975.3818933 | I17: 975.3818933 | K17: R10 | L17: R-90265 | M17: HÁČEK
A18: 14 | B18: S105610218 | C18: Motyčka s kultivátorem EXP STALCO GARDEN | D18: ks | E18: 6 | F18: 192.5753994 | G18: 192.5753994 | H18: 1155.452397 | I18: 1155.452397 | K18: R10 | L18: R-90265 | M18: HÁČEK
A19: 15 | B19: S105610400 | C19: Lopatka široká plastová STR STALCO GARDEN | D19: ks | E19: 10 | F19: 42.24244268 | G19: 42.24244268 | H19: 422.4244268 | I19: 422.4244268 | K19: R10 | L19: R-90265 | M19: HÁČEK
A20: 16 | B20: S105610403 | C20: Lopatka úzká plastová STR STALCO GARDEN | D20: ks | E20: 10 | F20: 34.44087414 | G20: 34.44087414 | H20: 344.4087414 | I20: 344.4087414 | K20: R10 | L20: R-90265 | M20: HÁČEK
A21: 17 | B21: S105610406 | C21: Vidle ruční plastové STR STALCO GARDEN | D21: ks | E21: 10 | F21: 34.44087414 | G21: 34.44087414 | H21: 344.4087414 | I21: 344.4087414 | K21: R10 | L21: R-90265 | M21: HÁČEK
A22: 18 | B22: S105610415 | C22: Kultivátor 3 zuby plastový STR STALCO GARDEN | D22: ks | E22: 10 | F22: 55.50510919 | G22: 55.50510919 | H22: 555.0510919 | I22: 555.0510919 | K22: R10 | L22: R-90265 | M22: HÁČEK
A23: 19 | B23: S105610418 | C23: Motyka plastováSTR STALCO GARDEN | D23: ks | E23: 10 | F23: 35.221031 | G23: 35.221031 | H23: 352.21031 | I23: 352.21031 | K23: R10 | L23: R-90265 | M23: HÁČEK
A24: 20 | B24: S105610448 | C24: Podložka pod kolena STR STALCO GARDEN | D24: ks | E24: 10 | F24: 69.54793256 | G24: 69.54793256 | H24: 695.4793256 | I24: 695.4793256 | K24: R10 | L24: R-90265 | M24: HÁČEK
A25: 21 | B25: S106610203 | C25: Koš zahradnický skládací 80l EXP | D25: ks | E25: 5 | F25: 266.5662875 | G25: 266.5662875 | H25: 1332.831438 | I25: 1332.831438 | K25: R10.1 | L25: R-90355 | M25: KOŠ
A26: 22 | B26: S106610206 | C26: Koš zahradnický skládací 172l EXP | D26: ks | E26: 5 | F26: 359.4206541 | G26: 359.4206541 | H26: 1797.103271 | I26: 1797.103271 | K26: R10.1 | L26: R-90355 | M26: KOŠ
A27: 23 | B27: S106610003 | C27: Koš zahradnický skládací vyztužené dno 80l XTR | D27: ks | E27: 3 | F27: 413.1981434 | G27: 413.1981434 | H27: 1239.59443 | I27: 1239.59443 | K27: R10.1 | L27: R-90355 | M27: KOŠ
A28: 24 | B28: S106610006 | C28: Koš zahradnický skládací vyztužené dno 172l XTR | D28: ks | E28: 3 | F28: 566.8481126 | G28: 566.8481126 | H28: 1700.544338 | I28: 1700.544338 | K28: R10.1 | L28: R-90355 | M28: KOŠ
C29: SUMA | E29: 160 | H29: =SUM(H5:H28) -> 25620.64818 | I29: =SUM(I5:I28) -> 25620.64818
C41: Specifikace regálových prvků | H41: rabat | I41: 0
A42: Poz. | B42: Kat. číslo | C42: Popis | D42: MJ | E42: Množství | F42: cena | G42: Cena po odečtení rabatu | H42: Celkem | I42: Celkem po odečtení rabatu
A43: 1 | B43: R-90265 | C43: DVOJITÝ HÁČEK S CENOVKOU | D43: ks | E43: 20 | F43: 78.78048 | G43: =F43-(F43*$I$41) -> 78.78048 | H43: =F43*E43 -> 1575.6096 | I43: =H43-(H43*$I$41) -> 1575.6096
A44: 2 | B44: R-90355 | C44: KOŠ NA BHP | D44: ks | E44: 1 | F44: 1952.76396 | G44: =F44-(F44*$I$41) -> 1952.76396 | H44: 1952.76396 | I44: =H44-(H44*$I$41) -> 1952.76396
A45: 3 | B45: R-90358 | C45: ROZDĚLOVNÍK DO KOŠE NA BHP | D45: ks | E45: 3 | F45: 223.11552 | G45: 223.11552 | H45: 669.34656 | I45: 669.34656
A46: 4 | B46: R-90305 | C46: CENOVÁ LIŠTA STŘÍBNRÁ 950mm BU | D46: ks | E46: 1 | F46: 26.30808 | G46: 26.30808 | H46: 26.30808 | I46: 26.30808
A47: 5 | B47: R-90315 | C47: CENOVÁ LIŠTA TRANSPARENTNÍ 65MM BU | D47: ks | E47: 20 | F47: 2.73144 | G47: 2.73144 | H47: 54.6288 | I47: 54.6288
A48: 6 | B48: R-91084 | C48: GRAFIKA LOGO STALCO DO CENOVÉ LIŠTY (POZADÍ POD CENOVKY) R-91084 BU | D48: ks | E48: 1 | F48: 27.17064 | G48: 27.17064 | H48: 27.17064 | I48: 27.17064
A49: 7 | B49: SZKIELET | D49: bal. | F49: 0 | G49: =F49-(F49*$I$41) -> 0 | H49: 0 | I49: =H49-(H49*$I$41) -> 0
C50: SUMA | E50: 46 | H50: =SUM(H43:H49) -> 4305.82764 | I50: =SUM(I43:I49) -> 4305.82764

Sheet Regál 11
A1: Regál 11
C3: Specifikace | H3: rabat | I3: 0 | K3: Prvky regálu a umístění produktu
A4: Poz. | B4: Kat. číslo | C4: Popis | D4: MJ | E4: Množství | F4: Kat. cena bez DPH | G4: Cena po odečtení rabatu | H4: Celkem | I4: Celkem po odečtení rabatu | J4: Obrázek | K4: Místo na regálu | L4: Kat. číslo | M4: Cílová pozice
A5: 1 | B5: S105010600 | C5: Rýč rovný TRADITIONAL | D5: ks | E5: 5 | F5: 402.528 | G5: =F5-(F5*$I$3) -> 402.528 | H5: =F5*E5 -> 2012.64 | I5: =H5-(H5*$I$3) -> 2012.64 | K5: R11 | L5: R-91817 | M5: SYSTÉMOVÁ HRAZDA
A6: 2 | B6: S105010603 | C6: Rýč špičatý TRADITIONAL | D6: ks | E6: 5 | F6: 402.528 | G6: =F6-(F6*$I$3) -> 402.528 | H6: =F6*E6 -> 2012.64 | I6: =H6-(H6*$I$3) -> 2012.64 | K6: R11 | L6: R-91817 | M6: SYSTÉMOVÁ HRAZDA
A7: 3 | B7: S105010609 | C7: Lopata TRADITIONAL | D7: ks | E7: 5 | F7: 372.3384 | G7: 372.3384 | H7: 1861.692 | I7: 1861.692 | K7: R11 | L7: R-91823 | M7: SYSTÉMOVÁ HRAZDA
A8: 4 | B8: S105210606 | C8: Hrábě TRADITIONAL 12 zubů STALCO GARDEN | D8: ks | E8: 5 | F8: 327.054 | G8: 327.054 | H8: 1635.27 | I8: 1635.27 | K8: R11 | L8: R-90271 | M8: HÁČEK NA HRÁBĚ
A9: 5 | B9: S105210612 | C9: Hrábě TRADITIONAL 16 zubů STALCO GARDEN | D9: ks | E9: 5 | F9: 345.7428 | G9: 345.7428 | H9: 1728.714 | I9: 1728.714 | K9: R11 | L9: R-90271 | M9: HÁČEK NA HRÁBĚ
A10: 6 | B10: S105210651 | C10: Motyka TRADITIONAL 18cm | D10: ks | E10: 5 | F10: 291.8328 | G10: 291.8328 | H10: 1459.164 | I10: 1459.164 | K10: R11 | L10: R-90261 | M10: HÁČEK
A11: 7 | B11: S105210660 | C11: Kultivátor 3 hroty TRADITIONAL | D11: ks | E11: 5 | F11: 291.8328 | G11: 291.8328 | H11: 1459.164 | I11: 1459.164 | K11: R11 | L11: R-90261 | M11: HÁČEK
C12: SUMA | E12: 35 | H12: =SUM(H5:H11) -> 12169.284 | I12: =SUM(I5:I11) -> 12169.284
C24: Specifikace regálových prvků | H24: rabat | I24: 0
A25: Poz. | B25: Kat. číslo | C25: Popis | D25: MJ | E25: Množství | F25: cena | G25: Cena po odečtení rabatu | H25: Celkem | I25: Celkem po odečtení rabatu
A26: 1 | B26: R-90261 | C26: JEDNODUCHÝ HÁČEK S CENOVKOU | D26: ks | E26: 2 | F26: 502.2065837 | G26: 502.2065837 | H26: 1004.413167 | I26: 1004.413167
A27: 2 | B27: R-90277 | C27: SYSTÉMOVÁ HRAZDA | D27: ks | E27: 1 | F27: 3039.073174 | G27: 3039.073174 | H27: 3039.073174 | I27: 3039.073174
A28: 3 | B28: R-90271 | C28: HÁK NA HRÁBĚ | D28: ks | E28: 2 | F28: 680.4589205 | G28: 680.4589205 | H28: 1360.917841 | I28: 1360.917841
A29: 4 | B29: R-91817 | C29: DRŽÁK NA HRAZDU S 5 PŮLKULATÝMI VÝŘEZY | D29: ks | E29: 2 | F29: 1500.41967 | G29: 1500.41967 | H29: 3000.83934 | I29: 3000.83934
A30: 5 | B30: R-91823 | C30: DRŽÁK NA HRAZDU S 5 HRANATÝMI VÝŘEZY | D30: ks | E30: 1 | F30: 1650.771641 | G30: 1650.771641 | H30: 1650.771641 | I30: 1650.771641
A31: 6 | B31: R-90305 | C31: CENOVÁ LIŠTA STŘÍBNRÁ 950mm BU | D31: ks | E31: 1 | F31: 189.102479 | G31: 189.102479 | H31: 189.102479 | I31: 189.102479
A32: 7 | B32: R-90315 | C32: CENOVÁ LIŠTA TRANSPARENTNÍ 65MM BU | D32: ks | E32: 7 | F32: 19.63359072 | G32: 19.63359072 | H32: 137.435135 | I32: 137.435135
A33: 8 | B33: R-91084 | C33: GRAFIKA LOGO STALCO DO CENOVÉ LIŠTY (POZADÍ POD CENOVKY) R-91084 BU | D33: ks | E33: 1 | F33: 195.3025603 | G33: 195.3025603 | H33: 195.3025603 | I33: 195.3025603
A34: 9 | B34: SZKIELET | D34: bal. | F34: 0 | G34: 0 | H34: 0 | I34: 0
C35: SUMA | E35: 17 | H35: 10577.85534 | I35: 10577.85534

Sheet Regál 12
A1: Regál 12
C3: Specifikace | H3: rabat | I3: 0 | K3: Prvky regálu a umístění produktu
A4: Poz. | B4: Kat. číslo | C4: Popis | D4: MJ | E4: Množství | F4: Kat. cena bez DPH | G4: Cena po odečtení rabatu | H4: Celkem | I4: Celkem po odečtení rabatu | J4: Obrázek | K4: Místo na regálu | L4: Kat. číslo | M4: Cílová pozice
A5: 1 | B5: S105210312 | C5: Hrábě univer zubůální 12 zubů EXP STALCO GARDEN | D5: ks | E5: 4 | F5: 464.6897913 | G5: =F5-(F5*$I$3) -> 464.6897913 | H5: =F5*E5 -> 1858.759165 | I5: =H5-(H5*$I$3) -> 1858.759165 | K5: R12 | L5: R-90261 | M5: HÁČEK
A6: 2 | B6: S105210315 | C6: Hrábě univer zubůální 18 zubů EXP STALCO GARDEN | D6: ks | E6: 4 | F6: 511.1626046 | G6: =F6-(F6*$I$3) -> 511.1626046 | H6: =F6*E6 -> 2044.650418 | I6: =H6-(H6*$I$3) -> 2044.650418 | K6: R12 | L6: R-90261 | M6: HÁČEK
A7: 3 | B7: S105210330 | C7: Hrábě na listí 50 cm EXP STALCO GARDEN | D7: ks | E7: 5 | F7: 456.9487956 | G7: 456.9487956 | H7: 2284.743978 | I7: 2284.743978 | K7: R12 | L7: R-90271 | M7: HÁČEK
A8: 4 | B8: S105210500 | C8: Hrábě nastavitelné STR | D8: ks | E8: 12 | F8: 229.6172675 | G8: 229.6172675 | H8: 2755.407211 | I8: 2755.407211 | K8: R12 | L8: R-90261 | M8: 2 X HÁČEK
A9: 5 | B9: S105210506 | C9: Hrábě nastavitelné hliníkové, teleskopické STR | D9: ks | E9: 12 | F9: 336.3940216 | G9: 336.3940216 | H9: 4036.728259 | I9: 4036.728259 | K9: R12 | L9: R-90261 | M9: 3 X HÁČEK
A10: 6 | B10: S105210372 | C10: Vytrhávač plevele EXP | D10: ks | E10: 5 | F10: 877.5823051 | G10: 877.5823051 | H10: 4387.911525 | I10: 4387.911525 | K10: R12 | L10: R-90265 | M10: HÁČEK
C11: SUMA | E11: 42 | H11: =SUM(H5:H10) -> 17368.20056 | I11: =SUM(I5:I10) -> 17368.20056
C23: Specifikace regálových prvků | H23: rabat | I23: 0
A24: Poz. | B24: Kat. číslo | C24: Popis | D24: MJ | E24: Množství | F24: cena | G24: Cena po odečtení rabatu | H24: Celkem | I24: Celkem po odečtení rabatu
A25: 1 | B25: R-90261 | C25: JEDNODUCHÝ HÁČEK S CENOVKOU | D25: ks | E25: 6 | F25: 69.86736 | G25: 69.86736 | H25: 419.20416 | I25: 419.20416
A26: 2 | B26: R-90265 | C26: DVOJITÝ HÁČEK S CENOVKOU | D26: ks | E26: 1 | F26: 78.78048 | G26: 78.78048 | H26: 78.78048 | I26: 78.78048
A27: 3 | B27: R-90271 | C27: HÁK NA HRÁBĚ | D27: ks | E27: 1 | F27: 94.66596 | G27: 94.66596 | H27: 94.66596 | I27: 94.66596
A28: 4 | B28: R-90305 | C28: CENOVÁ LIŠTA STŘÍBNRÁ 950mm BU | D28: ks | E28: 1 | F28: 26.30808 | G28: 26.30808 | H28: 26.30808 | I28: 26.30808
A29: 5 | B29: R-90315 | C29: CENOVÁ LIŠTA TRANSPARENTNÍ 65MM BU | D29: ks | E29: 6 | F29: 2.73144 | G29: 2.73144 | H29: 16.38864 | I29: 16.38864
A30: 6 | B30: R-91084 | C30: GRAFIKA LOGO STALCO DO CENOVÉ LIŠTY (POZADÍ POD CENOVKY) R-91084 BU | D30: ks | E30: 1 | F30: 27.17064 | G30: 27.17064 | H30: 27.17064 | I30: 27.17064
A31: 7 | B31: R-90293 | C31: CENOVKA PRO SYSTÉMOVOU HRAZDU | D31: ks | E31: 3 | F31: 25.8768 | G31: 25.8768 | H31: 77.6304 | I31: 77.6304
A32: 8 | B32: SZKIELET | D32: bal. | F32: 0 | G32: 0 | H32: 0 | I32: 0
C33: SUMA | E33: 19 | H33: 740.14836 | I33: 740.14836

Sheet Regál 13
A1: Regál 13
C3: Specifikace | H3: rabat | I3: 0 | K3: Prvky regálu a umístění produktu
A4: Poz. | B4: Kat. číslo | C4: Popis | D4: MJ | E4: Množství | F4: Kat. cena bez DPH | G4: Cena po odečtení rabatu | H4: Celkem | I4: Celkem po odečtení rabatu | J4: Obrázek | K4: Místo na regálu | L4: Kat. číslo | M4: Cílová pozice
A5: 1 | B5: S105210333 | C5: Hrábě na listí 60 cm EXP STALCO GARDEN | D5: ks | E5: 5 | F5: 484.3535782 | G5: =F5-(F5*$I$3) -> 484.3535782 | H5: =F5*E5 -> 2421.767891 | I5: =H5-(H5*$I$3) -> 2421.767891 | K5: R13 | L5: R-90271 | M5: HÁČEK NA HRÁBĚ
A6: 2 | B6: S105210351 | C6: Koště 40cm EXP | D6: ks | E6: 4 | F6: 65.98989524 | G6: =F6-(F6*$I$3) -> 65.98989524 | H6: =F6*E6 -> 263.959581 | I6: =H6-(H6*$I$3) -> 263.959581 | K6: R13 | L6: R-90261 | M6: HÁČEK
A7: 3 | B7: S105210354 | C7: Koště 65cm EXP | D7: ks | E7: 4 | F7: 78.3630006 | G7: 78.3630006 | H7: 313.4520024 | I7: 313.4520024 | K7: R13 | L7: R-90261 | M7: HÁČEK
A8: 4 | B8: S105010200 | C8: Rýč rovný EXP | D8: ks | E8: 5 | F8: 58.8 | G8: 58.8 | H8: 294 | I8: 294 | K8: R13 | L8: R-91817 | M8: SYSTZÉMOVÁ HRAZDA
A9: 5 | B9: S105010203 | C9: Rýč špičatý EXP | D9: ks | E9: 5 | F9: 58.8 | G9: 58.8 | H9: 294 | I9: 294 | K9: R13 | L9: R-91817 | M9: SYSTZÉMOVÁ HRAZDA
A10: 6 | B10: S105010209 | C10: Lopata EXP | D10: ks | E10: 5 | F10: 58.8 | G10: 58.8 | H10: 294 | I10: 294 | K10: R13 | L10: R-91817 | M10: SYSTZÉMOVÁ HRAZDA
C11: SUMA | E11: 28 | H11: =SUM(H5:H10) -> 3881.179474 | I11: =SUM(I5:I10) -> 3881.179474
C23: Specifikace regálových prvků | H23: rabat | I23: 0
A24: Poz. | B24: Kat. číslo | C24: Popis | D24: MJ | E24: Množství | F24: cena | G24: Cena po odečtení rabatu | H24: Celkem | I24: Celkem po odečtení rabatu
A25: 1 | B25: R-90261 | C25: JEDNODUCHÝ HÁČEK S CENOVKOU | D25: ks | E25: 2 | F25: 69.86736 | G25: 69.86736 | H25: 139.73472 | I25: 139.73472
A26: 2 | B26: R-90277 | C26: SYSTÉMOVÁ HRAZDA | D26: ks | E26: 1 | F26: 422.79816 | G26: 422.79816 | H26: 422.79816 | I26: 422.79816
A27: 3 | B27: R-90271 | C27: HÁK NA HRÁBĚ | D27: ks | E27: 1 | F27: 94.66596 | G27: 94.66596 | H27: 94.66596 | I27: 94.66596
A28: 4 | B28: R-91817 | C28: DRŽÁK NA HRAZDU S 5 PŮLKULATÝMI VÝŘEZY | D28: ks | E28: 3 | F28: 208.73952 | G28: 208.73952 | H28: 626.21856 | I28: 626.21856
A29: 5 | B29: R-90305 | C29: CENOVÁ LIŠTA STŘÍBNRÁ 950mm BU | D29: ks | E29: 1 | F29: 26.30808 | G29: 26.30808 | H29: 26.30808 | I29: 26.30808
A30: 6 | B30: R-90315 | C30: CENOVÁ LIŠTA TRANSPARENTNÍ 65MM BU | D30: ks | E30: 6 | F30: 2.73144 | G30: 2.73144 | H30: 16.38864 | I30: 16.38864
A31: 7 | B31: R-91084 | C31: GRAFIKA LOGO STALCO DO CENOVÉ LIŠTY (POZADÍ POD CENOVKY) R-91084 BU | D31: ks | E31: 1 | F31: 27.17064 | G31: 27.17064 | H31: 27.17064 | I31: 27.17064
A32: 8 | B32: R-90293 | C32: CENOVKA PRO SYSTÉMOVOU HRAZDU | D32: ks | E32: 1 | F32: 25.8768 | G32: 25.8768 | H32: 25.8768 | I32: 25.8768
A33: 9 | B33: SZKIELET | D33: bal. | F33: 0 | G33: 0 | H33: 0 | I33: 0
C34: SUMA | E34: 16 | H34: 1379.16156 | I34: 1379.16156

Sheet Regál 14
A1: Regal 14
C3: Specifikace | H3: rabat | I3: 0 | K3: Prvky regálu a umístění produktu
A4: Poz. | B4: Kat. číslo | C4: Popis | D4: MJ | E4: Množství | F4: Kat. cena bez DPH | G4: Cena po odečtení rabatu | H4: Celkem | I4: Celkem po odečtení rabatu | J4: Obrázek | K4: Místo na regálu | L4: Kat. číslo | M4: Cílová pozice
A5: 1 | B5: S-74001 | C5: Lopata na písek | D5: ks | E5: 4 | F5: 751.3 | G5: =F5-(F5*$I$3) -> 751.3 | H5: =F5*E5 -> 3005.2 | I5: =H5-(H5*$I$3) -> 3005.2 | K5: R14 | L5: R-91817 | M5: SYSTÉMOVÁ HRAZDA
A6: 2 | B6: S-74003 | C6: Rýč rovný | D6: ks | E6: 8 | F6: 726.5 | G6: =F6-(F6*$I$3) -> 726.5 | H6: =F6*E6 -> 5812 | I6: =H6-(H6*$I$3) -> 5812 | K6: R14 | L6: R-91817 | M6: SYSTÉMOVÁ HRAZDA
A7: 3 | B7: S-74005 | C7: Rýč špičatý | D7: ks | E7: 4 | F7: 726.5 | G7: 726.5 | H7: 2906 | I7: 2906 | K7: R14 | L7: R-91817 | M7: SYSTÉMOVÁ HRAZDA
A8: 4 | B8: S-74007 | C8: Vidle rycí | D8: ks | E8: 4 | F8: 886.5 | G8: 886.5 | H8: 3546 | I8: 3546 | K8: R14 | L8: R-91817 | M8: SYSTÉMOVÁ HRAZDA
A9: 5 | B9: S-74009 | C9: Hrábě ERGO | D9: ks | E9: 4 | F9: 644.7 | G9: 644.7 | H9: 2578.8 | I9: 2578.8 | K9: R14 | L9: R-91817 | M9: SYSTÉMOVÁ HRAZDA
A10: 6 | B10: S-76317 | C10: Rukavice nylonové 8 "NITRILE FLEX PVC DOTS" | D10: pár | E10: 12 | F10: 111.6 | G10: 111.6 | H10: 1339.2 | I10: 1339.2 | K10: R14 | L10: R-90265 | M10: HÁČEK
A11: 7 | B11: S-76319 | C11: Rukavice nylonové 9 "NITRILE FLEX PVC DOTS" | D11: pár | E11: 12 | F11: 111.6 | G11: 111.6 | H11: 1339.2 | I11: 1339.2 | K11: R14 | L11: R-90265 | M11: HÁČEK
A12: 8 | B12: S-76321 | C12: Rukavice nylonové 10 "NITRILE FLEX PVC DOTS" | D12: pár | E12: 12 | F12: 111.6 | G12: 111.6 | H12: 1339.2 | I12: 1339.2 | K12: R14 | L12: R-90265 | M12: HÁČEK
A13: 9 | B13: S-76322 | C13: Rukavice nylonové 11 "NITRILE FLEX PVC DOTS" | D13: pár | E13: 12 | F13: 111.6 | G13: 111.6 | H13: 1339.2 | I13: 1339.2 | K13: R14 | L13: R-90265 | M13: HÁČEK
C14: SUMA | E14: 72 | H14: =SUM(H5:H13) -> 23204.8 | I14: =SUM(I5:I13) -> 23204.8
C26: Specifikace regálových prvků | H26: rabat | I26: 0
A27: Poz. | B27: Kat. číslo | C27: Popis | D27: MJ | E27: Množství | F27: cena | G27: Cena po odečtení rabatu | H27: Celkem | I27: Celkem po odečtení rabatu
A28: 1 | B28: R-90265 | C28: DVOJITÝ HÁČEK S CENOVKOU | D28: ks | E28: 4 | F28: 78.78048 | G28: 78.78048 | H28: 315.12192 | I28: 315.12192
A29: 2 | B29: R-90277 | C29: SYSTÉMOVÁ HRAZDA | D29: ks | E29: 2 | F29: 422.79816 | G29: 422.79816 | H29: 845.59632 | I29: 845.59632
A30: 3 | B30: R-91817 | C30: DRŽÁK NA HRAZDU S PŮLKULATÝMI VÝŘEZY | D30: ks | E30: 6 | F30: 208.73952 | G30: 208.73952 | H30: 1252.43712 | I30: 1252.43712
A31: 4 | B31: R-90305 | C31: CENOVÁ LIŠTA STŘÍBNRÁ 950mm BU | D31: ks | E31: 1 | F31: 26.30808 | G31: 26.30808 | H31: 26.30808 | I31: 26.30808
A32: 5 | B32: R-90315 | C32: CENOVÁ LIŠTA TRANSPARENTNÍ 65MM BU | D32: ks | E32: 10 | F32: 2.73144 | G32: 2.73144 | H32: 27.3144 | I32: 27.3144
A33: 6 | B33: R-91084 | C33: GRAFIKA LOGO STALCO DO CENOVÉ LIŠTY (POZADÍ POD CENOVKY) R-91084 BU | D33: ks | E33: 1 | F33: 27.17064 | G33: 27.17064 | H33: 27.17064 | I33: 27.17064
A34: 7 | B34: SZKIELET | D34: bal. | F34: 0 | G34: 0 | H34: 0 | I34: 0
C35: SUMA | E35: 24 | H35: 2493.94848 | I35: 2493.94848
